Workbook

Sheet Info
D2: Cost-effectiveness Screening Tool
D3: for Energy Efficiency Program Administrators
D4: Benefit cost analysis of a new energy efficiency program promoting SEP projects
B6: Date Created: | C6: 2014-10-21
B7: Created by: | C7: Kenji Takahashi | D7: 617.453.7038
C8: Synapse Energy Economics | D8: ktakahashi@synapse-energy.com
C9: for Lawrence Berkeley National Laboratory
B10: Date Modified: | C10: 2015-06-18
B11: Modifier: | C11: Alice Napoleon
B12: Modifications: | C12: Changed field descriptions.
B15: Sheet | C15: Description
B16: Info | C16: Contains information on the rest of the workbook
B17: Index | C17: Index for key inputs and outputs
B18: Inputs | C18: Provides key inputs
B19: Outputs | C19: Provides key outputs in chart format
B20: MainModule | C20: Contains main calculations
B21: EIA_Elec | C21: EIA state electricity price data
B22: EIA.NG | C22: EIA state natural gas price data
B23: EIA.Oil | C23: EIA state oil price data
B24: RefTables | C24: Reference tables
B25: SC.AC | C25: State-specific avoided cost data
B26: MA.AC | C26: State-specific avoided cost data
B27: PA.AC | C27: State-specific avoided cost data
B29: Notes
B35: Shortcuts
B36: Ctrl+Shift+C | C36: Convert all "CO2", "SO2", and "NOx" to proper subscripts
B37: Ctrl+Shift+D | C37: Format selected cells to Header (i.e., bold, centered, wrapped)
B38: Ctrl+Shift+S | C38: Open "Table of Contents" window to quickly swap between sheets
B39: Ctrl+Shift+A | C39: Format selected cells to comma separated, no decimals (e.g., 100,000)

Sheet Index
B2: Purpose: | C2: SEP program BC analysis | E2: Case Description:
B3: Project: | E3: This is a draft version.
B4: Version: | C4: 7
B5: Case Name:
B6: Utility:
B7: State: | C7: =VLOOKUP(Inputs!E9,RefTables!$B$7:$C$57,2) -> Pennsylvania
B8: Date Created:
B9: Author: | C9: Synapse Energy Economics
B12: Model Diagram and Index
B14: PA-Specific Inputs | E14: Default Inputs | K14: Key Outputs
B16: Customer Load | E16: Projected Energy Savings
B17: State | E17: Annual energy savings per facility | K17: Savings
B18: Average energy consumption per facility | E18: Operational vs. capital improvement | K18: Annual electricity savings (GWh)
B19: Time of use (TOU) hours | E19: Savings persistence and measure life | K19: Annual peak load savings (MW)
B20: Average electric load factor | E20: Energy savings time profile | K20: Annual fuel savings (billion Btu)
B21: Number of facilities | E21: Energy savings attribution factor | K21: Benefit cost
E22: T&D line loss | H22: MainModule | K22: Benefits and costs (NPV$)
B23: Costs & Incentives | K23: Benefit cost ratios
B24: Incentive payment | E24: Costs | K24: Detailed benefits and costs in TRC test (NPV$)
B25: Discount rate | E25: Implementation cost | K25: Detailed benefits and costs in SC test (NPV$)
E26: Maintenance cost | K26: Detailed benefits and costs in PAC test ($NPV)
B27: Benefits | E27: Capital improvement cost | K27: Detailed benefits and costs in PC test ($NPV)
B28: Retail rate | E28: EnMS Sunk Costs | K28: Other useful data
B29: Avoided cost & other benefits | K29: Energy savings and cost share (%)
B30: Cost of emissions | K30: Incentive and participant cost share (%)
B31: Avoided emissions factors | K31: SEP Program Budget ($000)
B33: Abbreviations:
B34: BBTU = billion british thermal units
B35: EnMS = Energy Management System
B36: NPV = Net Present Value
B37: PA = Program Administrator
B38: PAC = Program Administrator Cost test
B39: PC = Participant Cost test
B40: SC = Societal Cost test
B41: TOU = Time of Use
B42: TRC = Total Resource Cost test

Sheet Inputs
B2: ="Inputs: "&caseName -> Inputs: | E2: Key
E3: User input | F3: Users should enter their own data | M3: Back to Index Sheet
E4: Default input | F4: Users can enter their own data if they have values more specific and relevant to their jurisdictions
E5: Calculated data | F5: Formula should NOT be changed | M5: Go to Outputs Sheet
C6: Variable: | D6: Unit:
B8: 1. Customer Load Input
C9: State | E9: PA | F9: ↓
C11: Average annual energy consumption and peak load per facility | G11: Enter average annual consumption per facility for the targeted industrial segment for the PA SEP program.
C12: Average annual electricity consumption | D12: GWh | E12: 100 | G12: For the initial SEP cohort, average annual reporting period site electricity consumption before energy savings projects was about 107 GWh, and average annual energy bill was $8M.
C13: Average annual fuel consumption | D13: Billion Btu | E13: 428 | G13: Average annual reporting period consumption before energy savings projects from DOE's SEP projects was 428,000 MMBtu.
C14: Peak electric load data (MW) available? | E14: No | F14: ↓
C15: Average electricity peak load | D15: MW
C16: Average electric load factor | D16: % | E16: 0.9 | G16: Placeholder assumption. The load factor is the average annual electric load divided by peak load.
C17: Average electricity peak load | D17: MW | E17: =IF(E14="No",E12/(E16*8.76),E15) -> 12.68391679 | G17: Calculated average peak load
C19: Average annual electricity consumption by time-of-use (TOU) period per facility
C20: Summer peak | D20: GWh | E20: =$E$12*E26 -> 27
C21: Summer off-peak | D21: GWh | E21: =$E$12*E27 -> 24
C22: Winter peak | D22: GWh | E22: =$E$12*E28 -> 26
C23: Winter off-peak | D23: GWh | E23: =$E$12*E29 -> 23
C25: Hours by electric TOU period (% of total annual hours)
C26: Summer peak | D26: % | E26: 0.27 | G26: Placeholder assumption
C27: Summer off-peak | D27: % | E27: 0.24 | G27: Placeholder assumption
C28: Winter peak | D28: % | E28: 0.26 | G28: Placeholder assumption
C29: Winter off-peak | D29: % | E29: 0.23 | G29: Placeholder assumption
C30: Total | E30: =SUM(E26:E29) -> 1 | G30: This must equal 100%.
C32: Number of facilities to target in 2015 | D32: # | E32: 5 | G32: Enter the projected number of facilities to participate in the PA's SEP program in one year.
C34: Total energy data - all facilities
C35: Applicable annual electricity consumption | D35: GWh | E35: =E$12*$E$32 -> 500
C36: Applicable peak electric load | D36: MW | E36: =E$17*$E$32 -> 63.41958397
C37: Applicable annual fuel consumption | D37: =D13 -> Billion Btu | E37: =E$13*$E$32 -> 2140
B40: 2. Projected Energy Savings
C41: Share of annual SEP savings attributable to operational & capital improvements
C42: Operational | D42: % | E42: 0.7 | G42: For the initial SEP projects, 70% of energy savings was associated with operational improvements and 30% was due to capital improvements. The value can be between 50% and 100%.
C43: Capital | D43: % | E43: =1-E42 -> 0.3
C45: Gross annual energy savings per facility
C46: Operational improvement
C47: Electricity | D47: % | E47: =6.8% -> 0.068 | G47: For the initial SEP projects, gross annual electricity savings from operational improvements were 6.8% as a % of expected annual electricity consumption assuming no energy savings projects during the reporting period.
C48: Fuel [natural gas, oil, other] | D48: % | E48: =17.4% -> 0.174 | G48: For the initial SEP projects, gross annual fuel savings from operational improvements were 17.4% as a % of expected annual fuel consumption assuming no energy savings projects during the reporting period.
C49: Capital improvement
C50: Electricity | D50: % | E50: =E47/E42-E47 -> 0.02914285714 | G50: Calculated based on the fraction between operational and capital improvement related savings
C51: Fuel [natural gas, oil, other] | D51: % | E51: =E48/E42-E48 -> 0.07457142857 | G51: Calculated based on the fraction between operational and capital improvement related savings
C52: Total (Operational + Capital)
C53: Electricity | D53: % | E53: =E47+E50 -> 0.09714285714
C54: Fuel [natural gas, oil, other] | D54: % | E54: =E48+E51 -> 0.2485714286
C56: Net annual energy savings per facility
C57: Operational improvement
C58: Electricity | D58: % | E58: =E47*$E$82 -> 0.0476 | G58: Calculated. Net annual savings estimates include a SEP project attribution factor (input below).
C59: Fuel [natural gas, oil, other] | D59: % | E59: =E48*$E$82 -> 0.1218 | G59: Calculated. Net annual savings estimates include a SEP project attribution factor (input below).
C60: Capital improvement
C61: Electricity | D61: % | E61: =E50*$E$82 -> 0.0204
C62: Fuel [natural gas, oil, other] | D62: % | E62: =E51*$E$82 -> 0.0522
C64: Energy savings persistence & measure life
C65: Operational improvement | D65: Years | E65: 3 | G65: Default value is 3 years. Values up to 15 years can be selected from the dropdown menu.
C66: Capital improvement | D66: Years | E66: 13.5 | G66: The average measure life value for relevant commercial and industrial program types is based on the measure life data provided in Appendix C, Table C-3 of LBNL (2014).
C68: Energy savings time profile
C69: Operational improvement
C70: Summer peak | E70: =E26 -> 0.27 | G70: Assumed to be equal to the electric load shape, as provided in the previous section.
C71: Summer off-peak | E71: =E27 -> 0.24 | G71: Assumed to be equal to the electric load shape, as provided in the previous section.
C72: Winter peak | E72: =E28 -> 0.26 | G72: Assumed to be equal to the electric load shape, as provided in the previous section.
C73: Winter off-peak | E73: =E29 -> 0.23 | G73: Assumed to be equal to the electric load shape, as provided in the previous section.
C74: Total | E74: =SUM(E70:E73) -> 1 | G74: This must equal 100%.
C75: Capital improvement
C76: Summer peak | E76: =E26 -> 0.27 | G76: Assumed to be equal to the electric load shape, as provided in the previous section.
C77: Summer off-peak | E77: =E27 -> 0.24 | G77: Assumed to be equal to the electric load shape, as provided in the previous section.
C78: Winter peak | E78: =E28 -> 0.26 | G78: Assumed to be equal to the electric load shape, as provided in the previous section.
C79: Winter off-peak | E79: =E29 -> 0.23 | G79: Assumed to be equal to the electric load shape, as provided in the previous section.
C80: Total | E80: =SUM(E76:E79) -> 1 | G80: This must equal 100%.
C82: Energy savings attribution factor | D82: % | E82: 0.7 | G82: Average attribution rate (71%) based on initial SEP projects evaluated by LBNL. One minus this value can also be viewed as a free rider effect.
C84: T&D line loss
C85: Average loss | D85: % | E85: 0.06 | G85: Average US value from 1990 to 2012 based on EIA (2015).
C86: Marginal loss | D86: % | E86: =E85*(20%/7%) -> 0.1714285714 | G86: Calculated. Average loss factor is adjusted by the ratio of marginal losses (20%) to average losses (7%), reported in Lazar et al. (2011)
B89: 3. Cost & Incentive Input
C90: Incentive (including technical & financial assistance)
C91: % of SEP implementation cost | D91: % | E91: 0.3 | G91: For the initial SEP projects, DOE provided audits and technical assistance accounting for about 22% of the total SEP implementation costs.
C92: % of annual maintenance cost | D92: % | E92: 0.3 | G92: For the initial SEP projects, DOE did not provide incentives to cover maintenance costs.
C93: % of capital improvement cost | D93: % | E93: 0.3 | G93: For the initial SEP projects, DOE did not provide incentives to cover capital improvement costs.
C95: EnMS sunk costs (% of total internal staff cost) | D95: % | E95: 0.4 | G95: EnMS sunk costs are costs spent on energy management prior to SEP participation. For DOE's initial cohort, the EnMS sunk costs ranged from 0% to 86% relative to total internal staff cost, with an average of 48%. A conservative estimate, e.g. 40%, is suggested, as new participants will likely have invested less in energy management than DOE's initial SEP cohort.
C98: SEP initial implementation period | D98: months | E98: 24 | F98: ↓ | G98: The achievement period for the initial cohort averaged 18 months, however this period will likely be longer for new facilities. A period of 24 months is recommended. The duration of the maintenance period (the recertification cycle) is assumed to equal the initial implementation period.
C100: SEP cost per facility
C101: Implementation cost per facility | G101: Simplified assumption. There could be two cost cases: one for companies with no experience, and one for companies with SEM experience
C102: Facility internal staff cost - EnMS & audit preparation | D102: $000 | E102: =((0.7683*((E13*1000*E48)+(E12*3412*3)*E47)+159022)/1000)*(1-E95) -> 161.8297233 | G102: Calculated. A trend is observed that internal staff time costs differ by savings amounts (y = 0.5827x+148486, where y = internal staff time and x = total energy savings), based on facilities with total SEP-related energy savings ranging from 5,800 to 177,000 MMBtu (corresponding to total source energy consumption before SEP participation ranging from 35,000 to 3,460,000 MMBtu). Users should use caution applying this tool to facilities that are substantially outside of that range. Site electricity savings is converted to source savings in this equation. Key parameters for the formula include: (1) total energy savings from operational improvements in MMBtu; and (2) EnMS sunk cost factor.
C103: Facility cost - Monitoring & Metering Equipment | D103: $000 | E103: 14 | G103: Average program cost. For the initial SEP projects, no trend in program cost is observed for facilities with different consumption levels.
C104: Program cost - Audit & technical assistance | D104: $000 | E104: 69 | G104: Average program cost. Costs of audits and technical assistance for the initial SEP projects did not vary by consumption level for the initial cohort.
C105: Facility cost - Monitoring & Metering Equipment | D105: $000 | E105: =SUM(E102:E104) -> 244.8297233
C106: Annual maintenance cost per facility | D106: $000 | E106: 94 | G106: Median of the reported maintenance cost data of the initial SEP projects
C108: Total SEP Cost
C109: Total implementation cost | D109: $000 | E109: =E105*E32 -> 1224.148616
C110: Participant cost | D110: $000 | E110: =E109*(1-E91) -> 856.9040314
C111: Program cost | D111: $000 | E111: =E109-E110 -> 367.2445849
C112: Total maintenance cost | D112: $000 | E112: =E106*E32 -> 470
C113: Participant cost | D113: $000 | E113: =E112*(1-E92) -> 329 | Q113: Year 1 | R113: Year 2 | S113: Year 3 | T113: Year 4 | U113: Year 5 | V113: Year 6 | W113: Year 7 | X113: Year 8 | Y113: Year 9 | Z113: Year 10 | AA113: Year 11 | AB113: Year 12 | AC113: Year 13 | AD113: Year 14 | AE113: Year 15 | AF113: Year 16 | AG113: Year 17 | AH113: Year 18 | AI113: Year 19 | AJ113: Year 20
C114: Program cost | D114: $000 | E114: =E112-E113 -> 141
C115: Program administrative cost during the SEP implementation period | D115: $000 | G115: Includes the program administrative costs associated with a single SEP cohort during the first SEP implementation period (e.g., planning, administration, marketing, and evaluation)
C116: Ongoing annual program administrative cost after the SEP implementation period | D116: $000 | G116: Includes the ongoing, annual program administrative costs associated with a single SEP cohort (e.g., planning, administration, marketing, and evaluation) | Q116: =TRANSPOSE(PA.AC!#REF!) -> 
C118: SEP Re-certification Costs
C119: 1st SEP Maintenance Period | G119: Assumes 2/3 of the initial certification cost
C120: Internal audit preparation per facility | D120: $000 | E120: =((0.7683*((E13*1000*E48)+(E12*3412*3)*E47)+159022)/1000)*9%*(2/3) -> 16.18297233 | G120: For the initial cohort, average internal audit preparation cost was 9% of average total internal staff cost. For the SEP recertification cycle audit, 2/3 of this amount is assumed. Key parameters for the formula are: (1) total energy savings from operational improvements in MMBtu; and (2) internal audit cost factor (9%)
C121: Program cost - audit & technical assistance per facility | D121: $000 | E121: =E104*(2/3) -> 46
C122: Total program administrative cost per facility | D122: $000 | E122: =SUM(E120:E121) -> 62.18297233
C123: Total program administrative cost for all facilities | D123: $000 | E123: =E122*E32 -> 310.9148616
C125: 2nd & subsequent SEP maintenance periods | G125: Assumes 1/2 of the initial certification cost
C126: Internal audit preparation per facility | E126: =((0.7683*((E13*1000*E48)+(E12*3412*3)*E47)+159022)/1000)*9%*(1/2) -> 12.13722924 | G126: Key parameters for the formula are: (1) total energy savings from operational improvements in MMBtu; and (2) internal audit cost factor (9%)
C127: Program cost - audit & technical assistance per facility | E127: =E104*(1/2) -> 34.5
C128: Total program administrative cost per facility | E128: =SUM(E126:E127) -> 46.63722924
C129: Total program administrative cost for all facilities | E129: =E128*E32 -> 233.1861462
C131: Capital improvement cost | G131: Total TRC costs divided by projected electricity savings over the measure life. Assumes industrial PA costs are 40% of TRC costs based on TRC vs. PA cost data from LBNL 2014, page xv. PA costs are based on the average of the average PA costs for relevant industrial programs obtained from LBNL 2014, Appendix C, Table E-4. Levelized cost data from LBNL 2014 are converted to a value based on a 3% discount rate.
C132: Levelized cost of saved electricity | D132: $/kWh | E132: =0.02*(100%/40%) -> 0.05
G133: Total TRC costs divided by projected fuel savings over the measure life. Cost of saved energy at a 3% discount rate and 60% program cost share (from electric program cases) based on LBNL 2014. (Table 3-5 and Figure 3-21.) Program cost was converted to total cost by $0.14/therm x (100%/50%) / 0.1. The 0.1 factor is to convert therms to MMbtu.
C134: Levelized cost of saved fuel | D134: $/MMBtu | E134: =0.14*(100%/40%)/0.1 -> 3.5
C135: Cost of saved electricity per first year savings | D135: $/kWh | E135: =-PV($E$140,$E$66,E132) -> 0.5483978462 | G135: Total TRC costs divided by projected first year electricity savings
C136: Cost of saved fuel per first year savings | D136: $/MMBtu | E136: =-PV($E$140,$E$66,E134) -> 38.38784923 | G136: Total TRC costs divided by projected first year fuel savings
C138: Discount rate
C139: Real discount rate for participant cost test | D139: % | E139: 0.06
C140: Real discount rate for PA & TRC tests | D140: % | E140: 0.03
C141: Real discount rate for SC test | D141: % | E141: 0.01
B144: 4. Benefit Input
C145: Retail energy price
C146: State or utility/facility specific retail rate? | E146: Utility Rate | F146: ↓ | G146: Select state rate 1) if utility-specific data are not available, or 2) SEP offerings would target facilities across the state.
C147: Annual average rate or TOU rate in $/kWh | E147: Average Rate | F147: ↓
C148: Use electricity demand charge? | E148: No | F148: ↓
C149: Type of fuel savings (natural gas or oil) | E149: Natural Gas | F149: ↓ | G149: Will participating facilities primarily reduce natural gas or oil consumption?
C151: State retail energy price
C152: Electricity | E152: =SUMIFS(EIA_Elec!$R$2:$R$1301,EIA_Elec!$C$2:$C$1301,E167&" Total",EIA_Elec!$A$2:$A$1301,2013)/100 -> 0.07 | G152: EIA industrial average state electricity data in 2013
C153: Natural gas | D153: $/MMBtu | E153: =IF(E149="Oil",0,INDEX(EIA.NG!$A$21:$BA$38,MATCH(2013,EIA.NG!$A$21:$A$38),MATCH(Inputs!$E$168,EIA.NG!$A$21:$BA$21))/1.027) -> 9.328140214 | G153: EIA state industrial average data. Converted from Mcf to MMBtu with 1 Mcf over 1.027 MMBtu factor
C154: Oil | D154: $/MMBtu | E154: =IF(E149="Natural Gas",0,INDEX(EIA.Oil!$H$7:$H$58,MATCH(Inputs!$E$168,EIA.Oil!$A$7:$A$58,0))) -> 0
C156: Utility industrial energy price
C157: Electricity | G157: Enter charges that are avoidable with energy efficiency measures. Note customer and facility charges are not avoidable.
C158: All year, average | D158: $/kWh | E158: 0.07
C159: Summer peak | D159: $/kWh | E159: 0.0753
C160: Summer off-peak | D160: $/kWh | E160: 0.05365
C161: Winter peak | D161: $/kWh | E161: 0.0753
C162: Winter off-peak | D162: $/kWh | E162: 0.05365
C163: Demand charge in kW | D163: $/kW | G163: Enter the highest demand charge when seasonal demand charges exist.
C164: Fuel | D164: $/MMBtu | E164: =E153 -> 9.328140214 | G164: Assumes the utility rate is the same as the state average
C167: State name | E167: =E9 -> PA
E168: =VLOOKUP(E167,RefTables!$B$6:$C$57,2,FALSE) -> Pennsylvania
C169: Electricity price
C170: All year, average | D170: $/kWh | E170: =IF($E$146="Utility Rate",IF(E147="TOU Rate",0,E158),E152) -> 0.07
C171: Summer peak | D171: $/kWh | E171: =IF($E$146="Utility Rate",IF($E$147="Average Rate",0,E159),0) -> 0
C172: Summer off-peak | D172: $/kWh | E172: =IF($E$146="Utility Rate",IF($E$147="Average Rate",0,E160),0) -> 0
C173: Winter peak | D173: $/kWh | E173: =IF($E$146="Utility Rate",IF($E$147="Average Rate",0,E161),0) -> 0
C174: Winter off-peak | D174: $/kWh | E174: =IF($E$146="Utility Rate",IF($E$147="Average Rate",0,E162),0) -> 0
C175: Demand charge in kW | D175: $/kW | E175: =IF($E$146="Utility Rate",IF(E148="Yes",E163,0),0) -> 0
C176: Fuel price | D176: $/MMBtu | E176: =IF($E$146="Utility Rate",E164,MAX(E153:E154)) -> 9.328140214
C178: Cost of Emissions
C179: Environmental compliance cost
C180: Is it already included in other avoided costs? Is it relevant? | E180: No | F180: ↓
C181: CO2 | D181: $/ton | E181: 20 | G181: The average CO2 shadow price ($2014) (2020-2028) for PJM based on SNL Energy (2014).
C182: NOx | D182: $/lbs. | P182: Societal Cost of CO2 by U.S. DOE ($/ton CO2)
C183: SO2 | D183: $/lbs.
C184: Societal cost of CO2 | G184: When the environmental compliance cost of CO2 is included, make sure to subtract that amount from the societal cost of CO2. | Q184: 2015 | R184: 2016 | S184: 2017 | T184: 2018 | U184: 2019 | V184: 2020 | W184: 2021 | X184: 2022 | Y184: 2023 | Z184: 2024 | AA184: 2025 | AB184: 2026 | AC184: 2027 | AD184: 2028 | AE184: 2029 | AF184: 2030 | AH184: 2015 | AI184: 2020 | AJ184: 2025 | AK184: 2030
C185: Original estimate | D185: $/ton | E185: =-PMT(3%,16,NPV(3%,Q185:AF185)) -> 44.66109154 | G185: Based on Interagency Working Group (2013) used by U.S. DOE | P185: IWG value at 3% | Q185: 38 | R185: =TREND($AH$185:$AK$185,$AH$184:$AK$184,R184) -> 39.14 | S185: =TREND($AH$185:$AK$185,$AH$184:$AK$184,S184) -> 40.08 | T185: =TREND($AH$185:$AK$185,$AH$184:$AK$184,T184) -> 41.02 | U185: =TREND($AH$185:$AK$185,$AH$184:$AK$184,U184) -> 41.96 | V185: 43 | W185: =TREND($AH$185:$AK$185,$AH$184:$AK$184,W184) -> 43.84 | X185: =TREND($AH$185:$AK$185,$AH$184:$AK$184,X184) -> 44.78 | Y185: =TREND($AH$185:$AK$185,$AH$184:$AK$184,Y184) -> 45.72 | Z185: =TREND($AH$185:$AK$185,$AH$184:$AK$184,Z184) -> 46.66 | AA185: 48 | AB185: =TREND($AH$185:$AK$185,$AH$184:$AK$184,AB184) -> 48.54 | AC185: =TREND($AH$185:$AK$185,$AH$184:$AK$184,AC184) -> 49.48 | AD185: =TREND($AH$185:$AK$185,$AH$184:$AK$184,AD184) -> 50.42 | AE185: =TREND($AH$185:$AK$185,$AH$184:$AK$184,AE184) -> 51.36 | AF185: 52 | AH185: 38 | AI185: 43 | AJ185: 48 | AK185: 52
C186: Adjusted estimate | D186: $/ton | E186: =IF(E180="Yes",IF((E185-E181)<0,0,(E185-E181)),E185) -> 44.66109154 | G186: Net societal cost of CO2 = Gross societal cost - environmental compliance cost | P186: Source: | AH186: Source:
P187: Based on Interagency Working Group (2013) used by U.S. DOE | AH187: Based on Interagency Working Group (2013) used by U.S. DOE
C188: Avoided emissions factors
C189: Electricity | G189: Enter system marginal emission rates. Note: average rates are often very different from marginal rates.
C190: CO2 | D190: lbs./MWh | E190: =AVERAGE(1646,1707) -> 1676.5 | G190: Illustrative data: PJM average marginal emission rate based on PJM 2014 Marginal Carbon Emissions Report.
C191: NOx | D191: lbs./MWh
C192: SO2 | D192: lbs./MWh
C193: Fuel (natural gas or oil, must match input in cell E91)
C194: CO2 | D194: lbs./MMBtu | E194: 118 | G194: Emission rates for natural gas, based on US EPA (1995), AP‐42 for External Combustion Sources. Note: NOx emissions based on industrial boilers with low NOx burners. NOx and CO2 emissions factors for all boilers utilized a conversion rate of 1,020 btu/scf.
C195: NOx | D195: lbs./MMBtu | E195: 0.137
C196: SO2 | D196: lbs./MMBtu | E196: 0
P197: Time series avoided cost data for levelization
C198: Avoided Cost & Other Benefits | R198: Year 1 | S198: Year 2 | T198: Year 3 | U198: Year 4 | V198: Year 5 | W198: Year 6 | X198: Year 7 | Y198: Year 8 | Z198: Year 9 | AA198: Year 10 | AB198: Year 11 | AC198: Year 12 | AD198: Year 13 | AE198: Year 14 | AF198: Year 15 | AG198: Year 16 | AH198: Year 17 | AI198: Year 18 | AJ198: Year 19 | AK198: Year 20
C200: Levelized cost data or time series data | G200: To use levelized cost data, enter Yes. To use time series data, enter No and enter data in the table to the right.
C201: Electric generation - using levelized cost data? | D201: $/kWh | E201: No | F201: ↓ | G201: PECO's avoided costs based on GDS Associates et al. (2015). | P201: =C201 -> Electric generation - using levelized cost data? | Q201: $/kWh
C202: Summer peak | P202: =C202 -> Summer peak | Q202: $/kWh | R202: =TRANSPOSE(PA.AC!N12:N31) -> 0.05526651615 | S202: 0.05627561305 | T202: 0.05826956738 | U202: 0.06082135277 | V202: 0.06353327565 | W202: 0.06630409796 | X202: 0.06903962169 | Y202: 0.07156614814 | Z202: 0.07406129431 | AA202: 0.07037531451 | AB202: 0.07218282966 | AC202: 0.07390027034 | AD202: 0.0739584232 | AE202: 0.07406669173 | AF202: 0.07414606361 | AG202: 0.07427190952 | AH202: 0.07436815022 | AI202: 0.07443583023 | AJ202: 0.07454629237 | AK202: 0.07462761645
C203: Summer off-peak | P203: =C203 -> Summer off-peak | Q203: $/kWh | R203: =TRANSPOSE(PA.AC!O12:O31) -> 0.0329832139 | S203: 0.03420863465 | T203: 0.03518876472 | U203: 0.03658566869 | V203: 0.03791942995 | W203: 0.0394603336 | X203: 0.040844051 | Y203: 0.04216367041 | Z203: 0.04342107884 | AA203: 0.04137769377 | AB203: 0.04224938504 | AC203: 0.04315519579 | AD203: 0.04322755872 | AE203: 0.04328272298 | AF203: 0.04332129559 | AG203: 0.04334386712 | AH203: 0.04342399351 | AI203: 0.04348657262 | AJ203: 0.04353222167 | AK203: 0.04356154115
C204: Winter peak | P204: =C204 -> Winter peak | Q204: $/kWh | R204: =TRANSPOSE(PA.AC!L12:L31) -> 0.04633356238 | S204: 0.0476993638 | T204: 0.04956696965 | U204: 0.05181422114 | V204: 0.05414457064 | W204: 0.05637190515 | X204: 0.0585870581 | Y204: 0.06061566524 | Z204: 0.05941831841 | AA204: 0.05924155755 | AB204: 0.06068251443 | AC204: 0.06197054089 | AD204: 0.06201189788 | AE204: 0.06210800712 | AF204: 0.06217969175 | AG204: 0.06222781608 | AH204: 0.06232620244 | AI204: 0.06240000783 | AJ204: 0.06252042822 | AK204: 0.06254636494
C205: Winter off-peak | P205: =C205 -> Winter off-peak | Q205: $/kWh | R205: =TRANSPOSE(PA.AC!M12:M31) -> 0.03700795131 | S205: 0.03825585339 | T205: 0.03954006358 | U205: 0.04104280599 | V205: 0.04265935869 | W205: 0.04420273197 | X205: 0.04567506778 | Y205: 0.04707845408 | Z205: 0.04612960617 | AA205: 0.04594751939 | AB205: 0.04698001117 | AC205: 0.04779898309 | AD205: 0.04786469684 | AE205: 0.04791189121 | AF205: 0.04794122397 | AG205: 0.04802768123 | AH205: 0.04809480961 | AI205: 0.04814328962 | AJ205: 0.04817378327 | AK205: 0.0482559703
C206: Electric capacity | D206: $/kW-yr | E206: No | F206: ↓ | G206: PECO's avoided costs based on GDS Associates et al. (2015). | P206: Electric capacity | Q206: $/kW | R206: =TRANSPOSE(PA.AC!Q12:Q31) -> 42.68184942 | S206: 42.20670979 | T206: 42.20759897 | U206: 42.20351883 | V206: 42.20359631 | W206: 42.20734549 | X206: 42.20551936 | Y206: 42.20678255 | Z206: 42.21070568 | AA206: 42.20857116 | AB206: 42.20860378 | AC206: 42.21042527 | AD206: 42.20581643 | AE206: 42.210299 | AF206: 42.20796859 | AG206: 42.2063694 | AH206: 42.20520243 | AI206: 42.2041844 | AJ206: 42.21007988 | AK206: 42.20844098
C207: T&D | D207: $/kW-yr | E207: No | F207: ↓ | G207: PECO's avoided costs based on GDS Associates et al. (2015). | P207: T&D | Q207: $/kW | R207: =TRANSPOSE(PA.AC!R12:R31) -> 48.36556395 | S207: 48.36426403 | T207: 48.36563279 | U207: 48.36922543 | V207: 48.36550368 | W207: 48.36351545 | X207: 48.36286985 | Y207: 48.36319578 | Z207: 48.36414122 | AA207: 48.36537258 | AB207: 48.366574 | AC207: 48.36744671 | AD207: 48.36770843 | AE207: 48.36709275 | AF207: 48.36534854 | AG207: 48.36223938 | AH207: 48.36484117 | AI207: 48.3653792 | AJ207: 48.36366534 | AK207: 48.36642746
C208: Electricity price reduction effect | D208: $/kWh | E208: No | F208: ↓ | G208: Estimates the extent to which electricity savings cause a reduction in generation prices | P208: Electricity price reduction effect | Q208: $/kWh
C209: Capacity price reduction effect | D209: $/kW-yr | E209: No | F209: ↓ | G209: Estimates the extent to which electricity savings cause a reduction in capacity prices | P209: Capacity price reduction effect | Q209: $/kW-yr
C210: Customer non-electricity benefit | D210: $/kWh | E210: No | F210: ↓ | P210: Customer non-electricity benefit | Q210: $/kW-yr
C211: Fuel | D211: $/MMBtu | E211: No | F211: ↓ | P211: Fuel | Q211: $/MMBtu
C212: Fuel price reduction effect | D212: $/MMBtu | E212: No | F212: ↓ | G212: Estimates the extent to which fuel savings cause a reduction in fuel prices | P212: Fuel price reduction effect
C213: Customer non-fuel benefit | D213: $/MMBtu | E213: No | F213: ↓ | P213: Customer non-fuel benefit | Q213: $/MMBtu
C215: Levelized avoided cost/benefit value entry (in constant dollars) | G215: Enter single year value or levelized value here. Otherwise, enter time series data starting in column O and enter Yes next to, "Electric generation - using levelized cost data?" (above)
C216: Electric generation | D216: $/kWh
C217: Summer peak | D217: $/kWh
C218: Summer off-peak | D218: $/kWh
C219: Winter peak | D219: $/kWh
C220: Winter off-peak | D220: $/kWh
C221: Electric capacity | D221: $/kW
C222: T&D | D222: $/kW
C223: Electricity price reduction effect | D223: $/kWh
C224: Capacity price reduction effect | D224: $/kW-yr
C225: Customer non-electricity benefit | D225: $/kWh
C226: Electric externalities | D226: $/kWh | G226: Enter value for externalities other than CO2, e.g. economic development, fuel security, and insurance cost reductions, if any.
C227: Fuel | D227: $/MMBtu | E227: =E153 -> 9.328140214 | G227: Assumed equal to industrial natural gas price
C228: Fuel price reduction effect | D228: $/MMBtu
C229: Customer non-fuel benefit | D229: $/MMBtu
C230: Fuel externalities | D230: $/MMBtu | G230: Enter value for externalities other than CO2, e.g. economic development, fuel security, and insurance cost reductions, if any.
C232: All in levelized avoided cost
C233: Electric | D233: $/kWh | E233: =kWh.benefit+kW.benefit/(8760*E16) -> 0.01149206493
C234: Fuel | D234: $/MMBtu | E234: =MMBtu.benefit -> 0
C236: Final levelized avoided cost/benefit value (in constant dollars)
C237: Electric generation | D237: $/kWh | E237: =IF($E$201="Yes", E216,IFERROR(-PMT(RDR,COUNT(R201:AK201),NPV(RDR,$R201:$AK201)),"0")) -> 0 | G237: Illustrative data: GDS Associates et al. (2015).
... 29 more rows

Sheet MainModule
B2: ="Main Module" -> Main Module | Y2: Back to Index Sheet
H4: 2015 | I4: 2016 | J4: 2017 | K4: 2018 | L4: 2019 | M4: 2020 | N4: 2021 | O4: 2022 | P4: 2023 | Q4: 2024 | R4: 2025 | S4: 2026 | T4: 2027 | U4: 2028 | V4: 2029 | W4: 2030 | Y4: Go to Outputs Sheet
B6: Annual Incremental Savings | E6: Total | F6: Total discounted savings
C7: Savings persistence
C8: Operational energy savings | D8: 1 or 0 | H8: =IF((MainModule!H$4-MainModule!$H$4)=0,0,IF((MainModule!H$4-MainModule!$H$4)<(Inputs!$E$65+1),1,0)) -> 0 | I8: =IF((MainModule!I$4-MainModule!$H$4)=0,0,IF((MainModule!I$4-MainModule!$H$4)<(Inputs!$E$65+1),1,0)) -> 1 | J8: =IF((MainModule!J$4-MainModule!$H$4)=0,0,IF((MainModule!J$4-MainModule!$H$4)<(Inputs!$E$65+1),1,0)) -> 1 | K8: =IF((MainModule!K$4-MainModule!$H$4)=0,0,IF((MainModule!K$4-MainModule!$H$4)<(Inputs!$E$65+1),1,0)) -> 1 | L8: =IF((MainModule!L$4-MainModule!$H$4)=0,0,IF((MainModule!L$4-MainModule!$H$4)<(Inputs!$E$65+1),1,0)) -> 0 | M8: =IF((MainModule!M$4-MainModule!$H$4)=0,0,IF((MainModule!M$4-MainModule!$H$4)<(Inputs!$E$65+1),1,0)) -> 0 | N8: =IF((MainModule!N$4-MainModule!$H$4)=0,0,IF((MainModule!N$4-MainModule!$H$4)<(Inputs!$E$65+1),1,0)) -> 0 | O8: =IF((MainModule!O$4-MainModule!$H$4)=0,0,IF((MainModule!O$4-MainModule!$H$4)<(Inputs!$E$65+1),1,0)) -> 0 | P8: =IF((MainModule!P$4-MainModule!$H$4)=0,0,IF((MainModule!P$4-MainModule!$H$4)<(Inputs!$E$65+1),1,0)) -> 0 | Q8: =IF((MainModule!Q$4-MainModule!$H$4)=0,0,IF((MainModule!Q$4-MainModule!$H$4)<(Inputs!$E$65+1),1,0)) -> 0 | R8: =IF((MainModule!R$4-MainModule!$H$4)=0,0,IF((MainModule!R$4-MainModule!$H$4)<(Inputs!$E$65+1),1,0)) -> 0 | S8: =IF((MainModule!S$4-MainModule!$H$4)=0,0,IF((MainModule!S$4-MainModule!$H$4)<(Inputs!$E$65+1),1,0)) -> 0 | T8: =IF((MainModule!T$4-MainModule!$H$4)=0,0,IF((MainModule!T$4-MainModule!$H$4)<(Inputs!$E$65+1),1,0)) -> 0 | U8: =IF((MainModule!U$4-MainModule!$H$4)=0,0,IF((MainModule!U$4-MainModule!$H$4)<(Inputs!$E$65+1),1,0)) -> 0 | V8: =IF((MainModule!V$4-MainModule!$H$4)=0,0,IF((MainModule!V$4-MainModule!$H$4)<(Inputs!$E$65+1),1,0)) -> 0 | W8: =IF((MainModule!W$4-MainModule!$H$4)=0,0,IF((MainModule!W$4-MainModule!$H$4)<(Inputs!$E$65+1),1,0)) -> 0
C9: Capital related energy savings | D9: 1 or 0 | H9: =IF((MainModule!H$4-MainModule!$H$4)=0,0,IF((MainModule!H$4-MainModule!$H$4)<Inputs!$E$66+1,1,0)) -> 0 | I9: =IF((MainModule!I$4-MainModule!$H$4)=0,0,IF((MainModule!I$4-MainModule!$H$4)<Inputs!$E$66+1,1,0)) -> 1 | J9: =IF((MainModule!J$4-MainModule!$H$4)=0,0,IF((MainModule!J$4-MainModule!$H$4)<Inputs!$E$66+1,1,0)) -> 1 | K9: =IF((MainModule!K$4-MainModule!$H$4)=0,0,IF((MainModule!K$4-MainModule!$H$4)<Inputs!$E$66+1,1,0)) -> 1 | L9: =IF((MainModule!L$4-MainModule!$H$4)=0,0,IF((MainModule!L$4-MainModule!$H$4)<Inputs!$E$66+1,1,0)) -> 1 | M9: =IF((MainModule!M$4-MainModule!$H$4)=0,0,IF((MainModule!M$4-MainModule!$H$4)<Inputs!$E$66+1,1,0)) -> 1 | N9: =IF((MainModule!N$4-MainModule!$H$4)=0,0,IF((MainModule!N$4-MainModule!$H$4)<Inputs!$E$66+1,1,0)) -> 1 | O9: =IF((MainModule!O$4-MainModule!$H$4)=0,0,IF((MainModule!O$4-MainModule!$H$4)<Inputs!$E$66+1,1,0)) -> 1 | P9: =IF((MainModule!P$4-MainModule!$H$4)=0,0,IF((MainModule!P$4-MainModule!$H$4)<Inputs!$E$66+1,1,0)) -> 1 | Q9: =IF((MainModule!Q$4-MainModule!$H$4)=0,0,IF((MainModule!Q$4-MainModule!$H$4)<Inputs!$E$66+1,1,0)) -> 1 | R9: =IF((MainModule!R$4-MainModule!$H$4)=0,0,IF((MainModule!R$4-MainModule!$H$4)<Inputs!$E$66+1,1,0)) -> 1 | S9: =IF((MainModule!S$4-MainModule!$H$4)=0,0,IF((MainModule!S$4-MainModule!$H$4)<Inputs!$E$66+1,1,0)) -> 1 | T9: =IF((MainModule!T$4-MainModule!$H$4)=0,0,IF((MainModule!T$4-MainModule!$H$4)<Inputs!$E$66+1,1,0)) -> 1 | U9: =IF((MainModule!U$4-MainModule!$H$4)=0,0,IF((MainModule!U$4-MainModule!$H$4)<Inputs!$E$66+1,1,0)) -> 1 | V9: =IF((MainModule!V$4-MainModule!$H$4)=0,0,IF((MainModule!V$4-MainModule!$H$4)<Inputs!$E$66+1,1,0)) -> 1 | W9: =IF((MainModule!W$4-MainModule!$H$4)=0,0,IF((MainModule!W$4-MainModule!$H$4)<Inputs!$E$66+1,1,0)) -> 0
C10: Operational energy savings
C11: Electricity savings | D11: GWh | E11: =SUM(H11:W11) -> 71.4 | F11: =H11+NPV(RDR,I11:W11) -> 67.32095025 | H11: =H8*Inputs!$E$35*Inputs!$E$58 -> 0 | I11: =I8*Inputs!$E$35*Inputs!$E$58 -> 23.8 | J11: =J8*Inputs!$E$35*Inputs!$E$58 -> 23.8 | K11: =K8*Inputs!$E$35*Inputs!$E$58 -> 23.8 | L11: =L8*Inputs!$E$35*Inputs!$E$58 -> 0 | M11: =M8*Inputs!$E$35*Inputs!$E$58 -> 0 | N11: =N8*Inputs!$E$35*Inputs!$E$58 -> 0 | O11: =O8*Inputs!$E$35*Inputs!$E$58 -> 0 | P11: =P8*Inputs!$E$35*Inputs!$E$58 -> 0 | Q11: =Q8*Inputs!$E$35*Inputs!$E$58 -> 0 | R11: =R8*Inputs!$E$35*Inputs!$E$58 -> 0 | S11: =S8*Inputs!$E$35*Inputs!$E$58 -> 0 | T11: =T8*Inputs!$E$35*Inputs!$E$58 -> 0 | U11: =U8*Inputs!$E$35*Inputs!$E$58 -> 0 | V11: =V8*Inputs!$E$35*Inputs!$E$58 -> 0 | W11: =W8*Inputs!$E$35*Inputs!$E$58 -> 0
C12: Summer peak | H12: =H$11*Inputs!$E70 -> 0 | I12: =I$11*Inputs!$E70 -> 6.426 | J12: =J$11*Inputs!$E70 -> 6.426 | K12: =K$11*Inputs!$E70 -> 6.426 | L12: =L$11*Inputs!$E70 -> 0 | M12: =M$11*Inputs!$E70 -> 0 | N12: =N$11*Inputs!$E70 -> 0 | O12: =O$11*Inputs!$E70 -> 0 | P12: =P$11*Inputs!$E70 -> 0 | Q12: =Q$11*Inputs!$E70 -> 0 | R12: =R$11*Inputs!$E70 -> 0 | S12: =S$11*Inputs!$E70 -> 0 | T12: =T$11*Inputs!$E70 -> 0 | U12: =U$11*Inputs!$E70 -> 0 | V12: =V$11*Inputs!$E70 -> 0 | W12: =W$11*Inputs!$E70 -> 0
C13: Summer off-peak | H13: =H$11*Inputs!$E71 -> 0 | I13: =I$11*Inputs!$E71 -> 5.712 | J13: =J$11*Inputs!$E71 -> 5.712 | K13: =K$11*Inputs!$E71 -> 5.712 | L13: =L$11*Inputs!$E71 -> 0 | M13: =M$11*Inputs!$E71 -> 0 | N13: =N$11*Inputs!$E71 -> 0 | O13: =O$11*Inputs!$E71 -> 0 | P13: =P$11*Inputs!$E71 -> 0 | Q13: =Q$11*Inputs!$E71 -> 0 | R13: =R$11*Inputs!$E71 -> 0 | S13: =S$11*Inputs!$E71 -> 0 | T13: =T$11*Inputs!$E71 -> 0 | U13: =U$11*Inputs!$E71 -> 0 | V13: =V$11*Inputs!$E71 -> 0 | W13: =W$11*Inputs!$E71 -> 0
C14: Winter peak | H14: =H$11*Inputs!$E72 -> 0 | I14: =I$11*Inputs!$E72 -> 6.188 | J14: =J$11*Inputs!$E72 -> 6.188 | K14: =K$11*Inputs!$E72 -> 6.188 | L14: =L$11*Inputs!$E72 -> 0 | M14: =M$11*Inputs!$E72 -> 0 | N14: =N$11*Inputs!$E72 -> 0 | O14: =O$11*Inputs!$E72 -> 0 | P14: =P$11*Inputs!$E72 -> 0 | Q14: =Q$11*Inputs!$E72 -> 0 | R14: =R$11*Inputs!$E72 -> 0 | S14: =S$11*Inputs!$E72 -> 0 | T14: =T$11*Inputs!$E72 -> 0 | U14: =U$11*Inputs!$E72 -> 0 | V14: =V$11*Inputs!$E72 -> 0 | W14: =W$11*Inputs!$E72 -> 0
C15: Winter off-peak | H15: =H$11*Inputs!$E73 -> 0 | I15: =I$11*Inputs!$E73 -> 5.474 | J15: =J$11*Inputs!$E73 -> 5.474 | K15: =K$11*Inputs!$E73 -> 5.474 | L15: =L$11*Inputs!$E73 -> 0 | M15: =M$11*Inputs!$E73 -> 0 | N15: =N$11*Inputs!$E73 -> 0 | O15: =O$11*Inputs!$E73 -> 0 | P15: =P$11*Inputs!$E73 -> 0 | Q15: =Q$11*Inputs!$E73 -> 0 | R15: =R$11*Inputs!$E73 -> 0 | S15: =S$11*Inputs!$E73 -> 0 | T15: =T$11*Inputs!$E73 -> 0 | U15: =U$11*Inputs!$E73 -> 0 | V15: =V$11*Inputs!$E73 -> 0 | W15: =W$11*Inputs!$E73 -> 0
C16: Peak electricity savings | D16: MW | E16: =SUM(H16:W16) -> 9.056316591 | F16: =H16+NPV(RDR,I16:W16) -> 8.538933314 | H16: =H8*Inputs!$E$36*Inputs!$E$58 -> 0 | I16: =I8*Inputs!$E$36*Inputs!$E$58 -> 3.018772197 | J16: =J8*Inputs!$E$36*Inputs!$E$58 -> 3.018772197 | K16: =K8*Inputs!$E$36*Inputs!$E$58 -> 3.018772197 | L16: =L8*Inputs!$E$36*Inputs!$E$58 -> 0 | M16: =M8*Inputs!$E$36*Inputs!$E$58 -> 0 | N16: =N8*Inputs!$E$36*Inputs!$E$58 -> 0 | O16: =O8*Inputs!$E$36*Inputs!$E$58 -> 0 | P16: =P8*Inputs!$E$36*Inputs!$E$58 -> 0 | Q16: =Q8*Inputs!$E$36*Inputs!$E$58 -> 0 | R16: =R8*Inputs!$E$36*Inputs!$E$58 -> 0 | S16: =S8*Inputs!$E$36*Inputs!$E$58 -> 0 | T16: =T8*Inputs!$E$36*Inputs!$E$58 -> 0 | U16: =U8*Inputs!$E$36*Inputs!$E$58 -> 0 | V16: =V8*Inputs!$E$36*Inputs!$E$58 -> 0 | W16: =W8*Inputs!$E$36*Inputs!$E$58 -> 0
C17: Fuel savings | D17: Billion MBtu | E17: 781.956 | F17: =H17+NPV(RDR,I17:W17) -> 737.2832069 | H17: =H8*Inputs!$E$37*Inputs!$E$59 -> 0 | I17: =I8*Inputs!$E$37*Inputs!$E$59 -> 260.652 | J17: =J8*Inputs!$E$37*Inputs!$E$59 -> 260.652 | K17: =K8*Inputs!$E$37*Inputs!$E$59 -> 260.652 | L17: =L8*Inputs!$E$37*Inputs!$E$59 -> 0 | M17: =M8*Inputs!$E$37*Inputs!$E$59 -> 0 | N17: =N8*Inputs!$E$37*Inputs!$E$59 -> 0 | O17: =O8*Inputs!$E$37*Inputs!$E$59 -> 0 | P17: =P8*Inputs!$E$37*Inputs!$E$59 -> 0 | Q17: =Q8*Inputs!$E$37*Inputs!$E$59 -> 0 | R17: =R8*Inputs!$E$37*Inputs!$E$59 -> 0 | S17: =S8*Inputs!$E$37*Inputs!$E$59 -> 0 | T17: =T8*Inputs!$E$37*Inputs!$E$59 -> 0 | U17: =U8*Inputs!$E$37*Inputs!$E$59 -> 0 | V17: =V8*Inputs!$E$37*Inputs!$E$59 -> 0 | W17: =W8*Inputs!$E$37*Inputs!$E$59 -> 0
C18: Capital related energy savings
C19: Electricity savings | D19: GWh | E19: 142.8 | F19: =H19+NPV(RDR,I19:W19) -> 115.219946 | H19: =H9*Inputs!$E$35*Inputs!$E$61 -> 0 | I19: =I9*Inputs!$E$35*Inputs!$E$61 -> 10.2 | J19: =J9*Inputs!$E$35*Inputs!$E$61 -> 10.2 | K19: =K9*Inputs!$E$35*Inputs!$E$61 -> 10.2 | L19: =L9*Inputs!$E$35*Inputs!$E$61 -> 10.2 | M19: =M9*Inputs!$E$35*Inputs!$E$61 -> 10.2 | N19: =N9*Inputs!$E$35*Inputs!$E$61 -> 10.2 | O19: =O9*Inputs!$E$35*Inputs!$E$61 -> 10.2 | P19: =P9*Inputs!$E$35*Inputs!$E$61 -> 10.2 | Q19: =Q9*Inputs!$E$35*Inputs!$E$61 -> 10.2 | R19: =R9*Inputs!$E$35*Inputs!$E$61 -> 10.2 | S19: =S9*Inputs!$E$35*Inputs!$E$61 -> 10.2 | T19: =T9*Inputs!$E$35*Inputs!$E$61 -> 10.2 | U19: =U9*Inputs!$E$35*Inputs!$E$61 -> 10.2 | V19: =V9*Inputs!$E$35*Inputs!$E$61 -> 10.2 | W19: =W9*Inputs!$E$35*Inputs!$E$61 -> 0
C20: Summer peak | H20: =H$19*Inputs!$E70 -> 0 | I20: =I$19*Inputs!$E70 -> 2.754 | J20: =J$19*Inputs!$E70 -> 2.754 | K20: =K$19*Inputs!$E70 -> 2.754 | L20: =L$19*Inputs!$E70 -> 2.754 | M20: =M$19*Inputs!$E70 -> 2.754 | N20: =N$19*Inputs!$E70 -> 2.754 | O20: =O$19*Inputs!$E70 -> 2.754 | P20: =P$19*Inputs!$E70 -> 2.754 | Q20: =Q$19*Inputs!$E70 -> 2.754 | R20: =R$19*Inputs!$E70 -> 2.754 | S20: =S$19*Inputs!$E70 -> 2.754 | T20: =T$19*Inputs!$E70 -> 2.754 | U20: =U$19*Inputs!$E70 -> 2.754 | V20: =V$19*Inputs!$E70 -> 2.754 | W20: =W$19*Inputs!$E70 -> 0
C21: Summer off-peak | H21: =H$19*Inputs!$E71 -> 0 | I21: =I$19*Inputs!$E71 -> 2.448 | J21: =J$19*Inputs!$E71 -> 2.448 | K21: =K$19*Inputs!$E71 -> 2.448 | L21: =L$19*Inputs!$E71 -> 2.448 | M21: =M$19*Inputs!$E71 -> 2.448 | N21: =N$19*Inputs!$E71 -> 2.448 | O21: =O$19*Inputs!$E71 -> 2.448 | P21: =P$19*Inputs!$E71 -> 2.448 | Q21: =Q$19*Inputs!$E71 -> 2.448 | R21: =R$19*Inputs!$E71 -> 2.448 | S21: =S$19*Inputs!$E71 -> 2.448 | T21: =T$19*Inputs!$E71 -> 2.448 | U21: =U$19*Inputs!$E71 -> 2.448 | V21: =V$19*Inputs!$E71 -> 2.448 | W21: =W$19*Inputs!$E71 -> 0
C22: Winter peak | H22: =H$19*Inputs!$E72 -> 0 | I22: =I$19*Inputs!$E72 -> 2.652 | J22: =J$19*Inputs!$E72 -> 2.652 | K22: =K$19*Inputs!$E72 -> 2.652 | L22: =L$19*Inputs!$E72 -> 2.652 | M22: =M$19*Inputs!$E72 -> 2.652 | N22: =N$19*Inputs!$E72 -> 2.652 | O22: =O$19*Inputs!$E72 -> 2.652 | P22: =P$19*Inputs!$E72 -> 2.652 | Q22: =Q$19*Inputs!$E72 -> 2.652 | R22: =R$19*Inputs!$E72 -> 2.652 | S22: =S$19*Inputs!$E72 -> 2.652 | T22: =T$19*Inputs!$E72 -> 2.652 | U22: =U$19*Inputs!$E72 -> 2.652 | V22: =V$19*Inputs!$E72 -> 2.652 | W22: =W$19*Inputs!$E72 -> 0
C23: Winter off-peak | H23: =H$19*Inputs!$E73 -> 0 | I23: =I$19*Inputs!$E73 -> 2.346 | J23: =J$19*Inputs!$E73 -> 2.346 | K23: =K$19*Inputs!$E73 -> 2.346 | L23: =L$19*Inputs!$E73 -> 2.346 | M23: =M$19*Inputs!$E73 -> 2.346 | N23: =N$19*Inputs!$E73 -> 2.346 | O23: =O$19*Inputs!$E73 -> 2.346 | P23: =P$19*Inputs!$E73 -> 2.346 | Q23: =Q$19*Inputs!$E73 -> 2.346 | R23: =R$19*Inputs!$E73 -> 2.346 | S23: =S$19*Inputs!$E73 -> 2.346 | T23: =T$19*Inputs!$E73 -> 2.346 | U23: =U$19*Inputs!$E73 -> 2.346 | V23: =V$19*Inputs!$E73 -> 2.346 | W23: =W$19*Inputs!$E73 -> 0
C24: Peak electricity savings | D24: MW | E24: 18.11263318 | F24: =H24+NPV(RDR,I24:W24) -> 14.61440208 | H24: =H9*Inputs!$E$36*Inputs!$E$61 -> 0 | I24: =I9*Inputs!$E$36*Inputs!$E$61 -> 1.293759513 | J24: =J9*Inputs!$E$36*Inputs!$E$61 -> 1.293759513 | K24: =K9*Inputs!$E$36*Inputs!$E$61 -> 1.293759513 | L24: =L9*Inputs!$E$36*Inputs!$E$61 -> 1.293759513 | M24: =M9*Inputs!$E$36*Inputs!$E$61 -> 1.293759513 | N24: =N9*Inputs!$E$36*Inputs!$E$61 -> 1.293759513 | O24: =O9*Inputs!$E$36*Inputs!$E$61 -> 1.293759513 | P24: =P9*Inputs!$E$36*Inputs!$E$61 -> 1.293759513 | Q24: =Q9*Inputs!$E$36*Inputs!$E$61 -> 1.293759513 | R24: =R9*Inputs!$E$36*Inputs!$E$61 -> 1.293759513 | S24: =S9*Inputs!$E$36*Inputs!$E$61 -> 1.293759513 | T24: =T9*Inputs!$E$36*Inputs!$E$61 -> 1.293759513 | U24: =U9*Inputs!$E$36*Inputs!$E$61 -> 1.293759513 | V24: =V9*Inputs!$E$36*Inputs!$E$61 -> 1.293759513 | W24: =W9*Inputs!$E$36*Inputs!$E$61 -> 0
C25: Fuel savings | D25: Billion MBtu | E25: 1563.912 | F25: =H25+NPV(RDR,I25:W25) -> 1261.861738 | H25: =H9*Inputs!$E$37*Inputs!$E$62 -> 0 | I25: =I9*Inputs!$E$37*Inputs!$E$62 -> 111.708 | J25: =J9*Inputs!$E$37*Inputs!$E$62 -> 111.708 | K25: =K9*Inputs!$E$37*Inputs!$E$62 -> 111.708 | L25: =L9*Inputs!$E$37*Inputs!$E$62 -> 111.708 | M25: =M9*Inputs!$E$37*Inputs!$E$62 -> 111.708 | N25: =N9*Inputs!$E$37*Inputs!$E$62 -> 111.708 | O25: =O9*Inputs!$E$37*Inputs!$E$62 -> 111.708 | P25: =P9*Inputs!$E$37*Inputs!$E$62 -> 111.708 | Q25: =Q9*Inputs!$E$37*Inputs!$E$62 -> 111.708 | R25: =R9*Inputs!$E$37*Inputs!$E$62 -> 111.708 | S25: =S9*Inputs!$E$37*Inputs!$E$62 -> 111.708 | T25: =T9*Inputs!$E$37*Inputs!$E$62 -> 111.708 | U25: =U9*Inputs!$E$37*Inputs!$E$62 -> 111.708 | V25: =V9*Inputs!$E$37*Inputs!$E$62 -> 111.708 | W25: =W9*Inputs!$E$37*Inputs!$E$62 -> 0
C26: Total energy savings at customer site
C27: Electricity savings | D27: GWh | E27: =SUM(H27:W27) -> 214.2 | F27: =H27+NPV(RDR,I27:W27) -> 182.5408963 | H27: =H11+H19 -> 0 | I27: =I11+I19 -> 34 | J27: =J11+J19 -> 34 | K27: =K11+K19 -> 34 | L27: =L11+L19 -> 10.2 | M27: =M11+M19 -> 10.2 | N27: 10.2 | O27: 10.2 | P27: 10.2 | Q27: 10.2 | R27: 10.2 | S27: 10.2 | T27: 10.2 | U27: 10.2 | V27: 10.2 | W27: 0
C28: Summer peak | H28: =H12+H20 -> 0 | I28: =I12+I20 -> 9.18 | J28: 9.18 | K28: =K12+K20 -> 9.18 | L28: 2.754 | M28: 2.754 | N28: 2.754 | O28: 2.754 | P28: 2.754 | Q28: 2.754 | R28: 2.754 | S28: 2.754 | T28: 2.754 | U28: 2.754 | V28: 2.754 | W28: 0
C29: Summer off-peak | H29: 0 | I29: 8.16 | J29: 8.16 | K29: =K13+K21 -> 8.16 | L29: 2.448 | M29: 2.448 | N29: 2.448 | O29: 2.448 | P29: 2.448 | Q29: 2.448 | R29: 2.448 | S29: 2.448 | T29: 2.448 | U29: 2.448 | V29: 2.448 | W29: 0
C30: Winter peak | H30: 0 | I30: =I14+I22 -> 8.84 | J30: 8.84 | K30: =K14+K22 -> 8.84 | L30: 2.652 | M30: 2.652 | N30: 2.652 | O30: 2.652 | P30: 2.652 | Q30: 2.652 | R30: 2.652 | S30: 2.652 | T30: 2.652 | U30: 2.652 | V30: 2.652 | W30: 0
C31: Winter off-peak | H31: 0 | I31: 7.82 | J31: 7.82 | K31: =K15+K23 -> 7.82 | L31: 2.346 | M31: 2.346 | N31: 2.346 | O31: 2.346 | P31: 2.346 | Q31: 2.346 | R31: 2.346 | S31: 2.346 | T31: 2.346 | U31: 2.346 | V31: 2.346 | W31: 0
C32: Electricity savings | D32: Billion MBtu | E32: =E27*3.412 -> 730.8504 | F32: =F27*3.412 -> 622.8295381
C33: Peak electricity savings | D33: MW | E33: =SUM(H33:W33) -> 27.16894977 | F33: =H33+NPV(RDR,I33:W33) -> 23.1533354 | H33: =H16+H24 -> 0 | I33: =I16+I24 -> 4.31253171 | J33: 4.31253171 | K33: 4.31253171 | L33: 1.293759513 | M33: 1.293759513 | N33: 1.293759513 | O33: 1.293759513 | P33: 1.293759513 | Q33: 1.293759513 | R33: 1.293759513 | S33: 1.293759513 | T33: 1.293759513 | U33: 1.293759513 | V33: 1.293759513 | W33: 0
C34: Fuel savings | D34: Billion MBtu | E34: =SUM(H34:W34) -> 2345.868 | F34: =H34+NPV(RDR,I34:W34) -> 1999.144945 | H34: =H17+H25 -> 0 | I34: =I17+I25 -> 372.36 | J34: 372.36 | K34: 372.36 | L34: 111.708 | M34: 111.708 | N34: 111.708 | O34: 111.708 | P34: 111.708 | Q34: 111.708 | R34: 111.708 | S34: 111.708 | T34: 111.708 | U34: 111.708 | V34: 111.708 | W34: 0
C35: Total energy savings at generator
C36: Electricity savings | D36: GWh | E36: =SUM(H36:W36) -> 227.8723404 | F36: =H36+NPV(RDR,I36:W36) -> 194.1924428 | H36: =H27/(1-Inputs!$E$85) -> 0 | I36: =I27/(1-Inputs!$E$85) -> 36.17021277 | J36: =J27/(1-Inputs!$E$85) -> 36.17021277 | K36: =K27/(1-Inputs!$E$85) -> 36.17021277 | L36: =L27/(1-Inputs!$E$85) -> 10.85106383 | M36: =M27/(1-Inputs!$E$85) -> 10.85106383 | N36: =N27/(1-Inputs!$E$85) -> 10.85106383 | O36: =O27/(1-Inputs!$E$85) -> 10.85106383 | P36: =P27/(1-Inputs!$E$85) -> 10.85106383 | Q36: =Q27/(1-Inputs!$E$85) -> 10.85106383 | R36: =R27/(1-Inputs!$E$85) -> 10.85106383 | S36: =S27/(1-Inputs!$E$85) -> 10.85106383 | T36: =T27/(1-Inputs!$E$85) -> 10.85106383 | U36: =U27/(1-Inputs!$E$85) -> 10.85106383 | V36: =V27/(1-Inputs!$E$85) -> 10.85106383 | W36: =W27/(1-Inputs!$E$85) -> 0
C37: Summer peak | H37: =H28/(1-Inputs!$E$85) -> 0 | I37: =I28/(1-Inputs!$E$85) -> 9.765957447 | J37: =J28/(1-Inputs!$E$85) -> 9.765957447 | K37: =K28/(1-Inputs!$E$85) -> 9.765957447 | L37: =L28/(1-Inputs!$E$85) -> 2.929787234 | M37: =M28/(1-Inputs!$E$85) -> 2.929787234 | N37: =N28/(1-Inputs!$E$85) -> 2.929787234 | O37: =O28/(1-Inputs!$E$85) -> 2.929787234 | P37: =P28/(1-Inputs!$E$85) -> 2.929787234 | Q37: =Q28/(1-Inputs!$E$85) -> 2.929787234 | R37: =R28/(1-Inputs!$E$85) -> 2.929787234 | S37: =S28/(1-Inputs!$E$85) -> 2.929787234 | T37: =T28/(1-Inputs!$E$85) -> 2.929787234 | U37: =U28/(1-Inputs!$E$85) -> 2.929787234 | V37: =V28/(1-Inputs!$E$85) -> 2.929787234 | W37: =W28/(1-Inputs!$E$85) -> 0
C38: Summer off-peak | H38: =H29/(1-Inputs!$E$85) -> 0 | I38: =I29/(1-Inputs!$E$85) -> 8.680851064 | J38: =J29/(1-Inputs!$E$85) -> 8.680851064 | K38: =K29/(1-Inputs!$E$85) -> 8.680851064 | L38: =L29/(1-Inputs!$E$85) -> 2.604255319 | M38: =M29/(1-Inputs!$E$85) -> 2.604255319 | N38: =N29/(1-Inputs!$E$85) -> 2.604255319 | O38: =O29/(1-Inputs!$E$85) -> 2.604255319 | P38: =P29/(1-Inputs!$E$85) -> 2.604255319 | Q38: =Q29/(1-Inputs!$E$85) -> 2.604255319 | R38: =R29/(1-Inputs!$E$85) -> 2.604255319 | S38: =S29/(1-Inputs!$E$85) -> 2.604255319 | T38: =T29/(1-Inputs!$E$85) -> 2.604255319 | U38: =U29/(1-Inputs!$E$85) -> 2.604255319 | V38: =V29/(1-Inputs!$E$85) -> 2.604255319 | W38: =W29/(1-Inputs!$E$85) -> 0
C39: Winter peak | H39: =H30/(1-Inputs!$E$85) -> 0 | I39: =I30/(1-Inputs!$E$85) -> 9.404255319 | J39: =J30/(1-Inputs!$E$85) -> 9.404255319 | K39: =K30/(1-Inputs!$E$85) -> 9.404255319 | L39: =L30/(1-Inputs!$E$85) -> 2.821276596 | M39: =M30/(1-Inputs!$E$85) -> 2.821276596 | N39: =N30/(1-Inputs!$E$85) -> 2.821276596 | O39: =O30/(1-Inputs!$E$85) -> 2.821276596 | P39: =P30/(1-Inputs!$E$85) -> 2.821276596 | Q39: =Q30/(1-Inputs!$E$85) -> 2.821276596 | R39: =R30/(1-Inputs!$E$85) -> 2.821276596 | S39: =S30/(1-Inputs!$E$85) -> 2.821276596 | T39: =T30/(1-Inputs!$E$85) -> 2.821276596 | U39: =U30/(1-Inputs!$E$85) -> 2.821276596 | V39: =V30/(1-Inputs!$E$85) -> 2.821276596 | W39: =W30/(1-Inputs!$E$85) -> 0
C40: Winter off-peak | H40: =H31/(1-Inputs!$E$85) -> 0 | I40: =I31/(1-Inputs!$E$85) -> 8.319148936 | J40: =J31/(1-Inputs!$E$85) -> 8.319148936 | K40: =K31/(1-Inputs!$E$85) -> 8.319148936 | L40: =L31/(1-Inputs!$E$85) -> 2.495744681 | M40: =M31/(1-Inputs!$E$85) -> 2.495744681 | N40: =N31/(1-Inputs!$E$85) -> 2.495744681 | O40: =O31/(1-Inputs!$E$85) -> 2.495744681 | P40: =P31/(1-Inputs!$E$85) -> 2.495744681 | Q40: =Q31/(1-Inputs!$E$85) -> 2.495744681 | R40: =R31/(1-Inputs!$E$85) -> 2.495744681 | S40: =S31/(1-Inputs!$E$85) -> 2.495744681 | T40: =T31/(1-Inputs!$E$85) -> 2.495744681 | U40: =U31/(1-Inputs!$E$85) -> 2.495744681 | V40: =V31/(1-Inputs!$E$85) -> 2.495744681 | W40: =W31/(1-Inputs!$E$85) -> 0
C41: Electricity savings | D41: Billion MBtu | E41: =E36*3.412 -> 777.5004255 | F41: =F36*3.412 -> 662.584615
C42: Peak electricity savings | D42: MW | E42: =SUM(H42:W42) -> 32.79011179 | F42: =H42+NPV(RDR,I42:W42) -> 27.94368065 | H42: =H33/(1-Inputs!$E$86) -> 0 | I42: =I33/(1-Inputs!$E$86) -> 5.20477965 | J42: =J33/(1-Inputs!$E$86) -> 5.20477965 | K42: =K33/(1-Inputs!$E$86) -> 5.20477965 | L42: =L33/(1-Inputs!$E$86) -> 1.561433895 | M42: =M33/(1-Inputs!$E$86) -> 1.561433895 | N42: =N33/(1-Inputs!$E$86) -> 1.561433895 | O42: =O33/(1-Inputs!$E$86) -> 1.561433895 | P42: =P33/(1-Inputs!$E$86) -> 1.561433895 | Q42: =Q33/(1-Inputs!$E$86) -> 1.561433895 | R42: =R33/(1-Inputs!$E$86) -> 1.561433895 | S42: =S33/(1-Inputs!$E$86) -> 1.561433895 | T42: =T33/(1-Inputs!$E$86) -> 1.561433895 | U42: =U33/(1-Inputs!$E$86) -> 1.561433895 | V42: =V33/(1-Inputs!$E$86) -> 1.561433895 | W42: =W33/(1-Inputs!$E$86) -> 0
C43: Fuel savings | D43: Billion MBtu | E43: =SUM(H43:W43) -> 2345.868 | F43: =H43+NPV(RDR,I43:W43) -> 1999.144945 | H43: =H17+H25 -> 0 | I43: =I17+I25 -> 372.36 | J43: =J17+J25 -> 372.36 | K43: =K17+K25 -> 372.36 | L43: 111.708 | M43: 111.708 | N43: 111.708 | O43: 111.708 | P43: 111.708 | Q43: 111.708 | R43: 111.708 | S43: =S17+S25 -> 111.708 | T43: =T17+T25 -> 111.708 | U43: =U17+U25 -> 111.708 | V43: =V17+V25 -> 111.708 | W43: =W17+W25 -> 0
B46: Emissions Savings | E46: Total
C47: Electricity
C48: CO2 | D48: tons | E48: =SUM(H48:W48) -> 173284.8349 | H48: =Inputs!$E$190*H36*0.453592 -> 0 | I48: =Inputs!$E$190*I36*0.453592 -> 27505.52935 | J48: =Inputs!$E$190*J36*0.453592 -> 27505.52935 | K48: =Inputs!$E$190*K36*0.453592 -> 27505.52935 | L48: =Inputs!$E$190*L36*0.453592 -> 8251.658806 | M48: =Inputs!$E$190*M36*0.453592 -> 8251.658806 | N48: =Inputs!$E$190*N36*0.453592 -> 8251.658806 | O48: =Inputs!$E$190*O36*0.453592 -> 8251.658806 | P48: =Inputs!$E$190*P36*0.453592 -> 8251.658806 | Q48: =Inputs!$E$190*Q36*0.453592 -> 8251.658806 | R48: =Inputs!$E$190*R36*0.453592 -> 8251.658806 | S48: =Inputs!$E$190*S36*0.453592 -> 8251.658806 | T48: =Inputs!$E$190*T36*0.453592 -> 8251.658806 | U48: =Inputs!$E$190*U36*0.453592 -> 8251.658806 | V48: =Inputs!$E$190*V36*0.453592 -> 8251.658806 | W48: =Inputs!$E$190*W36*0.453592 -> 0
C49: NOx | D49: lbs. | E49: =SUM(H49:W49) -> 0 | H49: =Inputs!$E$191*MainModule!H36*1000 -> 0 | I49: =Inputs!$E$191*MainModule!I36*1000 -> 0 | J49: =Inputs!$E$191*MainModule!J36*1000 -> 0 | K49: =Inputs!$E$191*MainModule!K36*1000 -> 0 | L49: =Inputs!$E$191*MainModule!L36*1000 -> 0 | M49: =Inputs!$E$191*MainModule!M36*1000 -> 0 | N49: =Inputs!$E$191*MainModule!N36*1000 -> 0 | O49: =Inputs!$E$191*MainModule!O36*1000 -> 0 | P49: =Inputs!$E$191*MainModule!P36*1000 -> 0 | Q49: =Inputs!$E$191*MainModule!Q36*1000 -> 0 | R49: =Inputs!$E$191*MainModule!R36*1000 -> 0 | S49: =Inputs!$E$191*MainModule!S36*1000 -> 0 | T49: =Inputs!$E$191*MainModule!T36*1000 -> 0 | U49: =Inputs!$E$191*MainModule!U36*1000 -> 0 | V49: =Inputs!$E$191*MainModule!V36*1000 -> 0 | W49: =Inputs!$E$191*MainModule!W36*1000 -> 0
C50: SO2 | D50: lbs. | E50: =SUM(H50:W50) -> 0 | H50: =Inputs!$E$192*MainModule!H36*1000 -> 0 | I50: =Inputs!$E$192*MainModule!I36*1000 -> 0 | J50: =Inputs!$E$192*MainModule!J36*1000 -> 0 | K50: =Inputs!$E$192*MainModule!K36*1000 -> 0 | L50: =Inputs!$E$192*MainModule!L36*1000 -> 0 | M50: =Inputs!$E$192*MainModule!M36*1000 -> 0 | N50: =Inputs!$E$192*MainModule!N36*1000 -> 0 | O50: =Inputs!$E$192*MainModule!O36*1000 -> 0 | P50: =Inputs!$E$192*MainModule!P36*1000 -> 0 | Q50: =Inputs!$E$192*MainModule!Q36*1000 -> 0 | R50: =Inputs!$E$192*MainModule!R36*1000 -> 0 | S50: =Inputs!$E$192*MainModule!S36*1000 -> 0 | T50: =Inputs!$E$192*MainModule!T36*1000 -> 0 | U50: =Inputs!$E$192*MainModule!U36*1000 -> 0 | V50: =Inputs!$E$192*MainModule!V36*1000 -> 0 | W50: =Inputs!$E$192*MainModule!W36*1000 -> 0
C51: Fuel
C52: CO2 | D52: tons | E52: =SUM(H52:W52) -> 125559.901 | H52: =Inputs!$E$194*MainModule!H43*0.453592 -> 0 | I52: =Inputs!$E$194*MainModule!I43*0.453592 -> 19930.14302 | J52: =Inputs!$E$194*MainModule!J43*0.453592 -> 19930.14302 | K52: =Inputs!$E$194*MainModule!K43*0.453592 -> 19930.14302 | L52: =Inputs!$E$194*MainModule!L43*0.453592 -> 5979.042906 | M52: =Inputs!$E$194*MainModule!M43*0.453592 -> 5979.042906 | N52: =Inputs!$E$194*MainModule!N43*0.453592 -> 5979.042906 | O52: =Inputs!$E$194*MainModule!O43*0.453592 -> 5979.042906 | P52: =Inputs!$E$194*MainModule!P43*0.453592 -> 5979.042906 | Q52: =Inputs!$E$194*MainModule!Q43*0.453592 -> 5979.042906 | R52: =Inputs!$E$194*MainModule!R43*0.453592 -> 5979.042906 | S52: =Inputs!$E$194*MainModule!S43*0.453592 -> 5979.042906 | T52: =Inputs!$E$194*MainModule!T43*0.453592 -> 5979.042906 | U52: =Inputs!$E$194*MainModule!U43*0.453592 -> 5979.042906 | V52: =Inputs!$E$194*MainModule!V43*0.453592 -> 5979.042906 | W52: =Inputs!$E$194*MainModule!W43*0.453592 -> 0
C53: NOx | D53: lbs. | E53: =SUM(H53:W53) -> 321383.916 | H53: =Inputs!$E$195*MainModule!H43*1000 -> 0 | I53: =Inputs!$E$195*MainModule!I43*1000 -> 51013.32 | J53: =Inputs!$E$195*MainModule!J43*1000 -> 51013.32 | K53: =Inputs!$E$195*MainModule!K43*1000 -> 51013.32 | L53: =Inputs!$E$195*MainModule!L43*1000 -> 15303.996 | M53: =Inputs!$E$195*MainModule!M43*1000 -> 15303.996 | N53: =Inputs!$E$195*MainModule!N43*1000 -> 15303.996 | O53: =Inputs!$E$195*MainModule!O43*1000 -> 15303.996 | P53: =Inputs!$E$195*MainModule!P43*1000 -> 15303.996 | Q53: =Inputs!$E$195*MainModule!Q43*1000 -> 15303.996 | R53: =Inputs!$E$195*MainModule!R43*1000 -> 15303.996 | S53: =Inputs!$E$195*MainModule!S43*1000 -> 15303.996 | T53: =Inputs!$E$195*MainModule!T43*1000 -> 15303.996 | U53: =Inputs!$E$195*MainModule!U43*1000 -> 15303.996 | V53: =Inputs!$E$195*MainModule!V43*1000 -> 15303.996 | W53: =Inputs!$E$195*MainModule!W43*1000 -> 0
C54: SO2 | D54: lbs. | E54: =SUM(H54:W54) -> 0 | H54: =Inputs!$E$196*MainModule!H43*1000 -> 0 | I54: =Inputs!$E$196*MainModule!I43*1000 -> 0 | J54: =Inputs!$E$196*MainModule!J43*1000 -> 0 | K54: =Inputs!$E$196*MainModule!K43*1000 -> 0 | L54: =Inputs!$E$196*MainModule!L43*1000 -> 0 | M54: =Inputs!$E$196*MainModule!M43*1000 -> 0 | N54: =Inputs!$E$196*MainModule!N43*1000 -> 0 | O54: =Inputs!$E$196*MainModule!O43*1000 -> 0 | P54: =Inputs!$E$196*MainModule!P43*1000 -> 0 | Q54: =Inputs!$E$196*MainModule!Q43*1000 -> 0 | R54: =Inputs!$E$196*MainModule!R43*1000 -> 0 | S54: =Inputs!$E$196*MainModule!S43*1000 -> 0 | T54: =Inputs!$E$196*MainModule!T43*1000 -> 0 | U54: =Inputs!$E$196*MainModule!U43*1000 -> 0 | V54: =Inputs!$E$196*MainModule!V43*1000 -> 0 | W54: =Inputs!$E$196*MainModule!W43*1000 -> 0
C55: Total emissions savings
C56: CO2 | D56: tons | E56: =SUM(H56:W56) -> 298844.736 | H56: =H48+H52 -> 0 | I56: =I48+I52 -> 47435.67237 | J56: =J48+J52 -> 47435.67237 | K56: 47435.67237 | L56: 14230.70171 | M56: 14230.70171 | N56: 14230.70171 | O56: 14230.70171 | P56: 14230.70171 | Q56: 14230.70171 | R56: 14230.70171 | S56: 14230.70171 | T56: 14230.70171 | U56: 14230.70171 | V56: 14230.70171 | W56: 0
C57: NOx | D57: lbs. | E57: =SUM(H57:W57) -> 321383.916 | H57: =H49+H53 -> 0 | I57: 51013.32 | J57: 51013.32 | K57: 51013.32 | L57: 15303.996 | M57: 15303.996 | N57: 15303.996 | O57: 15303.996 | P57: 15303.996 | Q57: 15303.996 | R57: 15303.996 | S57: 15303.996 | T57: 15303.996 | U57: 15303.996 | V57: 15303.996 | W57: 0
C58: SO2 | D58: lbs. | E58: =SUM(H58:W58) -> 0 | H58: 0 | I58: 0 | J58: 0 | K58: 0 | L58: 0 | M58: 0 | N58: 0 | O58: 0 | P58: 0 | Q58: 0 | R58: 0 | S58: 0 | T58: 0 | U58: 0 | V58: 0 | W58: 0
B61: SEP Cost Calculations | E61: NPV
C62: All SEP Cost
C63: SEP implementation cost | D63: $000 | E63: =H63+NPV(RDR,MainModule!I63:W63) -> 1206.321209 | H63: =SUM(H64:H65) -> 612.0743082 | I63: =SUM(I64:I65) -> 612.0743082 | K63: =SUM(K64:K65) -> 0 | L63: =SUM(L64:L65) -> 0 | N63: =SUM(N64:N65) -> 0 | O63: =SUM(O64:O65) -> 0 | Q63: =SUM(Q64:Q65) -> 0 | R63: =SUM(R64:R65) -> 0 | T63: =SUM(T64:T65) -> 0 | U63: =SUM(U64:U65) -> 0
C64: Initial SEP cycle | D64: $000 | E64: =H64+NPV(RDR,MainModule!I64:W64) -> 1206.321209 | H64: =Inputs!E109*(12/Inputs!E98) -> 612.0743082 | I64: =Inputs!E109*(1-12/Inputs!E98) -> 612.0743082
C65: Subsequent SEP cycles | D65: $000 | E65: =H65+NPV(RDR,MainModule!I65:W65) -> 0 | K65: =IF(Inputs!E65>4,Inputs!$E$123*(1-12/Inputs!E98),0) -> 0 | L65: =IF(Inputs!E65>4,Inputs!$E$123*(12/Inputs!E98),0) -> 0 | N65: =IF(Inputs!E65>7,Inputs!$E$129*(1-12/Inputs!E98),0) -> 0 | O65: =IF(Inputs!E65>7,Inputs!$E$129*(12/Inputs!E98),0) -> 0 | Q65: =IF(Inputs!E65>10,Inputs!$E$129*(1-12/Inputs!E98),0) -> 0 | R65: =IF(Inputs!E65>10,Inputs!$E$129*(12/Inputs!E98),0) -> 0 | T65: =IF(Inputs!E65>13,Inputs!$E$129*(1-12/Inputs!E98),0) -> 0 | U65: =IF(Inputs!E65>13,Inputs!$E$129*(12/Inputs!E98),0) -> 0
C66: Capital improvement cost | D66: $000 | E66: =H66+NPV(RDR,MainModule!I66:W66) -> 9594.065915 | I66: =(I19*Inputs!E135*1000)+(I25*Inputs!E136) -> 9881.887893
C67: Maintenance cost | D67: $000 | E67: =H67+NPV(RDR,MainModule!I67:W67) -> 873.1366572 | I67: =Inputs!$E$112*I8*((24-Inputs!E98)/12) -> 0 | J67: =Inputs!$E$112*J8 -> 470 | K67: =Inputs!$E$112*K8 -> 470 | L67: =Inputs!$E$112*L8 -> 0 | M67: =Inputs!$E$112*M8 -> 0 | N67: =Inputs!$E$112*N8 -> 0 | O67: =Inputs!$E$112*O8 -> 0 | P67: =Inputs!$E$112*P8 -> 0 | Q67: =Inputs!$E$112*Q8 -> 0 | R67: =Inputs!$E$112*R8 -> 0 | S67: =Inputs!$E$112*S8 -> 0 | T67: =Inputs!$E$112*T8 -> 0 | U67: =Inputs!$E$112*U8 -> 0 | V67: =Inputs!$E$112*V8 -> 0 | W67: =Inputs!$E$112*W8 -> 0
C68: Administrative cost | D68: $000 | E68: =H68+NPV(RDR,MainModule!I68:W68) -> 0 | H68: =SUM(H69:H70) -> 0 | I68: =SUM(I69:I70) -> 0 | J68: 0 | K68: 0 | L68: 0 | M68: 0 | N68: 0 | O68: 0 | P68: 0 | Q68: 0 | R68: 0 | S68: 0 | T68: 0 | U68: 0 | V68: 0 | W68: 0
C69: Initial SEP cycle | D69: $000 | E69: =H69+NPV(RDR,MainModule!I69:W69) -> 0 | H69: =Inputs!$E$115*(12/Inputs!E98) -> 0 | I69: =Inputs!$E$115*(1-12/Inputs!E98) -> 0
C70: Subsequent SEP cycles | D70: $000 | E70: =H70+NPV(RDR,MainModule!I70:W70) -> 0 | J70: =IF(J$8=1,Inputs!$E$116,0) -> 0 | K70: =IF(K$8=1,Inputs!$E$116,0) -> 0 | L70: =IF(L$8=1,Inputs!$E$116,0) -> 0 | M70: =IF(M$8=1,Inputs!$E$116,0) -> 0 | N70: =IF(N$8=1,Inputs!$E$116,0) -> 0 | O70: =IF(O$8=1,Inputs!$E$116,0) -> 0 | P70: =IF(P$8=1,Inputs!$E$116,0) -> 0 | Q70: =IF(Q$8=1,Inputs!$E$116,0) -> 0 | R70: =IF(R$8=1,Inputs!$E$116,0) -> 0 | S70: =IF(S$8=1,Inputs!$E$116,0) -> 0 | T70: =IF(T$8=1,Inputs!$E$116,0) -> 0 | U70: =IF(U$8=1,Inputs!$E$116,0) -> 0 | V70: =IF(V$8=1,Inputs!$E$116,0) -> 0 | W70: =IF(W$8=1,Inputs!$E$116,0) -> 0
C71: Total cost | D71: $000 | E71: =H71+NPV(RDR,MainModule!I71:W71) -> 11673.52378 | H71: =SUM(H63,H66:H68) -> 612.0743082 | I71: =SUM(I63,I66:I68) -> 10493.9622 | J71: =SUM(J63,J66:J68) -> 470 | K71: =SUM(K63,K66:K68) -> 470 | L71: =SUM(L63,L66:L68) -> 0 | M71: 0 | N71: 0 | O71: 0 | P71: 0 | Q71: 0 | R71: 0 | S71: 0 | T71: 0 | U71: 0 | V71: 0 | W71: 0
C73: Participant cost | D73: $000 | E73: =H73+NPV(RDR,MainModule!I73:W73) -> 8171.466647 | H73: =SUM(H74:H76) -> 428.4520157 | I73: =SUM(I74:I76) -> 7345.773541 | J73: 329 | K73: 329 | L73: 0 | M73: 0 | N73: 0 | O73: 0 | P73: 0 | Q73: 0 | R73: 0 | S73: 0 | T73: 0 | U73: 0 | V73: 0 | W73: 0
C74: SEP implementation cost | D74: $000 | E74: =H74+NPV(RDR,MainModule!I74:W74) -> 844.4248465 | H74: =H63*(1-Inputs!$E$91) -> 428.4520157 | I74: =I63*(1-Inputs!$E$91) -> 428.4520157 | J74: =J63*(1-Inputs!$E$91) -> 0 | K74: =K63*(1-Inputs!$E$91) -> 0 | L74: =L63*(1-Inputs!$E$91) -> 0 | M74: =M63*(1-Inputs!$E$91) -> 0 | N74: =N63*(1-Inputs!$E$91) -> 0 | O74: =O63*(1-Inputs!$E$91) -> 0 | P74: =P63*(1-Inputs!$E$91) -> 0 | Q74: =Q63*(1-Inputs!$E$91) -> 0 | R74: =R63*(1-Inputs!$E$91) -> 0 | S74: =S63*(1-Inputs!$E$91) -> 0 | T74: =T63*(1-Inputs!$E$91) -> 0 | U74: =U63*(1-Inputs!$E$91) -> 0 | V74: =V63*(1-Inputs!$E$91) -> 0 | W74: =W63*(1-Inputs!$E$91) -> 0
C75: Capital improvement cost | D75: $000 | E75: =H75+NPV(RDR,MainModule!I75:W75) -> 6715.846141 | H75: =H66*(1-Inputs!$E$93) -> 0 | I75: =I66*(1-Inputs!$E$93) -> 6917.321525 | J75: =J66*(1-Inputs!$E$93) -> 0 | K75: =K66*(1-Inputs!$E$93) -> 0 | L75: =L66*(1-Inputs!$E$93) -> 0 | M75: =M66*(1-Inputs!$E$93) -> 0 | N75: =N66*(1-Inputs!$E$93) -> 0 | O75: =O66*(1-Inputs!$E$93) -> 0 | P75: =P66*(1-Inputs!$E$93) -> 0 | Q75: =Q66*(1-Inputs!$E$93) -> 0 | R75: =R66*(1-Inputs!$E$93) -> 0 | S75: =S66*(1-Inputs!$E$93) -> 0 | T75: =T66*(1-Inputs!$E$93) -> 0 | U75: =U66*(1-Inputs!$E$93) -> 0 | V75: =V66*(1-Inputs!$E$93) -> 0 | W75: =W66*(1-Inputs!$E$93) -> 0
C76: Maintenance cost | D76: $000 | E76: =H76+NPV(RDR,MainModule!I76:W76) -> 611.19566 | H76: =H67*(1-Inputs!$E$92) -> 0 | I76: =I67*(1-Inputs!$E$92) -> 0 | J76: =J67*(1-Inputs!$E$92) -> 329 | K76: =K67*(1-Inputs!$E$92) -> 329 | L76: =L67*(1-Inputs!$E$92) -> 0 | M76: =M67*(1-Inputs!$E$92) -> 0 | N76: =N67*(1-Inputs!$E$92) -> 0 | O76: =O67*(1-Inputs!$E$92) -> 0 | P76: =P67*(1-Inputs!$E$92) -> 0 | Q76: =Q67*(1-Inputs!$E$92) -> 0 | R76: =R67*(1-Inputs!$E$92) -> 0 | S76: =S67*(1-Inputs!$E$92) -> 0 | T76: =T67*(1-Inputs!$E$92) -> 0 | U76: =U67*(1-Inputs!$E$92) -> 0 | V76: =V67*(1-Inputs!$E$92) -> 0 | W76: =W67*(1-Inputs!$E$92) -> 0
C77: Program administrator cost | D77: $000 | E77: =H77+NPV(RDR,MainModule!I77:W77) -> 3502.057135 | H77: =SUM(H78:H81) -> 183.6222924 | I77: =SUM(I78:I81) -> 3148.18866 | J77: =SUM(J78:J81) -> 141 | K77: 141 | L77: 0 | M77: 0 | N77: 0 | O77: 0 | P77: 0 | Q77: 0 | R77: 0 | S77: 0 | T77: 0 | U77: 0 | V77: 0 | W77: 0
C78: SEP implementation cost | D78: $000 | E78: =H78+NPV(RDR,MainModule!I78:W78) -> 361.8963628 | H78: =H63-H74 -> 183.6222924 | I78: =I63-I74 -> 183.6222924 | J78: =J63-J74 -> 0 | K78: =K63-K74 -> 0 | L78: =L63-L74 -> 0 | M78: 0 | N78: 0 | O78: 0 | P78: 0 | Q78: 0 | R78: 0 | S78: 0 | T78: 0 | U78: 0 | V78: 0 | W78: 0
C79: Capital improvement cost | D79: $000 | E79: =H79+NPV(RDR,MainModule!I79:W79) -> 2878.219775 | H79: =H66-H75 -> 0 | I79: 2964.566368 | J79: 0 | K79: 0 | L79: =L66-L75 -> 0 | M79: 0 | N79: 0 | O79: 0 | P79: 0 | Q79: 0 | R79: 0 | S79: 0 | T79: 0 | U79: 0 | V79: 0 | W79: 0
C80: Maintenance cost | D80: $000 | E80: =H80+NPV(RDR,MainModule!I80:W80) -> 261.9409972 | H80: 0 | I80: 0 | J80: 141 | K80: 141 | L80: =L67-L76 -> 0 | M80: 0 | N80: 0 | O80: 0 | P80: 0 | Q80: 0 | R80: 0 | S80: 0 | T80: 0 | U80: 0 | V80: 0 | W80: 0
C81: =C68 -> Administrative cost | D81: $000 | E81: =H81+NPV(RDR,MainModule!I81:W81) -> 0 | H81: =H68 -> 0 | I81: =I68 -> 0 | J81: 0 | K81: 0 | L81: 0 | M81: 0 | N81: 0 | O81: 0 | P81: 0 | Q81: 0 | R81: 0 | S81: 0 | T81: 0 | U81: 0 | V81: 0 | W81: 0
C82: Total cost | D82: $000 | E82: =H82+NPV(RDR,MainModule!I82:W82) -> 11673.52378 | H82: =SUM(H73,H77) -> 612.0743082 | I82: =SUM(I73,I77) -> 10493.9622 | J82: =SUM(J73,J77) -> 470 | K82: =SUM(K73,K77) -> 470 | L82: =SUM(L73,L77) -> 0 | M82: =SUM(M73,M77) -> 0 | N82: 0 | O82: 0 | P82: 0 | Q82: 0 | R82: 0 | S82: 0 | T82: 0 | U82: 0 | V82: 0 | W82: 0
C84: Cost of Saved Electricity (All SEP Costs divided by electricity savings only)
C85: Participant cost | D85: $/kWh | E85: =E73/($F$36*1000) -> 0.04207922063
C86: Program administrator cost | D86: $/kWh | E86: =E77/($F$36*1000) -> 0.0180339517
C87: Total resource cost | D87: $/kWh | E87: =E82/($F$36*1000) -> 0.06011317233
C88: SEP implementation & O&M cost (at customer site) | D88: $/kWh | E88: =(E63+E67)/($F$11*1000) -> 0.03088871828
C89: Capital improvement cost (at customer site) | D89: $/kWh | E89: =(E66/($F$19*1000)) -> 0.08326740505
C91: Cost of Saved Fuel (All SEP Costs divided by fuel savings only)
C92: Participant cost | D92: $/MMBtu | E92: =E73/($F$43) -> 4.087480834
C93: Program administrator cost | D93: $/MMBtu | E93: =E77/($F$43) -> 1.7517775
C94: Total resource cost | D94: $/MMBtu | E94: =E82/($F$43) -> 5.839258334
C95: SEP implementation & O&M cost (at customer site) | D95: $/MMBtu | E95: =(E63+E67)/($F$17) -> 2.820432972
C96: Capital improvement cost (at customer site) | D96: $/MMBtu | E96: =(E66)/($F$25) -> 7.60310391
C98: Cost of Saved Energy (electric & fuel)
C99: Participant cost | D99: $/MMBtu | E99: =E73/($F$43+$F$41) -> 3.069983807
C100: Program administrator cost | D100: $/MMBtu | E100: =E77/($F$43+$F$41) -> 1.315707346
C101: Total resource cost | D101: $/MMBtu | E101: =E82/($F$43+$F$41) -> 4.385691152
C102: SEP implementation & O&M cost (at customer site) | D102: $/MMBtu | E102: =(E63+E67)/($F$17+$F$11*3.412) -> 2.150461172
C103: Capital improvement cost (at customer site) | D103: $/MMBtu | E103: =(E66)/($F$25+$F$19*3.412) -> 5.797046022
B106: Program Administrator Cost Test | E106: NPV
C107: Avoided generation kWh | D107: $million | E107: =H107+NPV(RDR,MainModule!I107:W107) -> 10.35853197 | H107: =MAX(H36*Inputs!$E$237,SUM(H108:H111)) -> 0 | I107: =MAX(I36*Inputs!$E$237,SUM(I108:I111)) -> 1.929376344 | J107: =MAX(J36*Inputs!$E$237,SUM(J108:J111)) -> 1.929376344 | K107: =MAX(K36*Inputs!$E$237,SUM(K108:K111)) -> 1.929376344 | L107: =MAX(L36*Inputs!$E$237,SUM(L108:L111)) -> 0.5788129033 | M107: =MAX(M36*Inputs!$E$237,SUM(M108:M111)) -> 0.5788129033 | N107: =MAX(N36*Inputs!$E$237,SUM(N108:N111)) -> 0.5788129033 | O107: =MAX(O36*Inputs!$E$237,SUM(O108:O111)) -> 0.5788129033 | P107: =MAX(P36*Inputs!$E$237,SUM(P108:P111)) -> 0.5788129033 | Q107: =MAX(Q36*Inputs!$E$237,SUM(Q108:Q111)) -> 0.5788129033 | R107: =MAX(R36*Inputs!$E$237,SUM(R108:R111)) -> 0.5788129033 | S107: =MAX(S36*Inputs!$E$237,SUM(S108:S111)) -> 0.5788129033 | T107: =MAX(T36*Inputs!$E$237,SUM(T108:T111)) -> 0.5788129033 | U107: =MAX(U36*Inputs!$E$237,SUM(U108:U111)) -> 0.5788129033 | V107: =MAX(V36*Inputs!$E$237,SUM(V108:V111)) -> 0.5788129033 | W107: =MAX(W36*Inputs!$E$237,SUM(W108:W111)) -> 0
C108: Summer peak | D108: $million | E108: =H108+NPV(RDR,MainModule!I108:W108) -> 3.580248832 | H108: =H37*Inputs!$E238 -> 0 | I108: =I37*Inputs!$E238 -> 0.6668558267 | J108: =J37*Inputs!$E238 -> 0.6668558267 | K108: =K37*Inputs!$E238 -> 0.6668558267 | L108: =L37*Inputs!$E238 -> 0.200056748 | M108: =M37*Inputs!$E238 -> 0.200056748 | N108: =N37*Inputs!$E238 -> 0.200056748 | O108: =O37*Inputs!$E238 -> 0.200056748 | P108: =P37*Inputs!$E238 -> 0.200056748 | Q108: =Q37*Inputs!$E238 -> 0.200056748 | R108: =R37*Inputs!$E238 -> 0.200056748 | S108: =S37*Inputs!$E238 -> 0.200056748 | T108: =T37*Inputs!$E238 -> 0.200056748 | U108: =U37*Inputs!$E238 -> 0.200056748 | V108: =V37*Inputs!$E238 -> 0.200056748 | W108: =W37*Inputs!$E238 -> 0
C109: Summer off-peak | D109: $million | E109: =H109+NPV(RDR,MainModule!I109:W109) -> 1.878702864 | H109: =H38*Inputs!$E239 -> 0 | I109: =I38*Inputs!$E239 -> 0.3499265024 | J109: =J38*Inputs!$E239 -> 0.3499265024 | K109: =K38*Inputs!$E239 -> 0.3499265024 | L109: =L38*Inputs!$E239 -> 0.1049779507 | M109: =M38*Inputs!$E239 -> 0.1049779507 | N109: =N38*Inputs!$E239 -> 0.1049779507 | O109: =O38*Inputs!$E239 -> 0.1049779507 | P109: =P38*Inputs!$E239 -> 0.1049779507 | Q109: =Q38*Inputs!$E239 -> 0.1049779507 | R109: =R38*Inputs!$E239 -> 0.1049779507 | S109: =S38*Inputs!$E239 -> 0.1049779507 | T109: =T38*Inputs!$E239 -> 0.1049779507 | U109: =U38*Inputs!$E239 -> 0.1049779507 | V109: =V38*Inputs!$E239 -> 0.1049779507 | W109: =W38*Inputs!$E239 -> 0
C110: Winter peak | D110: $million | E110: =H110+NPV(RDR,MainModule!I110:W110) -> 2.899234294 | H110: =H39*Inputs!$E240 -> 0 | I110: =I39*Inputs!$E240 -> 0.5400103101 | J110: =J39*Inputs!$E240 -> 0.5400103101 | K110: =K39*Inputs!$E240 -> 0.5400103101 | L110: =L39*Inputs!$E240 -> 0.162003093 | M110: =M39*Inputs!$E240 -> 0.162003093 | N110: =N39*Inputs!$E240 -> 0.162003093 | O110: =O39*Inputs!$E240 -> 0.162003093 | P110: =P39*Inputs!$E240 -> 0.162003093 | Q110: =Q39*Inputs!$E240 -> 0.162003093 | R110: =R39*Inputs!$E240 -> 0.162003093 | S110: =S39*Inputs!$E240 -> 0.162003093 | T110: =T39*Inputs!$E240 -> 0.162003093 | U110: =U39*Inputs!$E240 -> 0.162003093 | V110: =V39*Inputs!$E240 -> 0.162003093 | W110: =W39*Inputs!$E240 -> 0
C111: Winter off-peak | D111: $million | E111: =H111+NPV(RDR,MainModule!I111:W111) -> 2.000345985 | H111: =H40*Inputs!$E241 -> 0 | I111: =I40*Inputs!$E241 -> 0.3725837052 | J111: =J40*Inputs!$E241 -> 0.3725837052 | K111: =K40*Inputs!$E241 -> 0.3725837052 | L111: =L40*Inputs!$E241 -> 0.1117751116 | M111: =M40*Inputs!$E241 -> 0.1117751116 | N111: =N40*Inputs!$E241 -> 0.1117751116 | O111: =O40*Inputs!$E241 -> 0.1117751116 | P111: =P40*Inputs!$E241 -> 0.1117751116 | Q111: =Q40*Inputs!$E241 -> 0.1117751116 | R111: =R40*Inputs!$E241 -> 0.1117751116 | S111: =S40*Inputs!$E241 -> 0.1117751116 | T111: =T40*Inputs!$E241 -> 0.1117751116 | U111: =U40*Inputs!$E241 -> 0.1117751116 | V111: =V40*Inputs!$E241 -> 0.1117751116 | W111: =W40*Inputs!$E241 -> 0
C112: Avoided capacity kW | D112: $million | E112: =H112+NPV(RDR,MainModule!I112:W112) -> 1.180288871 | H112: =H42*Inputs!$E$242/1000 -> 0 | I112: =I42*Inputs!$E$242/1000 -> 0.2198401697 | J112: =J42*Inputs!$E$242/1000 -> 0.2198401697 | K112: =K42*Inputs!$E$242/1000 -> 0.2198401697 | L112: =L42*Inputs!$E$242/1000 -> 0.06595205091 | M112: =M42*Inputs!$E$242/1000 -> 0.06595205091 | N112: =N42*Inputs!$E$242/1000 -> 0.06595205091 | O112: =O42*Inputs!$E$242/1000 -> 0.06595205091 | P112: =P42*Inputs!$E$242/1000 -> 0.06595205091 | Q112: =Q42*Inputs!$E$242/1000 -> 0.06595205091 | R112: =R42*Inputs!$E$242/1000 -> 0.06595205091 | S112: =S42*Inputs!$E$242/1000 -> 0.06595205091 | T112: =T42*Inputs!$E$242/1000 -> 0.06595205091 | U112: =U42*Inputs!$E$242/1000 -> 0.06595205091 | V112: =V42*Inputs!$E$242/1000 -> 0.06595205091 | W112: =W42*Inputs!$E$242/1000 -> 0
C113: Avoided T&D KW | D113: $million | E113: =H113+NPV(RDR,MainModule!I113:W113) -> 1.35150472 | H113: =H42*Inputs!$E$243/1000 -> 0 | I113: =I42*Inputs!$E$243/1000 -> 0.2517307705 | J113: =J42*Inputs!$E$243/1000 -> 0.2517307705 | K113: =K42*Inputs!$E$243/1000 -> 0.2517307705 | L113: =L42*Inputs!$E$243/1000 -> 0.07551923116 | M113: =M42*Inputs!$E$243/1000 -> 0.07551923116 | N113: =N42*Inputs!$E$243/1000 -> 0.07551923116 | O113: =O42*Inputs!$E$243/1000 -> 0.07551923116 | P113: =P42*Inputs!$E$243/1000 -> 0.07551923116 | Q113: =Q42*Inputs!$E$243/1000 -> 0.07551923116 | R113: =R42*Inputs!$E$243/1000 -> 0.07551923116 | S113: =S42*Inputs!$E$243/1000 -> 0.07551923116 | T113: =T42*Inputs!$E$243/1000 -> 0.07551923116 | U113: =U42*Inputs!$E$243/1000 -> 0.07551923116 | V113: =V42*Inputs!$E$243/1000 -> 0.07551923116 | W113: =W42*Inputs!$E$243/1000 -> 0
C114: Electricity price reduction effect | D114: $million | E114: =H114+NPV(RDR,MainModule!I114:W114) -> 0 | H114: =H36*Inputs!$E$244+H42*Inputs!$E$245/1000 -> 0 | I114: =I36*Inputs!$E$244+I42*Inputs!$E$245/1000 -> 0 | J114: =J36*Inputs!$E$244+J42*Inputs!$E$245/1000 -> 0 | K114: =K36*Inputs!$E$244+K42*Inputs!$E$245/1000 -> 0 | L114: =L36*Inputs!$E$244+L42*Inputs!$E$245/1000 -> 0 | M114: =M36*Inputs!$E$244+M42*Inputs!$E$245/1000 -> 0 | N114: =N36*Inputs!$E$244+N42*Inputs!$E$245/1000 -> 0 | O114: =O36*Inputs!$E$244+O42*Inputs!$E$245/1000 -> 0 | P114: =P36*Inputs!$E$244+P42*Inputs!$E$245/1000 -> 0 | Q114: =Q36*Inputs!$E$244+Q42*Inputs!$E$245/1000 -> 0 | R114: =R36*Inputs!$E$244+R42*Inputs!$E$245/1000 -> 0 | S114: =S36*Inputs!$E$244+S42*Inputs!$E$245/1000 -> 0 | T114: =T36*Inputs!$E$244+T42*Inputs!$E$245/1000 -> 0 | U114: =U36*Inputs!$E$244+U42*Inputs!$E$245/1000 -> 0 | V114: =V36*Inputs!$E$244+V42*Inputs!$E$245/1000 -> 0 | W114: =W36*Inputs!$E$244+W42*Inputs!$E$245/1000 -> 0
C115: Avoided MMBtu | D115: $million | E115: =H115+NPV(RDR,MainModule!I115:W115) -> 0 | H115: =H43*Inputs!$E$250/1000 -> 0 | I115: =I43*Inputs!$E$250/1000 -> 0 | J115: =J43*Inputs!$E$250/1000 -> 0 | K115: =K43*Inputs!$E$250/1000 -> 0 | L115: =L43*Inputs!$E$250/1000 -> 0 | M115: =M43*Inputs!$E$250/1000 -> 0 | N115: =N43*Inputs!$E$250/1000 -> 0 | O115: =O43*Inputs!$E$250/1000 -> 0 | P115: =P43*Inputs!$E$250/1000 -> 0 | Q115: =Q43*Inputs!$E$250/1000 -> 0 | R115: =R43*Inputs!$E$250/1000 -> 0 | S115: =S43*Inputs!$E$250/1000 -> 0 | T115: =T43*Inputs!$E$250/1000 -> 0 | U115: =U43*Inputs!$E$250/1000 -> 0 | V115: =V43*Inputs!$E$250/1000 -> 0 | W115: =W43*Inputs!$E$250/1000 -> 0
C116: Fuel price reduction effect | D116: $million | E116: =H116+NPV(RDR,MainModule!I116:W116) -> 0 | H116: =H43*Inputs!$E$251/1000 -> 0 | I116: =I43*Inputs!$E$251/1000 -> 0 | J116: =J43*Inputs!$E$251/1000 -> 0 | K116: =K43*Inputs!$E$251/1000 -> 0 | L116: =L43*Inputs!$E$251/1000 -> 0 | M116: =M43*Inputs!$E$251/1000 -> 0 | N116: =N43*Inputs!$E$251/1000 -> 0 | O116: =O43*Inputs!$E$251/1000 -> 0 | P116: =P43*Inputs!$E$251/1000 -> 0 | Q116: =Q43*Inputs!$E$251/1000 -> 0 | R116: =R43*Inputs!$E$251/1000 -> 0 | S116: =S43*Inputs!$E$251/1000 -> 0 | T116: =T43*Inputs!$E$251/1000 -> 0 | U116: =U43*Inputs!$E$251/1000 -> 0 | V116: =V43*Inputs!$E$251/1000 -> 0 | W116: =W43*Inputs!$E$251/1000 -> 0
C117: Environmental compliance cost | D117: $million | E117: =H117+NPV(RDR,MainModule!I117:W117) -> 5.093500088 | H117: =IF(Inputs!$E$180="Yes",0,(Inputs!$E$181*MainModule!H56+H57*Inputs!$E$182+H57*Inputs!$E$183)/1000000) -> 0 | I117: =IF(Inputs!$E$180="Yes",0,(Inputs!$E$181*MainModule!I56+I57*Inputs!$E$182+I57*Inputs!$E$183)/1000000) -> 0.9487134475 | J117: =IF(Inputs!$E$180="Yes",0,(Inputs!$E$181*MainModule!J56+J57*Inputs!$E$182+J57*Inputs!$E$183)/1000000) -> 0.9487134475 | K117: =IF(Inputs!$E$180="Yes",0,(Inputs!$E$181*MainModule!K56+K57*Inputs!$E$182+K57*Inputs!$E$183)/1000000) -> 0.9487134475 | L117: =IF(Inputs!$E$180="Yes",0,(Inputs!$E$181*MainModule!L56+L57*Inputs!$E$182+L57*Inputs!$E$183)/1000000) -> 0.2846140342 | M117: =IF(Inputs!$E$180="Yes",0,(Inputs!$E$181*MainModule!M56+M57*Inputs!$E$182+M57*Inputs!$E$183)/1000000) -> 0.2846140342 | N117: =IF(Inputs!$E$180="Yes",0,(Inputs!$E$181*MainModule!N56+N57*Inputs!$E$182+N57*Inputs!$E$183)/1000000) -> 0.2846140342 | O117: =IF(Inputs!$E$180="Yes",0,(Inputs!$E$181*MainModule!O56+O57*Inputs!$E$182+O57*Inputs!$E$183)/1000000) -> 0.2846140342 | P117: =IF(Inputs!$E$180="Yes",0,(Inputs!$E$181*MainModule!P56+P57*Inputs!$E$182+P57*Inputs!$E$183)/1000000) -> 0.2846140342 | Q117: =IF(Inputs!$E$180="Yes",0,(Inputs!$E$181*MainModule!Q56+Q57*Inputs!$E$182+Q57*Inputs!$E$183)/1000000) -> 0.2846140342 | R117: =IF(Inputs!$E$180="Yes",0,(Inputs!$E$181*MainModule!R56+R57*Inputs!$E$182+R57*Inputs!$E$183)/1000000) -> 0.2846140342 | S117: =IF(Inputs!$E$180="Yes",0,(Inputs!$E$181*MainModule!S56+S57*Inputs!$E$182+S57*Inputs!$E$183)/1000000) -> 0.2846140342 | T117: =IF(Inputs!$E$180="Yes",0,(Inputs!$E$181*MainModule!T56+T57*Inputs!$E$182+T57*Inputs!$E$183)/1000000) -> 0.2846140342 | U117: =IF(Inputs!$E$180="Yes",0,(Inputs!$E$181*MainModule!U56+U57*Inputs!$E$182+U57*Inputs!$E$183)/1000000) -> 0.2846140342 | V117: =IF(Inputs!$E$180="Yes",0,(Inputs!$E$181*MainModule!V56+V57*Inputs!$E$182+V57*Inputs!$E$183)/1000000) -> 0.2846140342 | W117: =IF(Inputs!$E$180="Yes",0,(Inputs!$E$181*MainModule!W56+W57*Inputs!$E$182+W57*Inputs!$E$183)/1000000) -> 0
C118: Total PA benefit | D118: $million | E118: =H118+NPV(RDR,MainModule!I118:W118) -> 28.34235763 | H118: =SUM(H107:H117) -> 0 | I118: =SUM(I107:I117) -> 5.279037077 | J118: 5.279037077 | K118: 5.279037077 | L118: 1.583711123 | M118: 1.583711123 | N118: 1.583711123 | O118: 1.583711123 | P118: 1.583711123 | Q118: 1.583711123 | R118: 1.583711123 | S118: 1.583711123 | T118: 1.583711123 | U118: 1.583711123 | V118: 1.583711123 | W118: 0
C119: Total PA cost | D119: $million | E119: =H119+NPV(RDR,MainModule!I119:W119) -> 3.502057135 | H119: =H77/1000 -> 0.1836222924 | I119: =I77/1000 -> 3.14818866 | J119: =J77/1000 -> 0.141 | K119: 0.141 | L119: 0 | M119: 0 | N119: 0 | O119: 0 | P119: 0 | Q119: 0 | R119: 0 | S119: 0 | T119: 0 | U119: 0 | V119: 0 | W119: 0
C120: Net benefit | D120: $million | E120: =H120+NPV(RDR,MainModule!I120:W120) -> 24.84030049 | H120: =H118-H119 -> -0.1836222924 | I120: =I118-I119 -> 2.130848416 | J120: 5.138037077 | K120: 5.138037077 | L120: 1.583711123 | M120: 1.583711123 | N120: 1.583711123 | O120: 1.583711123 | P120: 1.583711123 | Q120: 1.583711123 | R120: 1.583711123 | S120: =S118-S119 -> 1.583711123 | T120: =T118-T119 -> 1.583711123 | U120: =U118-U119 -> 1.583711123 | V120: =V118-V119 -> 1.583711123 | W120: =W118-W119 -> 0
C121: BC ratio | D121: Benefit / Cost Ratio | E121: =IF(ISERROR(E118/E119),"-",E118/E119) -> 8.093059747
B124: Total Resource Cost Test | E124: NPV
C125: Avoided generation kWh | D125: $million | E125: =H125+NPV(RDR,MainModule!I125:W125) -> 10.35853197 | H125: =H107 -> 0 | I125: =I107 -> 1.929376344 | J125: 1.929376344 | K125: 1.929376344 | L125: 0.5788129033 | M125: 0.5788129033 | N125: 0.5788129033 | O125: 0.5788129033 | P125: 0.5788129033 | Q125: 0.5788129033 | R125: 0.5788129033 | S125: =S107 -> 0.5788129033 | T125: =T107 -> 0.5788129033 | U125: =U107 -> 0.5788129033 | V125: =V107 -> 0.5788129033 | W125: =W107 -> 0
C126: Summer peak | D126: $million | E126: =H126+NPV(RDR,MainModule!I126:W126) -> 3.580248832 | H126: =H108 -> 0 | I126: =I108 -> 0.6668558267 | J126: 0.6668558267 | K126: 0.6668558267 | L126: 0.200056748 | M126: 0.200056748 | N126: 0.200056748 | O126: 0.200056748 | P126: 0.200056748 | Q126: 0.200056748 | R126: 0.200056748 | S126: 0.200056748 | T126: 0.200056748 | U126: 0.200056748 | V126: 0.200056748 | W126: 0
C127: Summer off-peak | D127: $million | E127: =H127+NPV(RDR,MainModule!I127:W127) -> 1.878702864 | H127: =H109 -> 0 | I127: 0.3499265024 | J127: 0.3499265024 | K127: 0.3499265024 | L127: 0.1049779507 | M127: 0.1049779507 | N127: 0.1049779507 | O127: 0.1049779507 | P127: 0.1049779507 | Q127: 0.1049779507 | R127: 0.1049779507 | S127: 0.1049779507 | T127: 0.1049779507 | U127: 0.1049779507 | V127: 0.1049779507 | W127: 0
C128: Winter peak | D128: $million | E128: =H128+NPV(RDR,MainModule!I128:W128) -> 2.899234294 | H128: 0 | I128: 0.5400103101 | J128: 0.5400103101 | K128: 0.5400103101 | L128: 0.162003093 | M128: 0.162003093 | N128: 0.162003093 | O128: 0.162003093 | P128: 0.162003093 | Q128: 0.162003093 | R128: 0.162003093 | S128: 0.162003093 | T128: 0.162003093 | U128: 0.162003093 | V128: 0.162003093 | W128: 0
C129: Winter off-peak | D129: $million | E129: =H129+NPV(RDR,MainModule!I129:W129) -> 2.000345985 | H129: 0 | I129: 0.3725837052 | J129: 0.3725837052 | K129: 0.3725837052 | L129: 0.1117751116 | M129: 0.1117751116 | N129: 0.1117751116 | O129: 0.1117751116 | P129: 0.1117751116 | Q129: 0.1117751116 | R129: 0.1117751116 | S129: 0.1117751116 | T129: 0.1117751116 | U129: 0.1117751116 | V129: 0.1117751116 | W129: 0
C130: Avoided capacity kW | D130: $million | E130: =H130+NPV(RDR,MainModule!I130:W130) -> 1.180288871 | H130: =H112 -> 0 | I130: =I112 -> 0.2198401697 | J130: 0.2198401697 | K130: 0.2198401697 | L130: 0.06595205091 | M130: 0.06595205091 | N130: 0.06595205091 | O130: 0.06595205091 | P130: 0.06595205091 | Q130: 0.06595205091 | R130: 0.06595205091 | S130: 0.06595205091 | T130: 0.06595205091 | U130: 0.06595205091 | V130: 0.06595205091 | W130: 0
C131: Avoided T&D KW | D131: $million | E131: =H131+NPV(RDR,MainModule!I131:W131) -> 1.35150472 | H131: =H113 -> 0 | I131: =I113 -> 0.2517307705 | J131: 0.2517307705 | K131: 0.2517307705 | L131: 0.07551923116 | M131: 0.07551923116 | N131: 0.07551923116 | O131: 0.07551923116 | P131: 0.07551923116 | Q131: 0.07551923116 | R131: 0.07551923116 | S131: 0.07551923116 | T131: 0.07551923116 | U131: 0.07551923116 | V131: 0.07551923116 | W131: 0
C132: Electricity price reduction effect | D132: $million | E132: =H132+NPV(RDR,MainModule!I132:W132) -> 0 | H132: =H114 -> 0 | I132: =I114 -> 0 | J132: =J114 -> 0 | K132: 0 | L132: 0 | M132: 0 | N132: 0 | O132: 0 | P132: 0 | Q132: 0 | R132: 0 | S132: =S114 -> 0 | T132: =T114 -> 0 | U132: =U114 -> 0 | V132: =V114 -> 0 | W132: =W114 -> 0
C133: Customer non-electricity benefit | D133: $million | E133: =H133+NPV(RDR,MainModule!I133:W133) -> 0 | H133: =H36*Inputs!$E$246 -> 0 | I133: =I36*Inputs!$E$246 -> 0 | J133: =J36*Inputs!$E$246 -> 0 | K133: =K36*Inputs!$E$246 -> 0 | L133: =L36*Inputs!$E$246 -> 0 | M133: =M36*Inputs!$E$246 -> 0 | N133: =N36*Inputs!$E$246 -> 0 | O133: =O36*Inputs!$E$246 -> 0 | P133: =P36*Inputs!$E$246 -> 0 | Q133: =Q36*Inputs!$E$246 -> 0 | R133: =R36*Inputs!$E$246 -> 0 | S133: =S36*Inputs!$E$246 -> 0 | T133: =T36*Inputs!$E$246 -> 0 | U133: =U36*Inputs!$E$246 -> 0 | V133: =V36*Inputs!$E$246 -> 0 | W133: =W36*Inputs!$E$246 -> 0
C134: Avoided MMBtu | D134: $million | E134: =H134+NPV(RDR,MainModule!I134:W134) -> 0 | H134: =H115 -> 0 | I134: =I115 -> 0 | J134: =J115 -> 0 | K134: 0 | L134: 0 | M134: 0 | N134: 0 | O134: 0 | P134: 0 | Q134: 0 | R134: 0 | S134: =S115 -> 0 | T134: 0 | U134: 0 | V134: 0 | W134: 0
C135: Fuel price reduction effect | D135: $million | E135: =H135+NPV(RDR,MainModule!I135:W135) -> 0 | H135: =H116 -> 0 | I135: =I116 -> 0 | J135: =J116 -> 0 | K135: 0 | L135: 0 | M135: 0 | N135: 0 | O135: 0 | P135: 0 | Q135: 0 | R135: 0 | S135: 0 | T135: 0 | U135: 0 | V135: 0 | W135: 0
C136: Customer non-fuel benefit | D136: $million | E136: =H136+NPV(RDR,MainModule!I136:W136) -> 0 | H136: =H43*Inputs!$E$252/1000 -> 0 | I136: =I43*Inputs!$E$252/1000 -> 0 | J136: =J43*Inputs!$E$252/1000 -> 0 | K136: =K43*Inputs!$E$252/1000 -> 0 | L136: =L43*Inputs!$E$252/1000 -> 0 | M136: =M43*Inputs!$E$252/1000 -> 0 | N136: =N43*Inputs!$E$252/1000 -> 0 | O136: =O43*Inputs!$E$252/1000 -> 0 | P136: =P43*Inputs!$E$252/1000 -> 0 | Q136: =Q43*Inputs!$E$252/1000 -> 0 | R136: =R43*Inputs!$E$252/1000 -> 0 | S136: =S43*Inputs!$E$252/1000 -> 0 | T136: =T43*Inputs!$E$252/1000 -> 0 | U136: =U43*Inputs!$E$252/1000 -> 0 | V136: =V43*Inputs!$E$252/1000 -> 0 | W136: =W43*Inputs!$E$252/1000 -> 0
C137: Environmental compliance cost | D137: $million | E137: =H137+NPV(RDR,MainModule!I137:W137) -> 5.093500088 | H137: =H117 -> 0 | I137: =I117 -> 0.9487134475 | J137: =J117 -> 0.9487134475 | K137: 0.9487134475 | L137: 0.2846140342 | M137: 0.2846140342 | N137: 0.2846140342 | O137: 0.2846140342 | P137: 0.2846140342 | Q137: 0.2846140342 | R137: 0.2846140342 | S137: 0.2846140342 | T137: 0.2846140342 | U137: 0.2846140342 | V137: 0.2846140342 | W137: 0
C138: Total TRC benefit | D138: $million | E138: =H138+NPV(RDR,MainModule!I138:W138) -> 28.34235763 | H138: =SUM(H125:H137) -> 0 | I138: =SUM(I125:I137) -> 5.279037077 | J138: =SUM(J125:J137) -> 5.279037077 | K138: 5.279037077 | L138: 1.583711123 | M138: 1.583711123 | N138: 1.583711123 | O138: 1.583711123 | P138: 1.583711123 | Q138: 1.583711123 | R138: 1.583711123 | S138: 1.583711123 | T138: 1.583711123 | U138: 1.583711123 | V138: 1.583711123 | W138: 0
C139: Total TRC cost | D139: $million | E139: =H139+NPV(RDR,MainModule!I139:W139) -> 11.67352378 | H139: =H82/1000 -> 0.6120743082 | I139: =I82/1000 -> 10.4939622 | J139: 0.47 | K139: 0.47 | L139: 0 | M139: 0 | N139: 0 | O139: 0 | P139: 0 | Q139: 0 | R139: 0 | S139: 0 | T139: 0 | U139: 0 | V139: 0 | W139: 0
C140: Net benefit | D140: $million | E140: =H140+NPV(RDR,MainModule!I140:W140) -> 16.66883385 | H140: =H138-H139 -> -0.6120743082 | I140: -5.214925124 | J140: 4.809037077 | K140: 4.809037077 | L140: 1.583711123 | M140: 1.583711123 | N140: 1.583711123 | O140: 1.583711123 | P140: 1.583711123 | Q140: 1.583711123 | R140: =R138-R139 -> 1.583711123 | S140: 1.583711123 | T140: 1.583711123 | U140: 1.583711123 | V140: 1.583711123 | W140: 0
C141: BC ratio | D141: Benefit / Cost Ratio | E141: =IF(ISERROR(E138/E139),"-",E138/E139) -> 2.427917924
B144: Societal Cost Test | E144: NPV
C145: Avoided generation kWh | D145: $million | E145: =H145+NPV(SRDR,MainModule!I145:W145) -> 11.49869821 | H145: =H107 -> 0 | I145: =I107 -> 1.929376344 | J145: 1.929376344 | K145: 1.929376344 | L145: 0.5788129033 | M145: 0.5788129033 | N145: 0.5788129033 | O145: 0.5788129033 | P145: 0.5788129033 | Q145: 0.5788129033 | R145: 0.5788129033 | S145: 0.5788129033 | T145: 0.5788129033 | U145: 0.5788129033 | V145: 0.5788129033 | W145: 0
C146: Summer peak | D146: $million | E146: =H146+NPV(SRDR,MainModule!I146:W146) -> 3.974327728 | H146: =H108 -> 0 | I146: 0.6668558267 | J146: 0.6668558267 | K146: 0.6668558267 | L146: 0.200056748 | M146: 0.200056748 | N146: 0.200056748 | O146: 0.200056748 | P146: 0.200056748 | Q146: 0.200056748 | R146: 0.200056748 | S146: 0.200056748 | T146: 0.200056748 | U146: 0.200056748 | V146: 0.200056748 | W146: 0
C147: Summer off-peak | D147: $million | E147: =H147+NPV(SRDR,MainModule!I147:W147) -> 2.085492164 | H147: =H109 -> 0 | I147: 0.3499265024 | J147: 0.3499265024 | K147: 0.3499265024 | L147: 0.1049779507 | M147: 0.1049779507 | N147: 0.1049779507 | O147: 0.1049779507 | P147: 0.1049779507 | Q147: 0.1049779507 | R147: 0.1049779507 | S147: 0.1049779507 | T147: 0.1049779507 | U147: 0.1049779507 | V147: 0.1049779507 | W147: 0
C148: Winter peak | D148: $million | E148: =H148+NPV(SRDR,MainModule!I148:W148) -> 3.218353748 | H148: =H110 -> 0 | I148: 0.5400103101 | J148: 0.5400103101 | K148: 0.5400103101 | L148: 0.162003093 | M148: 0.162003093 | N148: 0.162003093 | O148: 0.162003093 | P148: 0.162003093 | Q148: 0.162003093 | R148: 0.162003093 | S148: 0.162003093 | T148: 0.162003093 | U148: 0.162003093 | V148: 0.162003093 | W148: 0
C149: Winter off-peak | D149: $million | E149: =H149+NPV(SRDR,MainModule!I149:W149) -> 2.220524574 | H149: =H111 -> 0 | I149: 0.3725837052 | J149: 0.3725837052 | K149: 0.3725837052 | L149: 0.1117751116 | M149: 0.1117751116 | N149: 0.1117751116 | O149: 0.1117751116 | P149: 0.1117751116 | Q149: 0.1117751116 | R149: 0.1117751116 | S149: 0.1117751116 | T149: 0.1117751116 | U149: 0.1117751116 | V149: 0.1117751116 | W149: 0
C150: Avoided capacity kW | D150: $million | E150: =H150+NPV(SRDR,MainModule!I150:W150) -> 1.310203566 | H150: =H112 -> 0 | I150: =I112 -> 0.2198401697 | J150: 0.2198401697 | K150: 0.2198401697 | L150: 0.06595205091 | M150: 0.06595205091 | N150: 0.06595205091 | O150: 0.06595205091 | P150: 0.06595205091 | Q150: 0.06595205091 | R150: 0.06595205091 | S150: 0.06595205091 | T150: 0.06595205091 | U150: 0.06595205091 | V150: 0.06595205091 | W150: 0
C151: Avoided T&D KW | D151: $million | E151: =H151+NPV(SRDR,MainModule!I151:W151) -> 1.500265187 | H151: =H113 -> 0 | I151: =I113 -> 0.2517307705 | J151: 0.2517307705 | K151: 0.2517307705 | L151: 0.07551923116 | M151: 0.07551923116 | N151: 0.07551923116 | O151: 0.07551923116 | P151: 0.07551923116 | Q151: 0.07551923116 | R151: 0.07551923116 | S151: 0.07551923116 | T151: 0.07551923116 | U151: 0.07551923116 | V151: 0.07551923116 | W151: 0
C152: Customer non-electricity benefit | D152: $million | E152: =H152+NPV(SRDR,MainModule!I152:W152) -> 0 | H152: =H133 -> 0 | I152: =I133 -> 0 | J152: =J133 -> 0 | K152: 0 | L152: 0 | M152: 0 | N152: 0 | O152: 0 | P152: 0 | Q152: 0 | R152: 0 | S152: 0 | T152: 0 | U152: 0 | V152: 0 | W152: 0
C153: Avoided MMBtu | D153: $million | E153: =H153+NPV(SRDR,MainModule!I153:W153) -> 0 | H153: =H115 -> 0 | I153: 0 | J153: 0 | K153: 0 | L153: 0 | M153: 0 | N153: 0 | O153: 0 | P153: 0 | Q153: 0 | R153: 0 | S153: 0 | T153: 0 | U153: 0 | V153: 0 | W153: 0
C154: Customer non-fuel benefit | D154: $million | E154: =H154+NPV(SRDR,MainModule!I154:W154) -> 0 | H154: =H136 -> 0 | I154: 0 | J154: 0 | K154: 0 | L154: 0 | M154: 0 | N154: 0 | O154: 0 | P154: 0 | Q154: 0 | R154: 0 | S154: 0 | T154: 0 | U154: 0 | V154: 0 | W154: 0
C155: Externalities | D155: $million | E155: =H155+NPV(SRDR,MainModule!I155:W155) -> 12.62600976 | H155: =H56*Inputs!$E$186/1000000+Inputs!$E$247*MainModule!H36+(Inputs!$E$253*MainModule!H43/1000) -> 0 | I155: =I56*Inputs!$E$186/1000000+Inputs!$E$247*MainModule!I36+(Inputs!$E$253*MainModule!I43/1000) -> 2.118528906 | J155: =J56*Inputs!$E$186/1000000+Inputs!$E$247*MainModule!J36+(Inputs!$E$253*MainModule!J43/1000) -> 2.118528906 | K155: =K56*Inputs!$E$186/1000000+Inputs!$E$247*MainModule!K36+(Inputs!$E$253*MainModule!K43/1000) -> 2.118528906 | L155: =L56*Inputs!$E$186/1000000+Inputs!$E$247*MainModule!L36+(Inputs!$E$253*MainModule!L43/1000) -> 0.6355586719 | M155: =M56*Inputs!$E$186/1000000+Inputs!$E$247*MainModule!M36+(Inputs!$E$253*MainModule!M43/1000) -> 0.6355586719 | N155: =N56*Inputs!$E$186/1000000+Inputs!$E$247*MainModule!N36+(Inputs!$E$253*MainModule!N43/1000) -> 0.6355586719 | O155: =O56*Inputs!$E$186/1000000+Inputs!$E$247*MainModule!O36+(Inputs!$E$253*MainModule!O43/1000) -> 0.6355586719 | P155: =P56*Inputs!$E$186/1000000+Inputs!$E$247*MainModule!P36+(Inputs!$E$253*MainModule!P43/1000) -> 0.6355586719 | Q155: =Q56*Inputs!$E$186/1000000+Inputs!$E$247*MainModule!Q36+(Inputs!$E$253*MainModule!Q43/1000) -> 0.6355586719 | R155: =R56*Inputs!$E$186/1000000+Inputs!$E$247*MainModule!R36+(Inputs!$E$253*MainModule!R43/1000) -> 0.6355586719 | S155: =S56*Inputs!$E$186/1000000+Inputs!$E$247*MainModule!S36+(Inputs!$E$253*MainModule!S43/1000) -> 0.6355586719 | T155: =T56*Inputs!$E$186/1000000+Inputs!$E$247*MainModule!T36+(Inputs!$E$253*MainModule!T43/1000) -> 0.6355586719 | U155: =U56*Inputs!$E$186/1000000+Inputs!$E$247*MainModule!U36+(Inputs!$E$253*MainModule!U43/1000) -> 0.6355586719 | V155: =V56*Inputs!$E$186/1000000+Inputs!$E$247*MainModule!V36+(Inputs!$E$253*MainModule!V43/1000) -> 0.6355586719 | W155: =W56*Inputs!$E$186/1000000+Inputs!$E$247*MainModule!W36+(Inputs!$E$253*MainModule!W43/1000) -> 0
C156: Total SC benefit | D156: $million | E156: =H156+NPV(SRDR,MainModule!I156:W156) -> 38.43387494 | H156: =SUM(H145:H155) -> 0 | I156: =SUM(I145:I155) -> 6.448852535 | J156: =SUM(J145:J155) -> 6.448852535 | K156: 6.448852535 | L156: 1.934655761 | M156: 1.934655761 | N156: 1.934655761 | O156: 1.934655761 | P156: 1.934655761 | Q156: 1.934655761 | R156: 1.934655761 | S156: 1.934655761 | T156: 1.934655761 | U156: 1.934655761 | V156: 1.934655761 | W156: 0
C157: Total SC cost | D157: $million | E157: =H157+NPV(SRDR,MainModule!I157:W157) -> 11.91905241 | H157: =H139 -> 0.6120743082 | I157: =I139 -> 10.4939622 | J157: 0.47 | K157: 0.47 | L157: 0 | M157: 0 | N157: 0 | O157: 0 | P157: 0 | Q157: 0 | R157: 0 | S157: 0 | T157: 0 | U157: 0 | V157: 0 | W157: 0
C158: Net benefit | D158: $million | E158: =H158+NPV(SRDR,MainModule!I158:W158) -> 26.51482253 | H158: =H156-H157 -> -0.6120743082 | I158: =I156-I157 -> -4.045109666 | J158: =J156-J157 -> 5.978852535 | K158: =K156-K157 -> 5.978852535 | L158: 1.934655761 | M158: 1.934655761 | N158: 1.934655761 | O158: 1.934655761 | P158: 1.934655761 | Q158: 1.934655761 | R158: 1.934655761 | S158: 1.934655761 | T158: 1.934655761 | U158: 1.934655761 | V158: 1.934655761 | W158: 0
C159: BC ratio | D159: Benefit / Cost Ratio | E159: =IF(ISERROR(E156/E157),"-",E156/E157) -> 3.224574708
B162: Participant Cost Test | E162: NPV
C163: Electricity cost reduction | D163: $million | E163: =H163+NPV(PRDR,MainModule!I163:W163) -> 11.08985643 | H163: =MAX(H27*Inputs!$E$170,SUM(H164:H168)) -> 0 | I163: =MAX(I27*Inputs!$E$170,SUM(I164:I167)) -> 2.38 | J163: =MAX(J27*Inputs!$E$170,SUM(J164:J167)) -> 2.38 | K163: =MAX(K27*Inputs!$E$170,SUM(K164:K167)) -> 2.38 | L163: =MAX(L27*Inputs!$E$170,SUM(L164:L167)) -> 0.714 | M163: =MAX(M27*Inputs!$E$170,SUM(M164:M167)) -> 0.714 | N163: =MAX(N27*Inputs!$E$170,SUM(N164:N167)) -> 0.714 | O163: =MAX(O27*Inputs!$E$170,SUM(O164:O167)) -> 0.714 | P163: =MAX(P27*Inputs!$E$170,SUM(P164:P167)) -> 0.714 | Q163: =MAX(Q27*Inputs!$E$170,SUM(Q164:Q167)) -> 0.714 | R163: =MAX(R27*Inputs!$E$170,SUM(R164:R167)) -> 0.714 | S163: =MAX(S27*Inputs!$E$170,SUM(S164:S167)) -> 0.714 | T163: =MAX(T27*Inputs!$E$170,SUM(T164:T167)) -> 0.714 | U163: =MAX(U27*Inputs!$E$170,SUM(U164:U167)) -> 0.714 | V163: =MAX(V27*Inputs!$E$170,SUM(V164:V167)) -> 0.714 | W163: =MAX(W27*Inputs!$E$170,SUM(W164:W167)) -> 0
C164: Summer peak | D164: $million | E164: =H164+NPV(PRDR,MainModule!I164:W164) -> 0 | H164: =H28*Inputs!$E171 -> 0 | I164: =I28*Inputs!$E171 -> 0 | J164: =J28*Inputs!$E171 -> 0 | K164: =K28*Inputs!$E171 -> 0 | L164: =L28*Inputs!$E171 -> 0 | M164: =M28*Inputs!$E171 -> 0 | N164: =N28*Inputs!$E171 -> 0 | O164: =O28*Inputs!$E171 -> 0 | P164: =P28*Inputs!$E171 -> 0 | Q164: =Q28*Inputs!$E171 -> 0 | R164: =R28*Inputs!$E171 -> 0 | S164: =S28*Inputs!$E171 -> 0 | T164: =T28*Inputs!$E171 -> 0 | U164: =U28*Inputs!$E171 -> 0 | V164: =V28*Inputs!$E171 -> 0 | W164: =W28*Inputs!$E171 -> 0
C165: Summer off-peak | D165: $million | E165: =H165+NPV(PRDR,MainModule!I165:W165) -> 0 | H165: =H29*Inputs!$E172 -> 0 | I165: =I29*Inputs!$E172 -> 0 | J165: =J29*Inputs!$E172 -> 0 | K165: =K29*Inputs!$E172 -> 0 | L165: =L29*Inputs!$E172 -> 0 | M165: =M29*Inputs!$E172 -> 0 | N165: =N29*Inputs!$E172 -> 0 | O165: =O29*Inputs!$E172 -> 0 | P165: =P29*Inputs!$E172 -> 0 | Q165: =Q29*Inputs!$E172 -> 0 | R165: =R29*Inputs!$E172 -> 0 | S165: =S29*Inputs!$E172 -> 0 | T165: =T29*Inputs!$E172 -> 0 | U165: =U29*Inputs!$E172 -> 0 | V165: =V29*Inputs!$E172 -> 0 | W165: =W29*Inputs!$E172 -> 0
C166: Winter peak | D166: $million | E166: =H166+NPV(PRDR,MainModule!I166:W166) -> 0 | H166: =H30*Inputs!$E173 -> 0 | I166: =I30*Inputs!$E173 -> 0 | J166: =J30*Inputs!$E173 -> 0 | K166: =K30*Inputs!$E173 -> 0 | L166: =L30*Inputs!$E173 -> 0 | M166: =M30*Inputs!$E173 -> 0 | N166: =N30*Inputs!$E173 -> 0 | O166: =O30*Inputs!$E173 -> 0 | P166: =P30*Inputs!$E173 -> 0 | Q166: =Q30*Inputs!$E173 -> 0 | R166: =R30*Inputs!$E173 -> 0 | S166: =S30*Inputs!$E173 -> 0 | T166: =T30*Inputs!$E173 -> 0 | U166: =U30*Inputs!$E173 -> 0 | V166: =V30*Inputs!$E173 -> 0 | W166: =W30*Inputs!$E173 -> 0
C167: Winter off-peak | D167: $million | E167: =H167+NPV(PRDR,MainModule!I167:W167) -> 0 | H167: =H31*Inputs!$E174 -> 0 | I167: =I31*Inputs!$E174 -> 0 | J167: =J31*Inputs!$E174 -> 0 | K167: =K31*Inputs!$E174 -> 0 | L167: =L31*Inputs!$E174 -> 0 | M167: =M31*Inputs!$E174 -> 0 | N167: =N31*Inputs!$E174 -> 0 | O167: =O31*Inputs!$E174 -> 0 | P167: =P31*Inputs!$E174 -> 0 | Q167: =Q31*Inputs!$E174 -> 0 | R167: =R31*Inputs!$E174 -> 0 | S167: =S31*Inputs!$E174 -> 0 | T167: =T31*Inputs!$E174 -> 0 | U167: =U31*Inputs!$E174 -> 0 | V167: =V31*Inputs!$E174 -> 0 | W167: =W31*Inputs!$E174 -> 0
C168: Demand charge | D168: $million | E168: =H168+NPV(PRDR,MainModule!I168:W168) -> 0 | H168: =H33*Inputs!$E$163/10^3 -> 0 | I168: =I33*Inputs!$E$163/10^3 -> 0 | J168: =J33*Inputs!$E$163/10^3 -> 0 | K168: =K33*Inputs!$E$163/10^3 -> 0 | L168: =L33*Inputs!$E$163/10^3 -> 0 | M168: =M33*Inputs!$E$163/10^3 -> 0 | N168: =N33*Inputs!$E$163/10^3 -> 0 | O168: =O33*Inputs!$E$163/10^3 -> 0 | P168: =P33*Inputs!$E$163/10^3 -> 0 | Q168: =Q33*Inputs!$E$163/10^3 -> 0 | R168: =R33*Inputs!$E$163/10^3 -> 0 | S168: =S33*Inputs!$E$163/10^3 -> 0 | T168: =T33*Inputs!$E$163/10^3 -> 0 | U168: =U33*Inputs!$E$163/10^3 -> 0 | V168: =V33*Inputs!$E$163/10^3 -> 0 | W168: =W33*Inputs!$E$163/10^3 -> 0
C169: Fuel cost reduction | D169: $million | E169: =H169+NPV(PRDR,MainModule!I169:W169) -> 16.18478945 | H169: =H34*Inputs!$E$176/1000 -> 0 | I169: =I34*Inputs!$E$176/1000 -> 3.47342629 | J169: =J34*Inputs!$E$176/1000 -> 3.47342629 | K169: =K34*Inputs!$E$176/1000 -> 3.47342629 | L169: =L34*Inputs!$E$176/1000 -> 1.042027887 | M169: =M34*Inputs!$E$176/1000 -> 1.042027887 | N169: =N34*Inputs!$E$176/1000 -> 1.042027887 | O169: =O34*Inputs!$E$176/1000 -> 1.042027887 | P169: =P34*Inputs!$E$176/1000 -> 1.042027887 | Q169: =Q34*Inputs!$E$176/1000 -> 1.042027887 | R169: =R34*Inputs!$E$176/1000 -> 1.042027887 | S169: =S34*Inputs!$E$176/1000 -> 1.042027887 | T169: =T34*Inputs!$E$176/1000 -> 1.042027887 | U169: =U34*Inputs!$E$176/1000 -> 1.042027887 | V169: =V34*Inputs!$E$176/1000 -> 1.042027887 | W169: =W34*Inputs!$E$176/1000 -> 0
C170: Total participant benefit | D170: $million | E170: =H170+NPV(PRDR,MainModule!I170:W170) -> 27.27464588 | H170: =SUM(H163:H169) -> 0 | I170: =SUM(I163:I169) -> 5.85342629 | J170: =SUM(J163:J169) -> 5.85342629 | K170: 5.85342629 | L170: 1.756027887 | M170: 1.756027887 | N170: 1.756027887 | O170: 1.756027887 | P170: 1.756027887 | Q170: 1.756027887 | R170: 1.756027887 | S170: =SUM(S163:S169) -> 1.756027887 | T170: =SUM(T163:T169) -> 1.756027887 | U170: =SUM(U163:U169) -> 1.756027887 | V170: =SUM(V163:V169) -> 1.756027887 | W170: =SUM(W163:W169) -> 0
C171: Total participant cost | D171: $million | E171: =H171+NPV(PRDR,MainModule!I171:W171) -> 7.927470627 | H171: =H73/1000 -> 0.4284520157 | I171: 7.345773541 | J171: 0.329 | K171: 0.329 | L171: 0 | M171: 0 | N171: 0 | O171: 0 | P171: 0 | Q171: 0 | R171: 0 | S171: 0 | T171: 0 | U171: 0 | V171: 0 | W171: 0
C172: Net benefit | D172: $million | E172: =H172+NPV(PRDR,MainModule!I172:W172) -> 19.34717525 | H172: =H170-H171 -> -0.4284520157 | I172: -1.492347251 | J172: 5.52442629 | K172: 5.52442629 | L172: 1.756027887 | M172: 1.756027887 | N172: 1.756027887 | O172: 1.756027887 | P172: 1.756027887 | Q172: 1.756027887 | R172: =R170-R171 -> 1.756027887 | S172: 1.756027887 | T172: 1.756027887 | U172: 1.756027887 | V172: 1.756027887 | W172: 0
C173: BC ratio | D173: Benefit / Cost Ratio | E173: =IF(ISERROR(E170/E171),"-",E170/E171) -> 3.440523108
B177: Results for charts
C179: Benefit Cost Results under Three Test
D180: SC | E180: TRC | F180: PAC | G180: PC
C181: Net benefit
C182: Benefit | D182: =E156 -> 38.43387494 | E182: =E138 -> 28.34235763 | F182: =E118 -> 28.34235763 | G182: =E170 -> 27.27464588
C183: Cost | D183: =-E157 -> -11.91905241 | E183: =-E139 -> -11.67352378 | F183: =-E119 -> -3.502057135 | G183: =-E171 -> -7.927470627
C184: BC Ratio | D184: =D182/(-D183) -> 3.224574708 | E184: =E182/(-E183) -> 2.427917924 | F184: =F182/-F183 -> 8.093059747 | G184: =G182/-G183 -> 3.440523108
B190: Total Resource Cost Test
D191: Benefit | E191: Cost | F191: Participant or Program Cost
C192: Avoided generation kWh | D192: =E125 -> 10.35853197
C193: Avoided capacity kW | D193: =E130 -> 1.180288871
C194: Avoided T&D KW | D194: =E131 -> 1.35150472
C195: Price reduction effect | D195: =E132+E135 -> 0
C196: Avoided MMBtu | D196: =E134 -> 0
C198: Customer non-energy benefit | D198: =E133+E136 -> 0
C199: Environmental compliance cost | D199: =E137 -> 5.093500088
C200: SEP implementation cost | E200: =E63/1000 -> 1.206321209
C201: Capital improvement cost | E201: =E66/1000 -> 9.594065915
C202: Maintenance cost | E202: =E67/1000 -> 0.8731366572
C203: =C68 -> Administrative cost | E203: =E68/1000 -> 0
C204: Participant cost | F204: =E73/1000 -> 8.171466647
C205: Program administrator cost | F205: =E77/1000 -> 3.502057135
B207: Societal Cost Test
D208: Benefit | E208: Cost
C209: Avoided generation kWh | D209: =E145 -> 11.49869821
C210: Avoided capacity kW | D210: =E150 -> 1.310203566
C211: Avoided T&D KW | D211: =E151 -> 1.500265187
C212: Avoided MMBtu | D212: =E153 -> 0
C213: Customer non-energy benefit | D213: =E152+E154 -> 0
C214: Externalities | D214: =E155 -> 12.62600976
C215: SEP implementation cost | E215: =E200 -> 1.206321209
C216: Capital improvement cost | E216: =E201 -> 9.594065915
C217: Maintenance cost | E217: =E202 -> 0.8731366572
C218: =C203 -> Administrative cost | E218: =E203 -> 0
C219: Participant cost
C220: Program administrator cost
B223: Program Administrator Test
D224: Benefit | E224: Cost
C225: Avoided generation kWh | D225: =D192 -> 10.35853197
C226: Avoided capacity kW | D226: 1.180288871
C227: Avoided T&D KW | D227: 1.35150472
C228: Electricity price reduction effect | D228: 0
C229: Avoided MMBtu | D229: 0
C230: Fuel price reduction effect | D230: =D197 -> 0
C231: Environmental compliance cost | D231: =E117 -> 5.093500088
C232: SEP implementation cost | E232: =E78/1000 -> 0.3618963628
... 28 more rows

Sheet Outputs
B2: ="Key Outputs - "&Index!C7 -> Key Outputs - Pennsylvania | P2: Back to Index Sheet
B4: SEP Program Budget ($000)
B6: Program Year | E6: Year 1 | F6: Year 2 | G6: Year 3 | H6: Year 4 | I6: Year 5
B7: SEP implementation cost | E7: =MainModule!H78 -> 183.6222924 | F7: =MainModule!I78 -> 183.6222924 | G7: =MainModule!J78 -> 0 | H7: =MainModule!K78 -> 0 | I7: =MainModule!L78 -> 0
B8: Maintenance cost | E8: =MainModule!H80 -> 0 | F8: =MainModule!I80 -> 0 | G8: =MainModule!J80 -> 141 | H8: =MainModule!K80 -> 141 | I8: =MainModule!L80 -> 0
B9: Capital improvement cost | E9: =MainModule!H79 -> 0 | F9: =MainModule!I79 -> 2964.566368 | G9: =MainModule!J79 -> 0 | H9: =MainModule!K79 -> 0 | I9: =MainModule!L79 -> 0
B10: Administrative cost | E10: =MainModule!H81 -> 0 | F10: =MainModule!I81 -> 0 | G10: =MainModule!J81 -> 0 | H10: =MainModule!K81 -> 0 | I10: =MainModule!L81 -> 0
B11: Total | E11: =SUM(E7:E9) -> 183.6222924 | F11: =SUM(F7:F9) -> 3148.18866 | G11: =SUM(G7:G9) -> 141 | H11: =SUM(H7:H9) -> 141 | I11: =SUM(I7:I9) -> 0
B13: Annual Electricity Savings (GWh) | K13: Annual Peak Load Savings (MW)
B32: Annual Fuel Savings (billion Btu)
B51: Benefits and Costs in Net Present Value (NPV) | K51: Benefit Cost Ratios
B70: SEP Electricity Savings and Cost Share (%) | K70: SEP Incentive and Participant Cost Share (%)
B99: Benefit Cost in NPV under Total Resource Cost (TRC) Test | K99: Benefit Cost in NPV under Societal Cost Test
B119: Benefit Cost in NPV under Program Administrator Test | K119: Benefit Cost in NPV under Participant Cost Test
B141: Levelized Costs of Saved Gas and Electricity for Capital and Operational Energy Improvement Projects
D143: NPV Elec Sav. (GWh) | E143: NPV Fuel Sav (BBTU) | F143: NPV Cost ($000) | G143: NPV Elec cost ($000) | H143: NPV Gas cost ($000) | I143: All in levelized cost ($/MMBtu) | J143: Electric levelized cost ($/kWh) | L143: Gas levelized cost ($/MMBtu)
B144: Operational NPV | D144: =MainModule!F11 -> 67.32095025 | E144: =MainModule!F17 -> 737.2832069 | F144: =MainModule!E63+MainModule!E67 -> 2079.457866 | I144: =F144/(D144*3.412+E144) -> 2.150461172 | J144: =F144/(D144*1000) -> 0.03088871828 | L144: =F144/E144 -> 2.820432972
B145: Capital NPV | D145: =MainModule!F19 -> 115.219946 | E145: =MainModule!F25 -> 1261.861738 | F145: =MainModule!E66 -> 9594.065915 | G145: =(MainModule!I19*Inputs!E135*1000) -> 5593.658031 | H145: =(MainModule!I25*Inputs!E136) -> 4288.229862 | I145: =F145/(D145*3.412+E145) -> 5.797046022 | J145: =G145/(D145*1000) -> 0.04854765363 | L145: =H145/(E145) -> 3.398335754

Sheet EIA_Elec
A1: Year | B1: Month | C1: State | D1: Residential Revenue (Thousand $) | E1: Commercial Revenue (Thousand $) | F1: Industrial Revenue (Thousand $) | G1: Transportation Revenue (Thousand $) | H1: Other Revenue (Thousand $) | I1: All Sectors Revenue (Thousand $) | J1: Residential Sales (MWh) | K1: Commercial Sales (MWh) | L1: Industrial Sales (MWh) | M1: Transportation Sales (MWh) | N1: Other Sales (MWh) | O1: All Sector Sales (MWh) | P1: Average Retail Price Residential (c/kWh) | Q1: Average Retail Price Commercial (c/kWh) | R1: Average Retail Price Industrial (c/kWh) | S1: Average Retail Price Transportation (c/kWh) | T1: Average Retail Price Other (c/kWh) | U1: Average Retail Price All Sectors (c/kWh)
A2: 1990 | C2: AK Total | D2: 167998 | E2: 177645 | F2: 36308 | G2: 0 | H2: 21301 | I2: 403247 | J2: 1661309 | K2: 1972116 | L2: 459283 | M2: 0 | N2: 161130 | O2: 4253839 | P2: 10.11238728 | Q2: 9.007837267 | R2: 7.905365537 | T2: 13.21976044 | U2: 9.479601837
A3: 1990 | C3: AL Total | D3: 1366083 | E3: 738047 | F3: 1199222 | G3: 0 | H3: 34241 | I3: 3337594 | J3: 20718679 | K3: 10978788 | L3: 27617687 | M3: 0 | N3: 610459 | O3: 59925613 | P3: 6.593485038 | Q3: 6.722481571 | R3: 4.342224604 | T3: 5.609058102 | U3: 5.569561716
A4: 1990 | C4: AR Total | D4: 851685 | E4: 422196 | F4: 516152 | G4: 0 | H4: 42942 | I4: 1832979 | J4: 10557865 | K4: 6075078 | L4: 10126207 | M4: 0 | N4: 606143 | O4: 27365296 | P4: 8.066829799 | Q4: 6.949639165 | R4: 5.097189895 | T4: 7.084466867 | U4: 6.698188099
A5: 1990 | C5: AZ Total | D5: 1390115 | E5: 1138694 | F5: 560111 | G5: 0 | H5: 125807 | I5: 3214725 | J5: 15377684 | K5: 13731291 | L5: 10033741 | M5: 0 | N5: 2326872 | O5: 41469585 | P5: 9.039820301 | Q5: 8.292694401 | R5: 5.582274846 | T5: 5.406700497 | U5: 7.752006682
A6: 1990 | C6: CA Total | D6: 6646479 | E6: 7541253 | F6: 4071492 | G6: 0 | H6: 404381 | I6: 18663604 | J6: 66574670 | K6: 79691298 | L6: 55891513 | M6: 0 | N6: 8935441 | O6: 211092921 | P6: 9.983495224 | Q6: 9.463082155 | R6: 7.284633715 | T6: 4.525585251 | U6: 8.841416335
A7: 1990 | C7: CO Total | D7: 687084 | E7: 768032 | F7: 295788 | G7: 0 | H7: 63149 | I7: 1814049 | J7: 9787279 | K7: 13553025 | L7: 6586860 | M7: 0 | N7: 867424 | O7: 30794589 | P7: 7.02017384 | Q7: 5.666867729 | R7: 4.490576694 | T7: 7.280061423 | U7: 5.890804388
A8: 1990 | C8: CT Total | D8: 1038460 | E8: 942670 | F8: 460626 | G8: 0 | H8: 47353 | I8: 2489109 | J8: 10375882 | K8: 10342476 | L8: 6099932 | M8: 0 | N8: 368947 | O8: 27187240 | P8: 10.00840218 | Q8: 9.114548586 | R8: 7.55133008 | T8: 12.83463478 | U8: 9.155431004
A9: 1990 | C9: DC Total | D9: 90320 | E9: 322119 | F9: 153717 | G9: 0 | H9: 18427 | I9: 584583 | J9: 1480356 | K9: 5073157 | L9: 2976219 | M9: 0 | N9: 318713 | O9: 9848445 | P9: 6.101235108 | Q9: 6.349478244 | R9: 5.1648417 | T9: 5.781690737 | U9: 5.935789863
A10: 1990 | C10: DE Total | D10: 222545 | E10: 159717 | F10: 147636 | G10: 0 | H10: 5179 | I10: 535072 | J10: 2651447 | K10: 2310713 | L10: 3271591 | M10: 0 | N10: 50114 | O10: 8283868 | P10: 8.393341447 | Q10: 6.912022393 | R10: 4.512666773 | T10: 10.33443748 | U10: 6.459204806
A11: 1990 | C11: FL Total | D11: 5527171 | E11: 3421034 | F11: 844104 | G11: 0 | H11: 305558 | I11: 10097869 | J11: 71114670 | K11: 51342235 | L11: 16604581 | M11: 0 | N11: 4473395 | O11: 143534878 | P11: 7.772195245 | Q11: 6.663196489 | R11: 5.083560976 | T11: 6.830561576 | U11: 7.035132604
A12: 1990 | C12: GA Total | D12: 2233265 | E12: 1676868 | F12: 1290544 | G12: 0 | H12: 74791 | I12: 5275470 | J12: 29932836 | K12: 22867547 | L12: 26717324 | M12: 0 | N12: 922408 | O12: 80440115 | P12: 7.460920175 | Q12: 7.332959674 | R12: 4.830363999 | T12: 8.1082341 | U12: 6.558257655
A13: 1990 | C13: HI Total | D13: 238408 | E13: 223319 | F13: 282628 | G13: 0 | H13: 5492 | I13: 749848 | J13: 2323950 | K13: 2194417 | L13: 3733754 | M13: 0 | N13: 58419 | O13: 8310540 | P13: 10.25874051 | Q13: 10.1766893 | R13: 7.569539932 | T13: 9.401051028 | U13: 9.022855314
A14: 1990 | C14: IA Total | D14: 821178 | E14: 421538 | F14: 453290 | G14: 0 | H14: 48622 | I14: 1744626 | J14: 10513101 | K14: 6727380 | L14: 11392481 | M14: 0 | N14: 804416 | O14: 29437380 | P14: 7.810996965 | Q14: 6.266005488 | R14: 3.978852368 | T14: 6.044384995 | U14: 5.926566834
A15: 1990 | C15: ID Total | D15: 274082 | E15: 207823 | F15: 187817 | G15: 0 | H15: 14785 | I15: 684511 | J15: 5626311 | K15: 4894063 | L15: 7165289 | M15: 0 | N15: 317759 | O15: 18003422 | P15: 4.87143352 | Q15: 4.246430829 | R15: 2.621206207 | T15: 4.652897322 | U15: 3.802116064
A16: 1990 | C16: IL Total | D16: 3260358 | E16: 2464895 | F16: 2121723 | G16: 0 | H16: 513971 | I16: 8360944 | J16: 32871442 | K16: 31734448 | L16: 39298520 | M16: 0 | N16: 7672368 | O16: 111576774 | P16: 9.918512245 | Q16: 7.767253428 | R16: 5.39898958 | T16: 6.698987848 | U16: 7.493444828
A17: 1990 | C17: IN Total | D17: 1519282 | E17: 937573 | F17: 1456485 | G17: 0 | H17: 50608 | I17: 3963950 | J17: 22110950 | K17: 15501742 | L17: 35743097 | M17: 0 | N17: 626429 | O17: 73982218 | P17: 6.871174689 | Q17: 6.048178327 | R17: 4.074870737 | T17: 8.078808612 | U17: 5.357976697
A18: 1990 | C18: KS Total | D18: 744998 | E18: 609175 | F18: 399867 | G18: 0 | H18: 30869 | I18: 1784908 | J18: 9514697 | K18: 9169289 | L18: 8087146 | M18: 0 | N18: 377638 | O18: 27148766 | P18: 7.829970834 | Q18: 6.643644889 | R18: 4.944476086 | T18: 8.174230348 | U18: 6.574545598
A19: 1990 | C19: KY Total | D19: 957514 | E19: 497210 | F19: 1165366 | G19: 0 | H19: 116721 | I19: 2736807 | J19: 16813545 | K19: 9252218 | L19: 32543260 | M19: 0 | N19: 2487853 | O19: 61096873 | P19: 5.694896585 | Q19: 5.373954656 | R19: 3.580974985 | T19: 4.69163572 | U19: 4.479455111
A20: 1990 | C20: LA Total | D20: 1587467 | E20: 973398 | F20: 1082569 | G20: 0 | H20: 186744 | I20: 3830174 | J20: 21433524 | K20: 13814111 | L20: 25861968 | M20: 0 | N20: 2716288 | O20: 63825890 | P20: 7.406467551 | Q20: 7.046403493 | R20: 4.185949809 | T20: 6.874970548 | U20: 6.000972333
A21: 1990 | C21: MA Total | D21: 1504941 | E21: 1589746 | F21: 801597 | G21: 0 | H21: 124041 | I21: 4020327 | J21: 15581196 | K21: 18565267 | L21: 10156904 | M21: 0 | N21: 1138304 | O21: 45441672 | P21: 9.658700141 | Q21: 8.563011779 | R21: 7.892139179 | T21: 10.89700115 | U21: 8.847225076
A22: 1990 | C22: MD Total | D22: 1379761 | E22: 701543 | F22: 984268 | G22: 0 | H22: 55854 | I22: 3121423 | J22: 19101665 | K22: 10452013 | L22: 19308301 | M22: 0 | N22: 671751 | O22: 49533729 | P22: 7.22324991 | Q22: 6.712037193 | R22: 5.097641683 | T22: 8.314688032 | U22: 6.301611171
A23: 1990 | C23: ME Total | D23: 365519 | E23: 214496 | F23: 283011 | G23: 0 | H23: 18879 | I23: 881903 | J23: 3932267 | K23: 2672724 | L23: 4750046 | M23: 0 | N23: 173942 | O23: 11528975 | P23: 9.295375924 | Q23: 8.025370371 | R23: 5.958068617 | T23: 10.85361787 | U23: 7.649448455
A24: 1990 | C24: MI Total | D24: 1982482 | E24: 1678551 | F24: 2051269 | G24: 0 | H24: 137349 | I24: 5849651 | J24: 25318851 | K24: 20609560 | L24: 35062021 | M24: 0 | N24: 1376437 | O24: 82366870 | P24: 7.830063062 | Q24: 8.144526133 | R24: 5.850401493 | T24: 9.978589648 | U24: 7.10194645
A25: 1990 | C25: MN Total | D25: 1010592 | E25: 483354 | F25: 973369 | G25: 0 | H25: 48856 | I25: 2516172 | J25: 14857555 | K25: 8085871 | L25: 23496826 | M25: 0 | N25: 726659 | O25: 47166914 | P25: 6.801872852 | Q25: 5.977760466 | R25: 4.142555254 | T25: 6.723373687 | U25: 5.334612309
A26: 1990 | C26: MO Total | D26: 1592729 | E26: 1192964 | F26: 639878 | G26: 0 | H26: 59001 | I26: 3484571 | J26: 21652353 | K26: 18468963 | L26: 12937381 | M26: 0 | N26: 865938 | O26: 53924638 | P26: 7.355916468 | Q26: 6.459290649 | R26: 4.945962402 | T26: 6.813536304 | U26: 6.461927477
A27: 1990 | C27: MS Total | D27: 845127 | E27: 486201 | F27: 578933 | G27: 0 | H27: 53051 | I27: 1963314 | J27: 12265641 | K27: 6746134 | L27: 12454455 | M27: 0 | N27: 660849 | O27: 32127077 | P27: 6.890198401 | Q27: 7.207105581 | R27: 4.648400914 | T27: 8.027703757 | U27: 6.111088164
A28: 1990 | C28: MT Total | D28: 183019 | E28: 128107 | F28: 187147 | G28: 0 | H28: 21270 | I28: 519544 | J28: 3358385 | K28: 2737526 | L28: 6529327 | M28: 0 | N28: 499346 | O28: 13124583 | P28: 5.44961343 | Q28: 4.679663316 | R28: 2.866252525 | T28: 4.25957152 | U28: 3.958556245
A29: 1990 | C29: NC Total | D29: 2599409 | E29: 1530508 | F29: 1491998 | G29: 0 | H29: 117719 | I29: 5739631 | J29: 33144041 | K29: 23834909 | L29: 31264698 | M29: 0 | N29: 1680838 | O29: 89924487 | P29: 7.842764254 | Q29: 6.421287365 | R29: 4.772149086 | T29: 7.003589876 | U29: 6.382723095
A30: 1990 | C30: ND Total | D30: 184784 | E30: 115688 | F30: 84329 | G30: 0 | H30: 18489 | I30: 403293 | J30: 2954024 | K30: 1794510 | L30: 1759713 | M30: 0 | N30: 505606 | O30: 7013849 | P30: 6.25533171 | Q30: 6.446773771 | R30: 4.79220191 | T30: 3.656799959 | U30: 5.749952701
A31: 1990 | C31: NE Total | D31: 423389 | E31: 291603 | F31: 193534 | G31: 0 | H31: 87133 | I31: 995665 | J31: 6799606 | K31: 5086141 | L31: 4618082 | M31: 0 | N31: 1364424 | O31: 17868252 | P31: 6.226669604 | Q31: 5.733285805 | R31: 4.190787431 | T31: 6.386064742 | U31: 5.572257432
A32: 1990 | C32: NH Total | D32: 356128 | E32: 191075 | F32: 255513 | G32: 0 | H32: 13585 | I32: 816302 | J32: 3444196 | K32: 2010427 | L32: 3418392 | M32: 0 | N32: 106601 | O32: 8979614 | P32: 10.33994581 | Q32: 9.504199854 | R32: 7.47465475 | T32: 12.74378289 | U32: 9.090613472
A33: 1990 | C33: NJ Total | D33: 2123447 | E33: 2400040 | F33: 1107442 | G33: 0 | H33: 76504 | I33: 5707434 | J33: 20497981 | K33: 26838616 | L33: 15040847 | M33: 0 | N33: 479244 | O33: 62856686 | P33: 10.35929831 | Q33: 8.942487943 | R33: 7.362896518 | T33: 15.96347581 | U33: 9.080074632
A34: 1990 | C34: NM Total | D34: 318672 | E34: 363175 | F34: 219615 | G34: 0 | H34: 79606 | I34: 981068 | J34: 3565533 | K34: 4464123 | L34: 4412882 | M34: 0 | N34: 1378224 | O34: 13820760 | P34: 8.937569783 | Q34: 8.13541652 | R34: 4.976679639 | T34: 5.775984165 | U34: 7.098509778
A35: 1990 | C35: NV Total | D35: 315921 | E35: 239151 | F35: 294048 | G35: 0 | H35: 30697 | I35: 879817 | J35: 5539534 | K35: 3865559 | L35: 6262803 | M35: 0 | N35: 683998 | O35: 16351894 | P35: 5.703024839 | Q35: 6.186711935 | R35: 4.695150079 | T35: 4.48787862 | U35: 5.380520446
A36: 1990 | C36: NY Total | D36: 4414190 | E36: 4911434 | F36: 1846248 | G36: 0 | H36: 947333 | I36: 12119202 | J36: 38574309 | K36: 46921091 | L36: 31929348 | M36: 0 | N36: 11899687 | O36: 129324439 | P36: 11.44334173 | Q36: 10.4674335 | R36: 5.782291577 | T36: 7.960990907 | U36: 9.371161471
A37: 1990 | C37: OH Total | D37: 3048950 | E37: 2268895 | F37: 2807913 | G37: 0 | H37: 267473 | I37: 8393230 | J37: 37889449 | K37: 30540856 | L37: 69681658 | M37: 0 | N37: 4353507 | O37: 142465472 | P37: 8.046963153 | Q37: 7.429048485 | R37: 4.029630007 | T37: 6.143851382 | U37: 5.891413465
A38: 1990 | C38: OK Total | D38: 1124494 | E38: 668062 | F38: 427321 | G38: 0 | H38: 108111 | I38: 2327991 | J38: 17077367 | K38: 11633982 | L38: 11763695 | M38: 0 | N38: 2029174 | O38: 42504220 | P38: 6.584703602 | Q38: 5.742333107 | R38: 3.632540626 | T38: 5.327832901 | U38: 5.47708204
A39: 1990 | C39: OR Total | D39: 727265 | E39: 542606 | F39: 489503 | G39: 0 | H39: 37219 | I39: 1796595 | J39: 15379614 | K39: 11319210 | L39: 15498134 | M39: 0 | N39: 780487 | O39: 42977443 | P39: 4.728759773 | Q39: 4.793673763 | R39: 3.158464109 | T39: 4.768689293 | U39: 4.180320826
A40: 1990 | C40: PA Total | D40: 3519366 | E40: 2359834 | F40: 2747622 | G40: 0 | H40: 155010 | I40: 8781831 | J40: 38164153 | K40: 29159184 | L40: 45991880 | M40: 0 | N40: 1435443 | O40: 114750660 | P40: 9.221653629 | Q40: 8.09293566 | R40: 5.974145871 | T40: 10.7987569 | U40: 7.652967748
A41: 1990 | C41: RI Total | D41: 233826 | E41: 222634 | F41: 113020 | G41: 0 | H41: 17798 | I41: 587288 | J41: 2376295 | K41: 2492126 | L41: 1354199 | M41: 0 | N41: 196356 | O41: 6418978 | P41: 9.839939906 | Q41: 8.933496942 | R41: 8.345893033 | T41: 9.064148791 | U41: 9.149244631
A42: 1990 | C42: SC Total | D42: 1305102 | E42: 733904 | F42: 1031925 | G42: 0 | H42: 42361 | I42: 3113292 | J42: 18257716 | K42: 11926736 | L42: 24701256 | M42: 0 | N42: 766080 | O42: 55651790 | P42: 7.148221607 | Q42: 6.153435441 | R42: 4.177621575 | T42: 5.529579156 | U42: 5.594235154
A43: 1990 | C43: SD Total | D43: 199167 | E43: 96919 | F43: 77145 | G43: 0 | H43: 14838 | I43: 388071 | J43: 2866176 | K43: 1450044 | L43: 1656961 | M43: 0 | N43: 360714 | O43: 6333893 | P43: 6.948875435 | Q43: 6.683866145 | R43: 4.655812659 | T43: 4.113508209 | U43: 6.126895418
A44: 1990 | C44: TN Total | D44: 1636627 | E44: 738774 | F44: 1656024 | G44: 0 | H44: 65026 | I44: 4096453 | J44: 28756837 | K44: 12127835 | L44: 35312602 | M44: 0 | N44: 947496 | O44: 77144770 | P44: 5.691262221 | Q44: 6.091557149 | R44: 4.689611941 | T44: 6.862931347 | U44: 5.310085181
A45: 1990 | C45: TX Total | D45: 5947366 | E45: 3843076 | F45: 3390548 | G45: 0 | H45: 533621 | I45: 13714615 | J45: 82547570 | K45: 62238154 | L45: 84086943 | M45: 0 | N45: 8542460 | O45: 237415126 | P45: 7.204774168 | Q45: 6.17479111 | R45: 4.032193203 | T45: 6.246690064 | U45: 5.776639101
A46: 1990 | C46: UT Total | D46: 302855 | E46: 282529 | F46: 219380 | G46: 0 | H46: 36361 | I46: 841129 | J46: 4246106 | K46: 4514613 | L46: 5766212 | M46: 0 | N46: 874744 | O46: 15401673 | P46: 7.13253508 | Q46: 6.258100085 | R46: 3.804577424 | T46: 4.156759006 | U46: 5.461283329
A47: 1990 | C47: VA Total | D47: 2038636 | E47: 1225465 | F47: 699742 | G47: 0 | H47: 422268 | I47: 4386111 | J47: 28129554 | K47: 20213040 | L47: 16398544 | M47: 0 | N47: 7955131 | O47: 72696270 | P47: 7.247310071 | Q47: 6.062744644 | R47: 4.267098347 | T47: 5.308121262 | U47: 6.03347462
A48: 1990 | C48: VT Total | D48: 167609 | E48: 126186 | F48: 91377 | G48: 0 | H48: 5132 | I48: 390304 | J48: 1808617 | K48: 1484125 | L48: 1381173 | M48: 0 | N48: 42317 | O48: 4716230 | P48: 9.267246742 | Q48: 8.502383559 | R48: 6.615898226 | T48: 12.12751377 | U48: 8.275762632
A49: 1990 | C49: WA Total | D49: 1265910 | E49: 733561 | F49: 972036 | G49: 0 | H49: 120368 | I49: 3091876 | J49: 28808844 | K49: 17682978 | L49: 40711980 | M49: 0 | N49: 3842350 | O49: 91046150 | P49: 4.394171457 | Q49: 4.148401926 | R49: 2.387592055 | T49: 3.132666207 | U49: 3.395943705
A50: 1990 | C50: WI Total | D50: 1087158 | E50: 733469 | F50: 774243 | G50: 0 | H50: 45942 | I50: 2640811 | J50: 16385267 | K50: 12697933 | L50: 19405056 | M50: 0 | N50: 709772 | O50: 49198027 | P50: 6.634972747 | Q50: 5.776286581 | R50: 3.989903456 | T50: 6.472782809 | U50: 5.367717287
A51: 1990 | C51: WV Total | D51: 446792 | E51: 267444 | F51: 372928 | G51: 0 | H51: 7698 | I51: 1094863 | J51: 7577863 | K51: 4991117 | L51: 10469459 | M51: 0 | N51: 93990 | O51: 23132431 | P51: 5.896015803 | Q51: 5.358399733 | R51: 3.562056072 | T51: 8.190233004 | U51: 4.733021791
A52: 1990 | C52: WY Total | D52: 102694 | E52: 112469 | F52: 268441 | G52: 0 | H52: 11344 | I52: 494945 | J52: 1719932 | K52: 2175802 | L52: 7729470 | M52: 0 | N52: 143635 | O52: 11768838 | P52: 5.970817451 | Q52: 5.169082481 | R52: 3.472954808 | T52: 7.897796498 | U52: 4.205555383
A53: 1990 | B53: US Total | C53: US Total | D53: 72378419 | E53: 55116669 | F53: 44856812 | G53: 0 | H53: 5890878 | I53: 178242791 | J53: 924018694 | K53: 751026561 | L53: 945521701 | M53: 0 | N53: 91987720 | O53: 2712554662 | P53: 7.833003755 | Q53: 7.338844172 | R53: 4.744133525 | T53: 6.403983053 | U53: 6.571030383
A54: 1991 | C54: AK Total | D54: 171087 | E54: 185865 | F54: 38275 | G54: 0 | H54: 22033 | I54: 417259 | J54: 1602778 | K54: 2005246 | L54: 465877 | M54: 0 | N54: 181811 | O54: 4255712 | P54: 10.67440407 | Q54: 9.268937577 | R54: 8.215687832 | T54: 12.11862869 | U54: 9.804681332 | IV54: =SUM(A54:IU54) -> 9347984.082
A55: 1991 | C55: AL Total | D55: 1424738 | E55: 772999 | F55: 1223477 | G55: 0 | H55: 34613 | I55: 3455828 | J55: 21293429 | K55: 11349000 | L55: 27985477 | M55: 0 | N55: 599422 | O55: 61227325 | P55: 6.690974948 | Q55: 6.811163979 | R55: 4.371828288 | T55: 5.774396001 | U55: 5.644257691
A56: 1991 | C56: AR Total | D56: 891553 | E56: 437986 | F56: 530630 | G56: 0 | H56: 42448 | I56: 1902619 | J56: 11000634 | K56: 6300360 | L56: 10517511 | M56: 0 | N56: 621758 | O56: 28440256 | P56: 8.104560155 | Q56: 6.951761487 | R56: 5.045205087 | T56: 6.827093499 | U56: 6.689880007
A57: 1991 | C57: AZ Total | D57: 1430267 | E57: 1160910 | F57: 580405 | G57: 0 | H57: 111705 | I57: 3283287 | J57: 15641499 | K57: 13982060 | L57: 10404970 | M57: 0 | N57: 1819889 | O57: 41848417 | P57: 9.144053265 | Q57: 8.3028538 | R57: 5.578151595 | T57: 6.138011714 | U57: 7.845665942
A58: 1991 | C58: CA Total | D58: 7120397 | E58: 7876227 | F58: 4259687 | G58: 0 | H58: 404834 | I58: 19661146 | J58: 66016701 | K58: 78424653 | L58: 56191046 | M58: 0 | N58: 8018089 | O58: 208650490 | P58: 10.78575102 | Q58: 10.04304986 | R58: 7.580722025 | T58: 5.049008561 | U58: 9.42300495
A59: 1991 | C59: CO Total | D59: 713847 | E59: 787282 | F59: 307848 | G59: 0 | H59: 63707 | I59: 1872682 | J59: 10099387 | K59: 13741500 | L59: 6748179 | M59: 0 | N59: 867621 | O59: 31456689 | P59: 7.068221071 | Q59: 5.729228978 | R59: 4.561941822 | T59: 7.342722225 | U59: 5.953207599
A60: 1991 | C60: CT Total | D60: 1097438 | E60: 1001134 | F60: 461498 | G60: 0 | H60: 48899 | I60: 2608969 | J60: 10440513 | K60: 10544096 | L60: 5822465 | M60: 0 | N60: 364334 | O60: 27171404 | P60: 10.51134173 | Q60: 9.494735253 | R60: 7.926161858 | T60: 13.4214759 | U60: 9.60189249
A61: 1991 | C61: DC Total | D61: 103970 | E61: 347984 | F61: 165903 | G61: 0 | H61: 19673 | I61: 637530 | J61: 1580079 | K61: 5238080 | L61: 3053128 | M61: 0 | N61: 323876 | O61: 10195163 | P61: 6.580050744 | Q61: 6.643350235 | R61: 5.433869789 | T61: 6.074238289 | U61: 6.253259511
A62: 1991 | C62: DE Total | D62: 243344 | E62: 170122 | F62: 153185 | G62: 0 | H62: 5611 | I62: 572261 | J62: 2824340 | K62: 2419529 | L62: 3240945 | M62: 0 | N62: 51050 | O62: 8535865 | P62: 8.615959835 | Q62: 7.03120318 | R62: 4.726553521 | T62: 10.99118511 | U62: 6.704194595
A63: 1991 | C63: FL Total | D63: 5759430 | E63: 3549204 | F63: 855605 | G63: 0 | H63: 315166 | I63: 10479404 | J63: 72813986 | K63: 52440504 | L63: 16482265 | M63: 0 | N63: 4599488 | O63: 146336239 | P63: 7.909785354 | Q63: 6.768058522 | R63: 5.191064456 | T63: 6.852197462 | U63: 7.161181722 | IV63: =SUM(A63:IU63) -> 313633315.9
A64: 1991 | C64: GA Total | D64: 2264007 | E64: 1709681 | F64: 1300456 | G64: 0 | H64: 78453 | I64: 5352594 | J64: 30186630 | K64: 23240749 | L64: 27193099 | M64: 0 | N64: 918604 | O64: 81539086 | P64: 7.500032299 | Q64: 7.35639372 | R64: 4.782301568 | T64: 8.540459219 | U64: 6.564451802
A65: 1991 | C65: HI Total | D65: 252001 | E65: 237453 | F65: 290943 | G65: 0 | H65: 5505 | I65: 785901 | J65: 2395665 | K65: 2297843 | L65: 3773036 | M65: 0 | N65: 57547 | O65: 8524091 | P65: 10.51904169 | Q65: 10.33373472 | R65: 7.711111158 | T65: 9.566093802 | U65: 9.21976314
A66: 1991 | C66: IA Total | D66: 866430 | E66: 443932 | F66: 468565 | G66: 0 | H66: 50058 | I66: 1828987 | J66: 11159189 | K66: 7123124 | L66: 11684147 | M66: 0 | N66: 815004 | O66: 30781462 | P66: 7.764273909 | Q66: 6.232265506 | R66: 4.010262795 | T66: 6.142055745 | U66: 5.941845777
A67: 1991 | C67: ID Total | D67: 291641 | E67: 206452 | F67: 181228 | G67: 0 | H67: 14526 | I67: 693846 | J67: 5971037 | K67: 4865138 | L67: 6908837 | M67: 0 | N67: 300592 | O67: 18045604 | P67: 4.884260473 | Q67: 4.243497307 | R67: 2.623133242 | T67: 4.832463938 | U67: 3.844958584
A68: 1991 | C68: IL Total | D68: 3549079 | E68: 2632023 | F68: 2179892 | G68: 0 | H68: 552303 | I68: 8913300 | J68: 35963793 | K68: 33118782 | L68: 39712089 | M68: 0 | N68: 8073893 | O68: 116868559 | P68: 9.868478 | Q68: 7.94722161 | R68: 5.489240317 | T68: 6.840603412 | U68: 7.626773254
A69: 1991 | C69: IN Total | D69: 1630485 | E69: 973816 | F69: 1444900 | G69: 0 | H69: 51063 | I69: 4100264 | J69: 24220122 | K69: 16381408 | L69: 35786820 | M69: 0 | N69: 645387 | O69: 77033736 | P69: 6.731943795 | Q69: 5.944641633 | R69: 4.037519958 | T69: 7.911996988 | U69: 5.322686154
A70: 1991 | C70: KS Total | D70: 777383 | E70: 632033 | F70: 410015 | G70: 0 | H70: 31283 | I70: 1850716 | J70: 9933309 | K70: 9551119 | L70: 8283740 | M70: 0 | N70: 384058 | O70: 28152224 | P70: 7.826022527 | Q70: 6.617371221 | R70: 4.949636275 | T70: 8.145384291 | U70: 6.573960196
A71: 1991 | C71: KY Total | D71: 1059489 | E71: 528297 | F71: 1115683 | G71: 0 | H71: 126064 | I71: 2829530 | J71: 18644458 | K71: 9899869 | L71: 32938944 | M71: 0 | N71: 2710528 | O71: 64193803 | P71: 5.682594796 | Q71: 5.336403946 | R71: 3.387124372 | T71: 4.650901964 | U71: 4.40779307
A72: 1991 | C72: LA Total | D72: 1595960 | E72: 981886 | F72: 1102231 | G72: 0 | H72: 163708 | I72: 3843787 | J72: 21576815 | K72: 13970338 | L72: 26583901 | M72: 0 | N72: 2573244 | O72: 64704299 | P72: 7.39664311 | Q72: 7.028362521 | R72: 4.146234971 | T72: 6.361930699 | U72: 5.940543456
A73: 1991 | C73: MA Total | D73: 1599159 | E73: 1707623 | F73: 834697 | G73: 0 | H73: 128981 | I73: 4270460 | J73: 15379420 | K73: 18516908 | L73: 9793514 | M73: 0 | N73: 1106948 | O73: 44796786 | P73: 10.39804492 | Q73: 9.221966216 | R73: 8.522957133 | T73: 11.65194752 | U73: 9.532960691
A74: 1991 | C74: MD Total | D74: 1602645 | E74: 749556 | F74: 1069135 | G74: 0 | H74: 60952 | I74: 3482287 | J74: 20295448 | K74: 10667414 | L74: 19448114 | M74: 0 | N74: 696831 | O74: 51107809 | P74: 7.896573655 | Q74: 7.026595199 | R74: 5.497371108 | T74: 8.747027615 | U74: 6.813610421
A75: 1991 | C75: ME Total | D75: 399076 | E75: 243243 | F75: 315578 | G75: 0 | H75: 20969 | I75: 978863 | J75: 3817134 | K75: 2685496 | L75: 4708840 | M75: 0 | N75: 171310 | O75: 11382783 | P75: 10.45485959 | Q75: 9.057656388 | R75: 6.701820406 | T75: 12.24038293 | U75: 8.59950506
A76: 1991 | C76: MI Total | D76: 2157926 | E76: 1756558 | F76: 2061462 | G76: 0 | H76: 118905 | I76: 6094851 | J76: 26759510 | K76: 21454733 | L76: 35006635 | M76: 0 | N76: 1297662 | O76: 84518542 | P76: 8.064146167 | Q76: 8.187275041 | R76: 5.888775085 | T76: 9.163017797 | U76: 7.211259039
A77: 1991 | C77: MN Total | D77: 1082883 | E77: 510517 | F77: 1018593 | G77: 0 | H77: 51639 | I77: 2663630 | J77: 15655101 | K77: 8416649 | L77: 23937845 | M77: 0 | N77: 745003 | O77: 48754597 | P77: 6.917125607 | Q77: 6.065561247 | R77: 4.255157471 | T77: 6.931381484 | U77: 5.463341231
A78: 1991 | C78: MO Total | D78: 1727704 | E78: 1220603 | F78: 642814 | G78: 0 | H78: 62269 | I78: 3653390 | J78: 23386303 | K78: 19111774 | L78: 13113854 | M78: 0 | N78: 902226 | O78: 56514157 | P78: 7.387674743 | Q78: 6.386654635 | R78: 4.901793172 | T78: 6.901707554 | U78: 6.464557191
A79: 1991 | C79: MS Total | D79: 861027 | E79: 490685 | F79: 585267 | G79: 0 | H79: 50816 | I79: 1987794 | J79: 12517521 | K79: 6831769 | L79: 13024289 | M79: 0 | N79: 645806 | O79: 33019383 | P79: 6.87857444 | Q79: 7.182400342 | R79: 4.493657965 | T79: 7.868616891 | U79: 6.020082204
A80: 1991 | C80: MT Total | D80: 199218 | E80: 140943 | F80: 193272 | G80: 0 | H80: 22016 | I80: 555447 | J80: 3458894 | K80: 2818850 | L80: 6622098 | M80: 0 | N80: 506759 | O80: 13406599 | P80: 5.759586735 | Q80: 5.000017738 | R80: 2.918591661 | T80: 4.344471435 | U80: 4.14308655
A81: 1991 | C81: NC Total | D81: 2732678 | E81: 1599950 | F81: 1517631 | G81: 0 | H81: 122335 | I81: 5972598 | J81: 34390833 | K81: 24675722 | L81: 31514220 | M81: 0 | N81: 1735708 | O81: 92316484 | P81: 7.945948852 | Q81: 6.48390349 | R81: 4.815702245 | T81: 7.04813252 | U81: 6.469698304
A82: 1991 | C82: ND Total | D82: 192380 | E82: 119932 | F82: 85736 | G82: 0 | H82: 19524 | I82: 417569 | J82: 3096206 | K82: 1875987 | L82: 1762079 | M82: 0 | N82: 520927 | O82: 7255202 | P82: 6.213410865 | Q82: 6.393008054 | R82: 4.865616127 | T82: 3.747933972 | U82: 5.755442784
A83: 1991 | C83: NE Total | D83: 434977 | E83: 297022 | F83: 194676 | G83: 0 | H83: 92452 | I83: 1019127 | J83: 7138298 | K83: 5291348 | L83: 4689781 | M83: 0 | N83: 1485762 | O83: 18605193 | P83: 6.093567402 | Q83: 5.613352212 | R83: 4.151068035 | T83: 6.22253093 | U83: 5.477648095
A84: 1991 | C84: NH Total | D84: 348362 | E84: 194741 | F84: 242788 | G84: 0 | H84: 14183 | I84: 800075 | J84: 3356706 | K84: 2029125 | L84: 3265025 | M84: 0 | N84: 110920 | O84: 8761774 | P84: 10.3780909 | Q84: 9.597289472 | R84: 7.436022695 | T84: 12.78669311 | U84: 9.131427037
A85: 1991 | C85: NJ Total | D85: 2329102 | E85: 2558933 | F85: 1152466 | G85: 0 | H85: 79153 | I85: 6119656 | J85: 21539104 | K85: 27627097 | L85: 15031232 | M85: 0 | N85: 485119 | O85: 64682552 | P85: 10.81336531 | Q85: 9.262402778 | R85: 7.667142653 | T85: 16.31620283 | U85: 9.461061462
A86: 1991 | C86: NM Total | D86: 332973 | E86: 373237 | F86: 219734 | G86: 0 | H86: 78948 | I86: 1004892 | J86: 3665111 | K86: 4532875 | L86: 4546441 | M86: 0 | N86: 1339514 | O86: 14083945 | P86: 9.084936309 | Q86: 8.234001599 | R86: 4.833099121 | T86: 5.893779386 | U86: 7.135017923
A87: 1991 | C87: NV Total | D87: 340691 | E87: 252157 | F87: 305521 | G87: 0 | H87: 33428 | I87: 931794 | J87: 5781827 | K87: 3986737 | L87: 6172513 | M87: 0 | N87: 684343 | O87: 16625419 | P87: 5.892445416 | Q87: 6.324896776 | R87: 4.94970201 | T87: 4.884685019 | U87: 5.604634686
A88: 1991 | C88: NY Total | D88: 4689927 | E88: 5098819 | F88: 1917863 | G88: 0 | H88: 957877 | I88: 12664493 | J88: 39177424 | K88: 46981962 | L88: 31111531 | M88: 0 | N88: 12140051 | O88: 129410968 | P88: 11.97099381 | Q88: 10.8527162 | R88: 6.164476444 | T88: 7.890222207 | U88: 9.786259384
A89: 1991 | C89: OH Total | D89: 3339526 | E89: 2434500 | F89: 2849833 | G89: 0 | H89: 275687 | I89: 8899547 | J89: 40942448 | K89: 32325492 | L89: 67856138 | M89: 0 | N89: 4534241 | O89: 145658320 | P89: 8.156634894 | Q89: 7.531207878 | R89: 4.199816087 | T89: 6.080113518 | U89: 6.109878928
A90: 1991 | C90: OK Total | D90: 1077659 | E90: 643299 | F90: 439794 | G90: 0 | H90: 116952 | I90: 2277704 | J90: 15324940 | K90: 10586713 | L90: 11414862 | M90: 0 | N90: 2077881 | O90: 39404397 | P90: 7.032060158 | Q90: 6.076475295 | R90: 3.852819246 | T90: 5.628426267 | U90: 5.78032954
A91: 1991 | C91: OR Total | D91: 767600 | E91: 563115 | F91: 481755 | G91: 0 | H91: 41912 | I91: 1854385 | J91: 15949121 | K91: 11614084 | L91: 15296761 | M91: 0 | N91: 790788 | O91: 43650751 | P91: 4.812804417 | Q91: 4.848552843 | R91: 3.149392214 | T91: 5.300029844 | U91: 4.248231605
A92: 1991 | C92: PA Total | D92: 3794766 | E92: 2539487 | F92: 2812918 | G92: 0 | H92: 163372 | I92: 9310545 | J92: 39597641 | K92: 30552516 | L92: 44728178 | M92: 0 | N92: 1458664 | O92: 116336997 | P92: 9.583313309 | Q92: 8.311875199 | R92: 6.288917022 | T92: 11.20011188 | U92: 8.003081771 | IV92: =SUM(A92:IU92) -> 251297118.4
A93: 1991 | C93: RI Total | D93: 260404 | E93: 244375 | F93: 126361 | G93: 0 | H93: 19941 | I93: 651086 | J93: 2368832 | K93: 2474169 | L93: 1363160 | M93: 0 | N93: 196886 | O93: 6403046 | P93: 10.99292816 | Q93: 9.877053669 | R93: 9.269711553 | T93: 10.12819601 | U93: 10.16837924 | IV93: =SUM(A93:IU93) -> 14110301.44
A94: 1991 | C94: SC Total | D94: 1350524 | E94: 759906 | F94: 1055633 | G94: 0 | H94: 45282 | I94: 3211345 | J94: 18706763 | K94: 12208945 | L94: 25360811 | M94: 0 | N94: 792815 | O94: 57069331 | P94: 7.219442509 | Q94: 6.224174161 | R94: 4.162457581 | T94: 5.71154683 | U94: 5.627094174
A95: 1991 | C95: SD Total | D95: 209969 | E95: 102413 | F95: 80008 | G95: 0 | H95: 17263 | I95: 409650 | J95: 3039890 | K95: 1521975 | L95: 1726159 | M95: 0 | N95: 397117 | O95: 6685142 | P95: 6.907124929 | Q95: 6.728954155 | R95: 4.635030724 | T95: 4.347081591 | U95: 6.127768116 | IV95: =SUM(A95:IU95) -> 14191605.75
A96: 1991 | C96: TN Total | D96: 1671412 | E96: 734742 | F96: 1606856 | G96: 0 | H96: 70082 | I96: 4083092 | J96: 29605275 | K96: 12096992 | L96: 35667295 | M96: 0 | N96: 1020578 | O96: 78390143 | P96: 5.645656053 | Q96: 6.07375784 | R96: 4.505124372 | T96: 6.866893074 | U96: 5.208680382
A97: 1991 | C97: TX Total | D97: 6361303 | E97: 4041271 | F97: 3488788 | G97: 0 | H97: 663082 | I97: 14554446 | J97: 84088110 | K97: 61447400 | L97: 84122423 | M97: 0 | N97: 10693854 | O97: 240351789 | P97: 7.565044571 | Q97: 6.576797391 | R97: 4.14727474 | T97: 6.20058961 | U97: 6.055476458
A98: 1991 | C98: UT Total | D98: 317478 | E98: 288399 | F98: 226080 | G98: 0 | H98: 36602 | I98: 868558 | J98: 4460041 | K98: 4733977 | L98: 5875923 | M98: 0 | N98: 837460 | O98: 15907404 | P98: 7.11827537 | Q98: 6.092108179 | R98: 3.847565736 | T98: 4.370596805 | U98: 5.460086385
A99: 1991 | C99: VA Total | D99: 2173237 | E99: 1284045 | F99: 677829 | G99: 0 | H99: 440896 | I99: 4576008 | J99: 29607347 | K99: 21230493 | L99: 16028804 | M99: 0 | N99: 8244506 | O99: 75111149 | P99: 7.340194986 | Q99: 6.048116735 | R99: 4.22881832 | T99: 5.34775522 | U99: 6.09231527
A100: 1991 | C100: VT Total | D100: 169922 | E100: 133098 | F100: 97504 | G100: 0 | H100: 5348 | I100: 405872 | J100: 1783450 | K100: 1491488 | L100: 1389670 | M100: 0 | N100: 39849 | O100: 4704455 | P100: 9.52771314 | Q100: 8.923839816 | R100: 7.016342009 | T100: 13.420663 | U100: 8.627396797
A101: 1991 | C101: WA Total | D101: 1303940 | E101: 760389 | F101: 936907 | G101: 0 | H101: 123193 | I101: 3124426 | J101: 29889138 | K101: 18143350 | L101: 40838987 | M101: 0 | N101: 3842033 | O101: 92713508 | P101: 4.362588175 | Q101: 4.191006622 | R101: 2.294148481 | T101: 3.206453458 | U101: 3.36997927
A102: 1991 | C102: WI Total | D102: 1168339 | E102: 773960 | F102: 793317 | G102: 0 | H102: 45978 | I102: 2781595 | J102: 17349466 | K102: 13308794 | L102: 19685676 | M102: 0 | N102: 688270 | O102: 51032208 | P102: 6.734149627 | Q102: 5.815402958 | R102: 4.029920029 | T102: 6.680227236 | U102: 5.450665588
A103: 1991 | C103: WV Total | D103: 479402 | E103: 282410 | F103: 374433 | G103: 0 | H103: 8071 | I103: 1144319 | J103: 8106274 | K103: 5218904 | L103: 10205954 | M103: 0 | N103: 93814 | O103: 23624946 | P103: 5.913962444 | Q103: 5.41128942 | R103: 3.66877021 | T103: 8.603193553 | U103: 4.843689378
A104: 1991 | C104: WY Total | D104: 109223 | E104: 120033 | F104: 261504 | G104: 0 | H104: 8531 | I104: 499291 | J104: 1819414 | K104: 2310466 | L104: 7498103 | M104: 0 | N104: 128862 | O104: 11756847 | P104: 6.003196634 | Q104: 5.195185733 | R104: 3.487602131 | T104: 6.620260434 | U104: 4.246810391
A105: 1991 | B105: US Total | C105: US Total | D105: 76827978 | E105: 57655247 | F105: 45737179 | G105: 0 | H105: 6138291 | I105: 186358705 | J105: 955417354 | K105: 765663602 | L105: 946583391 | M105: 0 | N105: 94338702 | O105: 2762003050 | P105: 8.041300242 | Q105: 7.530101581 | R105: 4.83181719 | T105: 6.506651957 | U105: 6.747230239
A106: 1992 | C106: AK Total | D106: 177544 | E106: 192321 | F106: 39055 | G106: 0 | H106: 22715 | I106: 431635 | J106: 1640135 | K106: 2034708 | L106: 504279 | M106: 0 | N106: 159812 | O106: 4338935 | P106: 10.82496258 | Q106: 9.452019651 | R106: 7.74472068 | T106: 14.21357595 | U106: 9.947948056
A107: 1992 | C107: AL Total | D107: 1413407 | E107: 747867 | F107: 1263895 | G107: 0 | H107: 37175 | I107: 3462344 | J107: 21136707 | K107: 10916982 | L107: 29476078 | M107: 0 | N107: 636894 | O107: 62166661 | P107: 6.686978251 | Q107: 6.850492196 | R107: 4.287866927 | T107: 5.836921058 | U107: 5.569454663
A108: 1992 | C108: AR Total | D108: 864632 | E108: 439277 | F108: 564554 | G108: 0 | H108: 39475 | I108: 1907939 | J108: 10440089 | K108: 6176586 | L108: 11251478 | M108: 0 | N108: 582958 | O108: 28451113 | P108: 8.281845107 | Q108: 7.111970917 | R108: 5.017598577 | T108: 6.771499834 | U108: 6.706025877
A109: 1992 | C109: AZ Total | D109: 1555072 | E109: 1249968 | F109: 636648 | G109: 0 | H109: 109024 | I109: 3550710 | J109: 16230296 | K109: 14467710 | L109: 11055251 | M109: 0 | N109: 1898014 | O109: 43651271 | P109: 9.581291678 | Q109: 8.639708703 | R109: 5.758783767 | T109: 5.744109369 | U109: 8.134264865
A110: 1992 | C110: CA Total | D110: 7543676 | E110: 8291326 | F110: 4333426 | G110: 0 | H110: 443140 | I110: 20611569 | J110: 68121106 | K110: 80234568 | L110: 57089509 | M110: 0 | N110: 8002059 | O110: 213447241 | P110: 11.07391885 | Q110: 10.3338576 | R110: 7.59058201 | T110: 5.537824702 | U110: 9.656516947
A111: 1992 | C111: CO Total | D111: 735776 | E111: 801250 | F111: 314365 | G111: 0 | H111: 65426 | I111: 1916818 | J111: 10215715 | K111: 13897582 | L111: 6848997 | M111: 0 | N111: 859677 | O111: 31821971 | P111: 7.202393567 | Q111: 5.765391418 | R111: 4.589942148 | T111: 7.610532793 | U111: 6.023567805
A112: 1992 | C112: CT Total | D112: 1162265 | E112: 1034214 | F112: 475114 | G112: 0 | H112: 51026 | I112: 2722617 | J112: 10496046 | K112: 10484811 | L112: 5779536 | M112: 0 | N112: 366579 | O112: 27126973 | P112: 11.07336039 | Q112: 9.863926016 | R112: 8.220625324 | T112: 13.91950985 | U112: 10.03656766
A113: 1992 | C113: DC Total | D113: 98401 | E113: 360963 | F113: 169613 | G113: 0 | H113: 21246 | I113: 650222 | J113: 1487974 | K113: 5226804 | L113: 2987181 | M113: 0 | N113: 341061 | O113: 10043021 | P113: 6.613085981 | Q113: 6.905998388 | R113: 5.678028884 | T113: 6.229384186 | U113: 6.474366627
A114: 1992 | C114: DE Total | D114: 241277 | E114: 171523 | F114: 152983 | G114: 0 | H114: 5707 | I114: 571491 | J114: 2786233 | K114: 2445195 | L114: 3248214 | M114: 0 | N114: 52741 | O114: 8532382 | P114: 8.659613177 | Q114: 7.014696169 | R114: 4.709757424 | T114: 10.82080355 | U114: 6.697906868
A115: 1992 | C115: FL Total | D115: 5671187 | E115: 3461113 | F115: 828372 | G115: 0 | H115: 320479 | I115: 10281151 | J115: 73188923 | K115: 52620260 | L115: 16497053 | M115: 0 | N115: 4703701 | O115: 147009941 | P115: 7.748695796 | Q115: 6.577529263 | R115: 5.021333204 | T115: 6.813336987 | U115: 6.99350733
A116: 1992 | C116: GA Total | D116: 2360572 | E116: 1778117 | F116: 1341510 | G116: 0 | H116: 82847 | I116: 5563048 | J116: 30527585 | K116: 23714683 | L116: 28197008 | M116: 0 | N116: 952156 | O116: 83391432 | P116: 7.732586774 | Q116: 7.497958122 | R116: 4.757632441 | T116: 8.700990174 | U116: 6.671006681
A117: 1992 | C117: HI Total | D117: 265829 | E117: 248185 | F117: 298596 | G117: 0 | H117: 5915 | I117: 818526 | J117: 2438376 | K117: 2356266 | L117: 3811321 | M117: 0 | N117: 60930 | O117: 8666888 | P117: 10.90188716 | Q117: 10.53297887 | R117: 7.834449001 | T117: 9.70786148 | U117: 9.444289577
A118: 1992 | C118: IA Total | D118: 825291 | E118: 445939 | F118: 487224 | G118: 0 | H118: 48762 | I118: 1807215 | J118: 10290462 | K118: 7018603 | L118: 12134348 | M118: 0 | N118: 764661 | O118: 30208072 | P118: 8.01996062 | Q118: 6.353671806 | R118: 4.015246637 | T118: 6.376943508 | U118: 5.982556583
A119: 1992 | C119: ID Total | D119: 282696 | E119: 229549 | F119: 205690 | G119: 0 | H119: 16767 | I119: 734702 | J119: 5738743 | K119: 5339620 | L119: 7551047 | M119: 0 | N119: 378794 | O119: 19008206 | P119: 4.926096185 | Q119: 4.298976332 | R119: 2.72399311 | T119: 4.426416469 | U119: 3.865183279
A120: 1992 | C120: IL Total | D120: 3331864 | E120: 2544669 | F120: 2238051 | G120: 0 | H120: 540692 | I120: 8655276 | J120: 32367011 | K120: 31456855 | L120: 40898339 | M120: 0 | N120: 7798316 | O120: 112520518 | P120: 10.29401201 | Q120: 8.089394188 | R120: 5.472229569 | T120: 6.933445631 | U120: 7.692175751
A121: 1992 | C121: IN Total | D121: 1567045 | E121: 964336 | F121: 1498809 | G121: 0 | H121: 50672 | I121: 4080862 | J121: 22837036 | K121: 16082608 | L121: 37438599 | M121: 0 | N121: 618567 | O121: 76976812 | P121: 6.86185808 | Q121: 5.996141919 | R121: 4.003378973 | T121: 8.191836939 | U121: 5.301417263
A122: 1992 | C122: KS Total | D122: 700729 | E122: 627408 | F122: 416503 | G122: 0 | H122: 30719 | I122: 1775356 | J122: 8872899 | K122: 9399895 | L122: 8450499 | M122: 0 | N122: 345814 | O122: 27069104 | P122: 7.8974076 | Q122: 6.674627749 | R122: 4.928738528 | T122: 8.883099007 | U122: 6.558606447
A123: 1992 | C123: KY Total | D123: 1013398 | E123: 506407 | F123: 1170102 | G123: 0 | H123: 122268 | I123: 2812179 | J123: 17786737 | K123: 9575691 | L123: 37083527 | M123: 0 | N123: 2621861 | O123: 67067820 | P123: 5.697492463 | Q123: 5.2884643 | R123: 3.155314757 | T123: 4.663405116 | U123: 4.193037734
A124: 1992 | C124: LA Total | D124: 1592358 | E124: 994671 | F124: 1159530 | G124: 0 | H124: 167815 | I124: 3914372 | J124: 21187675 | K124: 13838870 | L124: 27466440 | M124: 0 | N124: 2605342 | O124: 65098329 | P124: 7.515491907 | Q124: 7.187516033 | R124: 4.221624644 | T124: 6.441188911 | U124: 6.013014558
A125: 1992 | C125: MA Total | D125: 1651863 | E125: 1734562 | F125: 831313 | G125: 0 | H125: 129142 | I125: 4346885 | J125: 15560071 | K125: 18629489 | L125: 9662901 | M125: 0 | N125: 1145620 | O125: 44998082 | P125: 10.61603768 | Q125: 9.310840464 | R125: 8.603141024 | T125: 11.27267331 | U125: 9.660156182
A126: 1992 | C126: MD Total | D126: 1575464 | E126: 763510 | F126: 1068051 | G126: 0 | H126: 61480 | I126: 3468509 | J126: 19762032 | K126: 10769686 | L126: 19768026 | M126: 0 | N126: 689042 | O126: 50988788 | P126: 7.972176141 | Q126: 7.089436034 | R126: 5.40292187 | T126: 8.922533024 | U126: 6.802493521 | IV126: =SUM(A126:IU126) -> 108916616.2
A127: 1992 | C127: ME Total | D127: 435513 | E127: 253127 | F127: 328052 | G127: 0 | H127: 22058 | I127: 1038748 | J127: 3829581 | K127: 2729541 | L127: 4753027 | M127: 0 | N127: 170874 | O127: 11483027 | P127: 11.37234073 | Q127: 9.273610472 | R127: 6.90195953 | T127: 12.90892705 | U127: 9.045942329
A128: 1992 | C128: MI Total | D128: 2081706 | E128: 1755745 | F128: 2103856 | G128: 0 | H128: 121259 | I128: 6062562 | J128: 25670668 | K128: 21208469 | L128: 35656773 | M128: 0 | N128: 1304317 | O128: 83840226 | P128: 8.109278652 | Q128: 8.27850893 | R128: 5.900298381 | T128: 9.296743046 | U128: 7.231089764
A129: 1992 | C129: MN Total | D129: 1040669 | E129: 507940 | F129: 1020026 | G129: 0 | H129: 49722 | I129: 2618359 | J129: 14847982 | K129: 8290948 | L129: 23556855 | M129: 0 | N129: 716369 | O129: 47412152 | P129: 7.008824499 | Q129: 6.126440547 | R129: 4.330060188 | T129: 6.940836357 | U129: 5.522548312
A130: 1992 | C130: MO Total | D130: 1583534 | E130: 1200407 | F130: 642669 | G130: 0 | H130: 62491 | I130: 3489098 | J130: 21293573 | K130: 18792384 | L130: 13440250 | M130: 0 | N130: 884646 | O130: 54410855 | P130: 7.436675846 | Q130: 6.387731328 | R130: 4.781674448 | T130: 7.063955526 | U130: 6.412503534
A131: 1992 | C131: MS Total | D131: 870927 | E131: 489274 | F131: 595299 | G131: 0 | H131: 50359 | I131: 2005856 | J131: 12422485 | K131: 6732154 | L131: 13490594 | M131: 0 | N131: 595955 | O131: 33241189 | P131: 7.010891943 | Q131: 7.267718475 | R131: 4.412696728 | T131: 8.450134658 | U131: 6.034248655
A132: 1992 | C132: MT Total | D132: 191814 | E132: 147730 | F132: 185562 | G132: 0 | H132: 24073 | I132: 549178 | J132: 3286366 | K132: 2859487 | L132: 6414380 | M132: 0 | N132: 536150 | O132: 13096381 | P132: 5.836659703 | Q132: 5.1663113 | R132: 2.892906251 | T132: 4.48997482 | U132: 4.193356928
A133: 1992 | C133: NC Total | D133: 2819897 | E133: 1666088 | F133: 1601812 | G133: 0 | H133: 125054 | I133: 6212848 | J133: 34761066 | K133: 25142416 | L133: 32521881 | M133: 0 | N133: 1769972 | O133: 94195332 | P133: 8.112228204 | Q133: 6.62660263 | R133: 4.925336268 | T133: 7.065309508 | U133: 6.595706887
A134: 1992 | C134: ND Total | D134: 191100 | E134: 113530 | F134: 89351 | G134: 0 | H134: 20041 | I134: 414024 | J134: 3020003 | K134: 1752213 | L134: 1835482 | M134: 0 | N134: 520679 | O134: 7128380 | P134: 6.327808284 | Q134: 6.479235116 | R134: 4.86798563 | T134: 3.849012539 | U134: 5.808107873
A135: 1992 | C135: NE Total | D135: 411420 | E135: 297169 | F135: 193151 | G135: 0 | H135: 81477 | I135: 983219 | J135: 6561473 | K135: 5266039 | L135: 4752478 | M135: 0 | N135: 1204340 | O135: 17784330 | P135: 6.270238405 | Q135: 5.643121899 | R135: 4.064216604 | T135: 6.765282229 | U135: 5.528569252
A136: 1992 | C136: NH Total | D136: 389429 | E136: 215561 | F136: 272290 | G136: 0 | H136: 15597 | I136: 892875 | J136: 3428235 | K136: 2077226 | L136: 3332746 | M136: 0 | N136: 116105 | O136: 8954314 | P136: 11.35946048 | Q136: 10.37734941 | R136: 8.170139579 | T136: 13.43352999 | U136: 9.971450633
A137: 1992 | C137: NJ Total | D137: 2232822 | E137: 2557718 | F137: 1131971 | G137: 0 | H137: 81152 | I137: 6003665 | J137: 20547015 | K137: 27403255 | L137: 14687421 | M137: 0 | N137: 484665 | O137: 63122358 | P137: 10.86689234 | Q137: 9.333628432 | R137: 7.70707805 | T137: 16.74393653 | U137: 9.51115451
A138: 1992 | C138: NM Total | D138: 343593 | E138: 383012 | F138: 221146 | G138: 0 | H138: 79346 | I138: 1027101 | J138: 3791300 | K138: 4629913 | L138: 4608808 | M138: 0 | N138: 1401458 | O138: 14431480 | P138: 9.062669797 | Q138: 8.272552854 | R138: 4.798333973 | T138: 5.661675198 | U138: 7.11708709
A139: 1992 | C139: NV Total | D139: 375255 | E139: 264315 | F139: 331097 | G139: 0 | H139: 35393 | I139: 1006059 | J139: 6064333 | K139: 4174993 | L139: 6723204 | M139: 0 | N139: 733721 | O139: 17696253 | P139: 6.18790228 | Q139: 6.330908818 | R139: 4.924690668 | T139: 4.823768163 | U139: 5.68515267
A140: 1992 | C140: NY Total | D140: 4812888 | E140: 5204305 | F140: 2017377 | G140: 0 | H140: 1057153 | I140: 13091726 | J140: 38719530 | K140: 46591363 | L140: 31027285 | M140: 0 | N140: 12131533 | O140: 128469712 | P140: 12.43013022 | Q140: 11.17010679 | R140: 6.501944982 | T140: 8.71409244 | U140: 10.19051557
A141: 1992 | C141: OH Total | D141: 3224509 | E141: 2409351 | F141: 2884990 | G141: 0 | H141: 272779 | I141: 8791626 | J141: 39140657 | K141: 31818312 | L141: 69674158 | M141: 0 | N141: 4383338 | O141: 145016464 | P141: 8.238259772 | Q141: 7.572215019 | R141: 4.140688718 | T141: 6.223088432 | U141: 6.062501979
A142: 1992 | C142: OK Total | D142: 1022185 | E142: 631126 | F142: 448007 | G142: 0 | H142: 117833 | I142: 2219151 | J142: 14253847 | K142: 10338403 | L142: 11598899 | M142: 0 | N142: 2076056 | O142: 38267209 | P142: 7.171292073 | Q142: 6.104675935 | R142: 3.862495914 | T142: 5.675810286 | U142: 5.7990929
A143: 1992 | C143: OR Total | D143: 749656 | E143: 576311 | F143: 486232 | G143: 0 | H143: 38145 | I143: 1850344 | J143: 15202147 | K143: 11818379 | L143: 15123151 | M143: 0 | N143: 766498 | O143: 42910175 | P143: 4.931250829 | Q143: 4.876396332 | R143: 3.21515007 | T143: 4.976529619 | U143: 4.312133428
A144: 1992 | C144: PA Total | D144: 3793344 | E144: 2606075 | F144: 2788106 | G144: 0 | H144: 159397 | I144: 9346923 | J144: 39245066 | K144: 30779059 | L144: 44869413 | M144: 0 | N144: 1394078 | O144: 116287618 | P144: 9.665785758 | Q144: 8.467039229 | R144: 6.213823212 | T144: 11.43386525 | U144: 8.037762885
A145: 1992 | C145: RI Total | D145: 264055 | E145: 249387 | F145: 125351 | G145: 0 | H145: 19484 | I145: 658280 | J145: 2363315 | K145: 2480534 | L145: 1359066 | M145: 0 | N145: 189643 | O145: 6392561 | P145: 11.1730768 | Q145: 10.05376262 | R145: 9.223319544 | T145: 10.27404122 | U145: 10.29759434
A146: 1992 | C146: SC Total | D146: 1361360 | E146: 763411 | F146: 1061117 | G146: 0 | H146: 44655 | I146: 3230541 | J146: 18939699 | K146: 12375105 | L146: 26304749 | M146: 0 | N146: 781366 | O146: 58400921 | P146: 7.187865024 | Q146: 6.168925435 | R146: 4.03393699 | T146: 5.714991438 | U146: 5.53166105 | IV146: =SUM(A146:IU146) -> 123264944.6
A147: 1992 | C147: SD Total | D147: 201730 | E147: 102942 | F147: 82765 | G147: 0 | H147: 16204 | I147: 403640 | J147: 2842525 | K147: 1517975 | L147: 1777306 | M147: 0 | N147: 356041 | O147: 6493845 | P147: 7.096859306 | Q147: 6.78153461 | R147: 4.65676704 | T147: 4.551161243 | U147: 6.215731974
A148: 1992 | C148: TN Total | D148: 1681850 | E148: 420453 | F148: 1919676 | G148: 0 | H148: 68354 | I148: 4090330 | J148: 29498154 | K148: 6469566 | L148: 41694781 | M148: 0 | N148: 921615 | O148: 78584112 | P148: 5.701543222 | Q148: 6.498936714 | R148: 4.6041158 | T148: 7.416762965 | U148: 5.20503432
A149: 1992 | C149: TX Total | D149: 6342652 | E149: 4151698 | F149: 3587260 | G149: 0 | H149: 658441 | I149: 14740048 | J149: 81933580 | K149: 61695681 | L149: 85421158 | M149: 0 | N149: 10380619 | O149: 239431038 | P149: 7.741211845 | Q149: 6.729317081 | R149: 4.199498209 | T149: 6.342983978 | U149: 6.156281209
A150: 1992 | C150: UT Total | D150: 314027 | E150: 296029 | F150: 228697 | G150: 0 | H150: 39016 | I150: 877772 | J150: 4505461 | K150: 4955704 | L150: 6211696 | M150: 0 | N150: 894196 | O150: 16567055 | P150: 6.969919393 | Q150: 5.973500435 | R150: 3.681715911 | T150: 4.363249221 | U150: 5.29829834
A151: 1992 | C151: VA Total | D151: 2273320 | E151: 1346643 | F151: 715372 | G151: 0 | H151: 464686 | I151: 4800023 | J151: 29780324 | K151: 21609573 | L151: 16713730 | M151: 0 | N151: 8344798 | O151: 76448427 | P151: 7.63363085 | Q151: 6.23169648 | R151: 4.280145725 | T151: 5.568570983 | U151: 6.278772747
A152: 1992 | C152: VT Total | D152: 184249 | E152: 141117 | F152: 105108 | G152: 0 | H152: 6009 | I152: 436480 | J152: 1927134 | K152: 1527001 | L152: 1440228 | M152: 0 | N152: 46672 | O152: 4941031 | P152: 9.560777818 | Q152: 9.241447779 | R152: 7.298011148 | T152: 12.87495715 | U152: 8.83378388 | IV152: =SUM(A152:IU152) -> 10757068.81
A153: 1992 | C153: WA Total | D153: 1267677 | E153: 806846 | F153: 858307 | G153: 0 | H153: 127696 | I153: 3060524 | J153: 28435824 | K153: 18727289 | L153: 38331617 | M153: 0 | N153: 3824587 | O153: 89319317 | P153: 4.458028014 | Q153: 4.308397227 | R153: 2.239161995 | T153: 3.338818021 | U153: 3.426497316
A154: 1992 | C154: WI Total | D154: 1147577 | E154: 782127 | F154: 814779 | G154: 0 | H154: 48330 | I154: 2792815 | J154: 16614668 | K154: 13242758 | L154: 20381549 | M154: 0 | N154: 686114 | O154: 50925088 | P154: 6.907011323 | Q154: 5.906073342 | R154: 3.997630406 | T154: 7.044018924 | U154: 5.484163326
A155: 1992 | C155: WV Total | D155: 502012 | E155: 294551 | F155: 398382 | G155: 0 | H155: 8199 | I155: 1203147 | J155: 8138301 | K155: 5227517 | L155: 10369860 | M155: 0 | N155: 95442 | O155: 23831117 | P155: 6.168511093 | Q155: 5.634625387 | R155: 3.841729782 | T155: 8.590557616 | U155: 5.048638719
A156: 1992 | C156: WY Total | D156: 107241 | E156: 121387 | F156: 261972 | G156: 0 | H156: 9326 | I156: 499927 | J156: 1762625 | K156: 2349802 | L156: 7441811 | M156: 0 | N156: 145710 | O156: 11699947 | P156: 6.084164244 | Q156: 5.165839505 | R156: 3.520272149 | T156: 6.400384325 | U156: 4.272899698
A157: 1992 | B157: US Total | C157: US Total | D157: 76848357 | E157: 58342550 | F157: 46993184 | G157: 0 | H157: 6296221 | I157: 188480315 | J157: 935938788 | K157: 761270531 | L157: 972713987 | M157: 0 | N157: 93442156 | O157: 2763365474 | P157: 8.210831519 | Q157: 7.663839282 | R157: 4.831140975 | T157: 6.738094742 | U157: 6.820679956
A158: 1993 | C158: AK Total | D158: 181605 | E158: 196902 | F158: 41050 | G158: 0 | H158: 23252 | I158: 442808 | J158: 1629037 | K158: 2062399 | L158: 501060 | M158: 0 | N158: 182133 | O158: 4374626 | P158: 11.14799725 | Q158: 9.547231161 | R158: 8.192631621 | T158: 12.76649481 | U158: 10.12219102
A159: 1993 | C159: AL Total | D159: 1544206 | E159: 780261 | F159: 1324478 | G159: 0 | H159: 38391 | I159: 3687333 | J159: 22627782 | K159: 11254231 | L159: 30523625 | M159: 0 | N159: 652037 | O159: 65057675 | P159: 6.824380755 | Q159: 6.933045892 | R159: 4.339189726 | T159: 5.887856057 | U159: 5.667790926
A160: 1993 | C160: AR Total | D160: 972799 | E160: 471350 | F160: 611167 | G160: 0 | H160: 41178 | I160: 2096490 | J160: 11761761 | K160: 6698105 | L160: 12609005 | M160: 0 | N160: 594063 | O160: 31662932 | P160: 8.270861821 | Q160: 7.037064961 | R160: 4.847067631 | T160: 6.931588064 | U160: 6.621275629
A161: 1993 | C161: AZ Total | D161: 1611387 | E161: 1288252 | F161: 637720 | G161: 0 | H161: 107207 | I161: 3644564 | J161: 16705092 | K161: 14813140 | L161: 10989058 | M161: 0 | N161: 1900567 | O161: 44407854 | P161: 9.646082763 | Q161: 8.69668416 | R161: 5.803227174 | T161: 5.640790354 | U161: 8.207025721
A162: 1993 | C162: CA Total | D162: 7613059 | E162: 8269231 | F162: 4120804 | G162: 0 | H162: 398382 | I162: 20401477 | J162: 67358694 | K162: 79058162 | L162: 56189186 | M162: 0 | N162: 7893888 | O162: 210499926 | P162: 11.30226634 | Q162: 10.4596803 | R162: 7.333802629 | T162: 5.046714623 | U162: 9.691916471
A163: 1993 | C163: CO Total | D163: 771493 | E163: 839047 | F163: 317553 | G163: 0 | H163: 66037 | I163: 1994129 | J163: 10655734 | K163: 14422395 | L163: 7024009 | M163: 0 | N163: 855666 | O163: 32957802 | P163: 7.240167594 | Q163: 5.817667593 | R163: 4.520965164 | T163: 7.717614116 | U163: 6.050552158
A164: 1993 | C164: CT Total | D164: 1207449 | E164: 1071857 | F164: 464001 | G164: 0 | H164: 51775 | I164: 2795082 | J164: 10596641 | K164: 10676841 | L164: 5597348 | M164: 0 | N164: 367656 | O164: 27238488 | P164: 11.39463911 | Q164: 10.03908366 | R164: 8.289657888 | T164: 14.08245751 | U164: 10.26151672
A165: 1993 | C165: DC Total | D165: 117349 | E165: 387351 | F165: 176012 | G165: 0 | H165: 22365 | I165: 703077 | J165: 1634807 | K165: 5417566 | L165: 2976390 | M165: 0 | N165: 345859 | O165: 10374622 | P165: 7.178156198 | Q165: 7.14990828 | R165: 5.913606752 | T165: 6.466508028 | U165: 6.776892691 | IV165: =SUM(A165:IU165) -> 22157424.49
A166: 1993 | C166: DE Total | D166: 274384 | E166: 188946 | F166: 166898 | G166: 0 | H166: 6581 | I166: 636812 | J166: 3043827 | K166: 2604585 | L166: 3416811 | M166: 0 | N166: 55912 | O166: 9121133 | P166: 9.01444136 | Q166: 7.254361059 | R166: 4.884613167 | T166: 11.77028187 | U166: 6.981720363
A167: 1993 | C167: FL Total | D167: 6137047 | E167: 3669193 | F167: 857508 | G167: 0 | H167: 330288 | I167: 10994034 | J167: 76827417 | K167: 54875681 | L167: 16297719 | M167: 0 | N167: 4747000 | O167: 152747819 | P167: 7.988094927 | Q167: 6.686373514 | R167: 5.261521566 | T167: 6.957825995 | U167: 7.197506368
A168: 1993 | C168: GA Total | D168: 2639593 | E168: 1873181 | F168: 1378754 | G168: 0 | H168: 91069 | I168: 5982597 | J168: 33866822 | K168: 25168564 | L168: 29084291 | M168: 0 | N168: 1071366 | O168: 89191039 | P168: 7.794038071 | Q168: 7.442542213 | R168: 4.740545334 | T168: 8.500269749 | U168: 6.707621155
A169: 1993 | C169: HI Total | D169: 303167 | E169: 276058 | F169: 337239 | G169: 0 | H169: 6329 | I169: 922798 | J169: 2468578 | K169: 2363223 | L169: 3769878 | M169: 0 | N169: 56233 | O169: 8657909 | P169: 12.28103791 | Q169: 11.68141982 | R169: 8.945621052 | T169: 11.25495705 | U169: 10.65843958
A170: 1993 | C170: IA Total | D170: 890136 | E170: 462322 | F170: 488928 | G170: 0 | H170: 74146 | I170: 1915530 | J170: 11103103 | K170: 7268932 | L170: 12465071 | M170: 0 | N170: 1266802 | O170: 32103911 | P170: 8.017002094 | Q170: 6.360246595 | R170: 3.922384397 | T170: 5.853006231 | U170: 5.966656212
A171: 1993 | C171: ID Total | D171: 311876 | E171: 219445 | F171: 203082 | G171: 0 | H171: 14177 | I171: 748582 | J171: 6245111 | K171: 4968603 | L171: 7222067 | M171: 0 | N171: 284059 | O171: 18719840 | P171: 4.993922446 | Q171: 4.41663381 | R171: 2.811965051 | T171: 4.990864574 | U171: 3.998869648
A172: 1993 | C172: IL Total | D172: 3621679 | E172: 2749069 | F172: 2192746 | G172: 0 | H172: 559219 | I172: 9122711 | J172: 35225721 | K172: 34354864 | L172: 40249440 | M172: 0 | N172: 7956351 | O172: 117786373 | P172: 10.28134811 | Q172: 8.001978992 | R172: 5.447891946 | T172: 7.028586346 | U172: 7.745132792
A173: 1993 | C173: IN Total | D173: 1666417 | E173: 991351 | F173: 1530186 | G173: 0 | H173: 47030 | I173: 4234986 | J173: 24978466 | K173: 17015035 | L173: 39415341 | M173: 0 | N173: 522651 | O173: 81931490 | P173: 6.67141449 | Q173: 5.826323601 | R173: 3.882209214 | T173: 8.998356456 | U173: 5.168935656
A174: 1993 | C174: KS Total | D174: 785299 | E174: 653947 | F174: 430106 | G174: 0 | H174: 32662 | I174: 1902021 | J174: 9986318 | K174: 9753229 | L174: 8702317 | M174: 0 | N174: 366522 | O174: 28808384 | P174: 7.863749182 | Q174: 6.704928183 | R174: 4.942430849 | T174: 8.911334108 | U174: 6.602317575
A175: 1993 | C175: KY Total | D175: 1096038 | E175: 519470 | F175: 1197862 | G175: 0 | H175: 129920 | I175: 2943291 | J175: 19223127 | K175: 9828936 | L175: 36320038 | M175: 0 | N175: 2777084 | O175: 68149185 | P175: 5.701663418 | Q175: 5.285109192 | R175: 3.298074743 | T175: 4.678288449 | U175: 4.318893909
A176: 1993 | C176: LA Total | D176: 1740707 | E176: 1062393 | F176: 1261796 | G176: 0 | H176: 177012 | I176: 4241904 | J176: 22430247 | K176: 14398303 | L176: 28439212 | M176: 0 | N176: 2488067 | O176: 67755825 | P176: 7.760534246 | Q176: 7.378598714 | R176: 4.436817729 | T176: 7.114438639 | U176: 6.260574644
A177: 1993 | C177: MA Total | D177: 1737123 | E177: 1827747 | F177: 832126 | G177: 0 | H177: 121349 | I177: 4518345 | J177: 15785271 | K177: 18896865 | L177: 9604594 | M177: 0 | N177: 994015 | O177: 45280749 | P177: 11.00470812 | Q177: 9.672223408 | R177: 8.663833162 | T177: 12.20796467 | U177: 9.97851206
A178: 1993 | C178: MD Total | D178: 1769786 | E178: 811505 | F178: 1100113 | G178: 0 | H178: 66935 | I178: 3748338 | J178: 21546122 | K178: 11316964 | L178: 20200630 | M178: 0 | N178: 808686 | O178: 53872404 | P178: 8.213942166 | Q178: 7.17069525 | R178: 5.445934112 | T178: 8.277007392 | U178: 6.957807192
A179: 1993 | C179: ME Total | D179: 442724 | E179: 271003 | F179: 350840 | G179: 0 | H179: 22749 | I179: 1087317 | J179: 3872292 | K179: 2868390 | L179: 5039632 | M179: 0 | N179: 172040 | O179: 11952356 | P179: 11.43312539 | Q179: 9.447913289 | R179: 6.96161942 | T179: 13.22308765 | U179: 9.097093494
A180: 1993 | C180: MI Total | D180: 2184505 | E180: 2319010 | F180: 1632453 | G180: 0 | H180: 120411 | I180: 6256381 | J180: 26770174 | K180: 28930388 | L180: 30571545 | M180: 0 | N180: 1316496 | O180: 87588602 | P180: 8.160219653 | Q180: 8.01582751 | R180: 5.339779197 | T180: 9.146324789 | U180: 7.142916838
A181: 1993 | C181: MN Total | D181: 1105317 | E181: 528687 | F181: 1072081 | G181: 0 | H181: 49783 | I181: 2755867 | J181: 15596985 | K181: 8535124 | L181: 24384332 | M181: 0 | N181: 694227 | O181: 49210670 | P181: 7.086735032 | Q181: 6.194250956 | R181: 4.396597783 | T181: 7.170997383 | U181: 5.600141189
A182: 1993 | C182: MO Total | D182: 1756697 | E182: 1246674 | F182: 641842 | G182: 0 | H182: 64445 | I182: 3709661 | J182: 24182047 | K182: 19914074 | L182: 13617993 | M182: 0 | N182: 907951 | O182: 58622068 | P182: 7.264467727 | Q182: 6.260265981 | R182: 4.71319085 | T182: 7.097849994 | U182: 6.328096443
A183: 1993 | C183: MS Total | D183: 940424 | E183: 498156 | F183: 653356 | G183: 0 | H183: 55264 | I183: 2147197 | J183: 13199806 | K183: 6685014 | L183: 14229237 | M183: 0 | N183: 635243 | O183: 34749302 | P183: 7.124528951 | Q183: 7.451831814 | R183: 4.591644654 | T183: 8.699662964 | U183: 6.179108288 | IV183: =SUM(A183:IU183) -> 73795026.05
A184: 1993 | C184: MT Total | D184: 207656 | E184: 154222 | F184: 181215 | G184: 0 | H184: 21132 | I184: 564227 | J184: 3597986 | K184: 3026076 | L184: 5836580 | M184: 0 | N184: 468584 | O184: 12929225 | P184: 5.771451028 | Q184: 5.096435119 | R184: 3.104814806 | T184: 4.509757055 | U184: 4.363966131
A185: 1993 | C185: NC Total | D185: 3086158 | E185: 1763804 | F185: 1641610 | G185: 0 | H185: 127233 | I185: 6618806 | J185: 37742398 | K185: 26747461 | L185: 33487658 | M185: 0 | N185: 1800039 | O185: 99777555 | P185: 8.176899624 | Q185: 6.594285716 | R185: 4.902134392 | T185: 7.068346852 | U185: 6.633562027
A186: 1993 | C186: ND Total | D186: 202548 | E186: 118617 | F186: 92387 | G186: 0 | H186: 19434 | I186: 432986 | J186: 3209082 | K186: 1830759 | L186: 1904642 | M186: 0 | N186: 487475 | O186: 7431959 | P186: 6.311711574 | Q186: 6.479116039 | R186: 4.850622847 | T186: 3.986665983 | U186: 5.826000924
A187: 1993 | C187: NE Total | D187: 451557 | E187: 310625 | F187: 200386 | G187: 0 | H187: 76180 | I187: 1038749 | J187: 7226028 | K187: 5471340 | L187: 4962539 | M187: 0 | N187: 1089133 | O187: 18749041 | P187: 6.249034739 | Q187: 5.677311225 | R187: 4.037973304 | T187: 6.994554384 | U187: 5.540278033 | IV187: =SUM(A187:IU187) -> 39577599.5
A188: 1993 | C188: NH Total | D188: 420965 | E188: 233797 | F188: 280166 | G188: 0 | H188: 15757 | I188: 950684 | J188: 3420321 | K188: 2122568 | L188: 3099592 | M188: 0 | N188: 118486 | O188: 8760969 | P188: 12.30776293 | Q188: 11.0148179 | R188: 9.038802526 | T188: 13.29861756 | U188: 10.85135674
A189: 1993 | C189: NJ Total | D189: 2514344 | E189: 2773723 | F189: 1180451 | G189: 0 | H189: 85890 | I189: 6554406 | J189: 22042044 | K189: 28493042 | L189: 14595878 | M189: 0 | N189: 489681 | O189: 65620646 | P189: 11.40703648 | Q189: 9.734738046 | R189: 8.087564174 | T189: 17.53999032 | U189: 9.988328978
A190: 1993 | C190: NM Total | D190: 356546 | E190: 398182 | F190: 234227 | G190: 0 | H190: 89925 | I190: 1078880 | J190: 3884263 | K190: 4759364 | L190: 4816122 | M190: 0 | N190: 1467131 | O190: 14926878 | P190: 9.179244557 | Q190: 8.366285916 | R190: 4.863394241 | T190: 6.129309516 | U190: 7.227767253
A191: 1993 | C191: NV Total | D191: 408801 | E191: 279941 | F191: 362033 | G191: 0 | H191: 35993 | I191: 1086769 | J191: 6280699 | K191: 4297615 | L191: 7180913 | M191: 0 | N191: 739625 | O191: 18498851 | P191: 6.508845592 | Q191: 6.513868739 | R191: 5.041601256 | T191: 4.866384992 | U191: 5.874791899
A192: 1993 | C192: NY Total | D192: 5255743 | E192: 5563928 | F192: 2011617 | G192: 0 | H192: 1129103 | I192: 13960391 | J192: 39897466 | K192: 47728275 | L192: 30187054 | M192: 0 | N192: 12357385 | O192: 130170178 | P192: 13.17312483 | Q192: 11.6575091 | R192: 6.663840069 | T192: 9.137070667 | U192: 10.72472299
A193: 1993 | C193: OH Total | D193: 3507578 | E193: 2527869 | F193: 2924262 | G193: 0 | H193: 279904 | I193: 9239619 | J193: 41950456 | K193: 33298608 | L193: 68831022 | M193: 0 | N193: 4490578 | O193: 148570666 | P193: 8.361239268 | Q193: 7.591515537 | R193: 4.248465176 | T193: 6.233139698 | U193: 6.219006247
A194: 1993 | C194: OK Total | D194: 1135885 | E194: 671883 | F194: 483889 | G194: 0 | H194: 123642 | I194: 2415300 | J194: 15901345 | K194: 10823964 | L194: 11698989 | M194: 0 | N194: 2107030 | O194: 40531328 | P194: 7.143326555 | Q194: 6.207365435 | R194: 4.136160826 | T194: 5.868070222 | U194: 5.95909416
A195: 1993 | C195: OR Total | D195: 838081 | E195: 601477 | F195: 499307 | G195: 0 | H195: 35439 | I195: 1974306 | J195: 16696259 | K195: 12205080 | L195: 15012281 | M195: 0 | N195: 664280 | O195: 44577903 | P195: 5.019573546 | Q195: 4.928087321 | R195: 3.325990234 | T195: 5.334949118 | U195: 4.428889354
A196: 1993 | C196: PA Total | D196: 3959186 | E196: 2673893 | F196: 2712717 | G196: 0 | H196: 153229 | I196: 9499023 | J196: 41455430 | K196: 32251642 | L196: 44949311 | M196: 0 | N196: 1325111 | O196: 119981494 | P196: 9.550464197 | Q196: 8.290718966 | R196: 6.035058023 | T196: 11.56348412 | U196: 7.917073445
A197: 1993 | C197: RI Total | D197: 274584 | E197: 257589 | F197: 128094 | G197: 0 | H197: 20698 | I197: 680963 | J197: 2411808 | K197: 2532213 | L197: 1418674 | M197: 0 | N197: 185744 | O197: 6548438 | P197: 11.38498587 | Q197: 10.17248549 | R197: 9.029135658 | T197: 11.143294 | U197: 10.39886153
A198: 1993 | C198: SC Total | D198: 1516485 | E198: 820185 | F198: 1089800 | G198: 0 | H198: 45487 | I198: 3471953 | J198: 20686870 | K198: 13176633 | L198: 26866872 | M198: 0 | N198: 802349 | O198: 61532725 | P198: 7.33066433 | Q198: 6.224541581 | R198: 4.056296542 | T198: 5.669228727 | U198: 5.642449607
A199: 1993 | C199: SD Total | D199: 218895 | E199: 109331 | F199: 84947 | G199: 0 | H199: 14901 | I199: 428075 | J199: 3109114 | K199: 1620792 | L199: 1847336 | M199: 0 | N199: 327465 | O199: 6904707 | P199: 7.040430168 | Q199: 6.745529346 | R199: 4.598351356 | T199: 4.550409967 | U199: 6.199756195
A200: 1993 | C200: TN Total | D200: 1738170 | E200: 345811 | F200: 2011554 | G200: 0 | H200: 73435 | I200: 4168967 | J200: 30199490 | K200: 5174640 | L200: 43530194 | M200: 0 | N200: 927854 | O200: 79832182 | P200: 5.755626999 | Q200: 6.682803055 | R200: 4.621054526 | T200: 7.914499479 | U200: 5.222163413
... 1106 more rows

Sheet EIA.NG
B2: Workbook Contents
B3: Natural Gas Industrial Price
B5: Click worksheet name or tab at bottom for data
B6: Worksheet Name | C6: Description | D6: # Of Series | E6: Frequency | F6: Latest Data for
B7: Data 1 | C7: Natural Gas Industrial Price | D7: 52 | E7: Annual | F7: 2013 | G7: 6/30/1997
B9: Release Date: | C9: 7/31/2014
B10: Next Release Date: | C10: 8/29/2014
B12: Excel File Name: | C12: ng_pri_sum_a_epg0_pin_dmcf_a.xls
B13: Available from Web Page: | C13: http://www.eia.gov/dnav/ng/ng_pri_sum_a_epg0_pin_dmcf_a.htm
B14: Source: | C14: Energy Information Administration
B15: For Help, Contact: | C15: infoctr@eia.gov
C16: (202) 586-8800 | F16: 7/29/2014 3:55:08 PM
A19: Back to Contents | B19: Data 1: Natural Gas Industrial Price (Dollars per Thousand Cubic Feet)
A20: Sourcekey | B20: N3035US3 | C20: N3035AL3 | D20: N3035AK3 | E20: N3035AZ3 | F20: N3035AR3 | G20: N3035CA3 | H20: N3035CO3 | I20: N3035CT3 | J20: N3035DE3 | K20: N3035DC3 | L20: N3035FL3 | M20: N3035GA3 | N20: N3035HI3 | O20: N3035ID3 | P20: N3035IL3 | Q20: N3035IN3 | R20: N3035IA3 | S20: N3035KS3 | T20: N3035KY3 | U20: N3035LA3 | V20: N3035ME3 | W20: N3035MD3 | X20: N3035MA3 | Y20: N3035MI3 | Z20: N3035MN3 | AA20: N3035MS3 | AB20: N3035MO3 | AC20: N3035MT3 | AD20: N3035NE3 | AE20: N3035NV3 | AF20: N3035NH3 | AG20: N3035NJ3 | AH20: N3035NM3 | AI20: N3035NY3 | AJ20: N3035NC3 | AK20: N3035ND3 | AL20: N3035OH3 | AM20: N3035OK3 | AN20: N3035OR3 | AO20: N3035PA3 | AP20: N3035RI3 | AQ20: N3035SC3 | AR20: N3035SD3 | AS20: N3035TN3 | AT20: N3035TX3 | AU20: N3035UT3 | AV20: N3035VT3 | AW20: N3035VA3 | AX20: N3035WA3 | AY20: N3035WV3 | AZ20: N3035WI3 | BA20: N3035WY3
A21: Date | B21: United States | C21: Alabama | D21: Alaska | E21: Arizona | F21: Arkansas | G21: California | H21: Colorado | I21: Connecticut | J21: Delaware | K21: District of Columbia | L21: Florida | M21: Georgia | N21: Hawaii | O21: Idaho | P21: Illinois | Q21: Indiana | R21: Iowa | S21: Kansas | T21: Kentucky | U21: Louisiana | V21: Maine | W21: Maryland | X21: Massachusetts | Y21: Michigan | Z21: Minnesota | AA21: Mississippi | AB21: Missouri | AC21: Montana | AD21: Nebraska | AE21: Nevada | AF21: New Hampshire | AG21: New Jersey | AH21: New Mexico | AI21: New York | AJ21: North Carolina | AK21: North Dakota | AL21: Ohio | AM21: Oklahoma | AN21: Oregon | AO21: Pennsylvania | AP21: Rhode Island | AQ21: South Carolina | AR21: South Dakota | AS21: Tennessee | AT21: Texas | AU21: Utah | AV21: Vermont | AW21: Virginia | AX21: Washington | AY21: West Virginia | AZ21: Wisconsin | BA21: Wyoming
A22: 1997 | B22: 3.59 | C22: 3.65 | D22: 1.54 | E22: 3.6 | F22: 3.71 | G22: 4.18 | H22: 3.02 | I22: 4.73 | J22: 4.4 | L22: 4.41 | M22: 4.55 | N22: 10.79 | O22: 2.76 | P22: 3.97 | Q22: 4.33 | R22: 4.11 | S22: 3.32 | T22: 4.19 | U22: 2.87 | V22: 5.55 | W22: 3.25 | X22: 5.78 | Y22: 4.02 | Z22: 3.28 | AA22: 3.55 | AB22: 4.75 | AC22: 4.79 | AD22: 3.85 | AE22: 7.77 | AF22: 4.9 | AG22: 3.78 | AH22: 3.18 | AI22: 5.05 | AJ22: 4.66 | AK22: 3.05 | AL22: 4.93 | AM22: 4.16 | AN22: 3.03 | AO22: 4.61 | AP22: 4.33 | AQ22: 3.72 | AR22: 4.02 | AS22: 4.18 | AT22: 2.8 | AU22: 2.55 | AV22: 3.07 | AW22: 4.68 | AX22: 3.16 | AY22: 2.91 | AZ22: 4.13 | BA22: 3.49
A23: 1998 | B23: 3.14 | C23: 3.3 | D23: 1.34 | E23: 3.26 | F23: 3.48 | G23: 3.75 | H23: 2.55 | I23: 4.34 | J23: 4.13 | L23: 3.98 | M23: 3.92 | N23: 8.64 | O23: 3.09 | P23: 3.96 | Q23: 4.28 | R23: 3.49 | S23: 3.17 | T23: 4 | U23: 2.31 | V23: 5.13 | W23: 5.26 | X23: 5.69 | Y23: 3.91 | Z23: 2.88 | AA23: 3.22 | AB23: 4.47 | AC23: 4.68 | AD23: 3.26 | AE23: 4.74 | AF23: 4.66 | AG23: 2.97 | AH23: 3.22 | AI23: 4.02 | AJ23: 3.96 | AK23: 2.82 | AL23: 4.39 | AM23: 3.65 | AN23: 3.75 | AO23: 4.15 | AP23: 3.82 | AQ23: 3.29 | AR23: 3.28 | AS23: 3.94 | AT23: 2.33 | AU23: 3 | AV23: 2.8 | AW23: 4.07 | AX23: 2.64 | AY23: 3.39 | AZ23: 3.78 | BA23: 3.37
A24: 1999 | B24: 3.12 | C24: 3.42 | D24: 1.25 | E24: 3.42 | F24: 3.45 | G24: 3.33 | H24: 3.08 | I24: 4.15 | J24: 4.07 | L24: 4.12 | M24: 3.41 | N24: 8.21 | O24: 3.29 | P24: 4.06 | Q24: 4.16 | R24: 3.98 | S24: 2.93 | T24: 3.32 | U24: 2.54 | V24: 4.93 | W24: 5.69 | X24: 5.28 | Y24: 3.69 | Z24: 2.98 | AA24: 3.24 | AB24: 4.4 | AC24: 3.44 | AD24: 3.38 | AE24: 4.76 | AF24: 4.6 | AG24: 3.14 | AH24: 2.64 | AI24: 3.9 | AJ24: 3.81 | AK24: 2.8 | AL24: 3.94 | AM24: 3.51 | AN24: 4.01 | AO24: 3.99 | AP24: 4.4 | AQ24: 3.39 | AR24: 3.35 | AS24: 3.73 | AT24: 2.56 | AU24: 2.94 | AV24: 3.06 | AW24: 3.94 | AX24: 2.82 | AY24: 3.04 | AZ24: 4.07 | BA24: 3.3
A25: 2000 | B25: 4.45 | C25: 4.47 | D25: 1.51 | E25: 4.79 | F25: 5.23 | G25: 5.29 | H25: 4.68 | I25: 5.95 | J25: 5.03 | L25: 5.93 | M25: 4.83 | N25: 10.17 | O25: 4.02 | P25: 5.85 | Q25: 5 | R25: 5.49 | S25: 4 | T25: 4.82 | U25: 4.03 | V25: 4.1 | W25: 7.86 | X25: 7.49 | Y25: 3.9 | Z25: 4.42 | AA25: 4.67 | AB25: 5.78 | AC25: 7.43 | AD25: 4.62 | AE25: 5.11 | AF25: 6.18 | AG25: 5.12 | AH25: 4.39 | AI25: 6.14 | AJ25: 5.31 | AK25: 4.14 | AL25: 5.14 | AM25: 5.24 | AN25: 4.93 | AO25: 5.12 | AP25: 5.38 | AQ25: 4.93 | AR25: 4.38 | AS25: 5.08 | AT25: 4.1 | AU25: 3.93 | AV25: 2.99 | AW25: 5.2 | AX25: 4.01 | AY25: 4.21 | AZ25: 5.47 | BA25: 4.07
A26: 2001 | B26: 5.24 | C26: 6.33 | D26: 1.66 | E26: 6.23 | F26: 6.38 | G26: 6.6 | H26: 6.59 | I26: 6.77 | J26: 6.85 | L26: 6.98 | M26: 5.89 | N26: 11.11 | O26: 6.43 | P26: 6.88 | Q26: 8.14 | R26: 6.48 | S26: 4.97 | T26: 6.51 | U26: 5.04 | V26: 8 | W26: 9.07 | X26: 9.36 | Y26: 4.78 | Z26: 5.16 | AA26: 5.79 | AB26: 7.49 | AC26: 5.17 | AD26: 5.87 | AE26: 7 | AF26: 7.92 | AG26: 6.69 | AH26: 4.1 | AI26: 7.72 | AJ26: 6.99 | AK26: 5.27 | AL26: 6.54 | AM26: 8.07 | AN26: 6.09 | AO26: 7.18 | AP26: 6.61 | AQ26: 5.55 | AR26: 6.08 | AS26: 6.85 | AT26: 4.46 | AU26: 5.29 | AV26: 5.02 | AW26: 5.99 | AX26: 5.02 | AY26: 4.76 | AZ26: 7.47 | BA26: 6.33
A27: 2002 | B27: 4.02 | C27: 5.24 | D27: 1.63 | E27: 6.49 | F27: 5.64 | G27: 4.93 | H27: 4.79 | I27: 4.97 | J27: 6.16 | L27: 5.35 | M27: 4.85 | N27: 10.17 | O27: 6.9 | P27: 4.97 | Q27: 5.48 | R27: 5.58 | S27: 3.62 | T27: 4.63 | U27: 3.69 | V27: 8.44 | W27: 7.42 | X27: 7.35 | Y27: 4.83 | Z27: 4.18 | AA27: 4.53 | AB27: 6.01 | AC27: 2.75 | AD27: 4.25 | AE27: 7.69 | AF27: 7.38 | AG27: 4.91 | AH27: 3.87 | AI27: 5.53 | AJ27: 4.91 | AK27: 4.31 | AL27: 5.67 | AM27: 6.28 | AN27: 6.98 | AO27: 6.29 | AP27: 4.84 | AQ27: 4.49 | AR27: 4.28 | AS27: 5.34 | AT27: 3.4 | AU27: 3.91 | AV27: 4.39 | AW27: 4.59 | AX27: 4.81 | AY27: 4.2 | AZ27: 5.23 | BA27: 5.24
A28: 2003 | B28: 5.89 | C28: 6.65 | D28: 1.52 | E28: 6.54 | F28: 6.94 | G28: 7.19 | H28: 4.46 | I28: 7.52 | J28: 6.37 | L28: 6.82 | M28: 6.77 | N28: 11.82 | O28: 5.9 | P28: 7.23 | Q28: 8.34 | R28: 6.5 | S28: 4.95 | T28: 6.54 | U28: 5.53 | V28: 9.74 | W28: 9.57 | X28: 10.11 | Y28: 5.52 | Z28: 5.88 | AA28: 6.35 | AB28: 7.93 | AC28: 4.41 | AD28: 5.86 | AE28: 8.68 | AF28: 9.17 | AG28: 7.29 | AH28: 5.48 | AI28: 7.35 | AJ28: 6.28 | AK28: 3.88 | AL28: 8.06 | AM28: 7.45 | AN28: 5.84 | AO28: 8.12 | AP28: 8.19 | AQ28: 6.83 | AR28: 5.78 | AS28: 6.33 | AT28: 5.36 | AU28: 5.04 | AV28: 4.97 | AW28: 5.97 | AX28: 6.05 | AY28: 6.71 | AZ28: 7.23 | BA28: 5.34
A29: 2004 | B29: 6.53 | C29: 7.35 | D29: 1.94 | E29: 6.91 | F29: 8.03 | G29: 7.89 | H29: 6.54 | I29: 9.32 | J29: 7.72 | L29: 8.22 | M29: 7.53 | N29: 13.22 | O29: 6.97 | P29: 8.07 | Q29: 7.99 | R29: 7.33 | S29: 6.41 | T29: 7.38 | U29: 6.58 | V29: 10.43 | W29: 10.62 | X29: 12.29 | Y29: 6.88 | Z29: 6.57 | AA29: 6.67 | AB29: 8.8 | AC29: 6.34 | AD29: 6.68 | AE29: 8.57 | AF29: 11.86 | AG29: 8.66 | AH29: 6.66 | AI29: 8.05 | AJ29: 7.2 | AK29: 5.7 | AL29: 8.84 | AM29: 8.59 | AN29: 6.3 | AO29: 8.97 | AP29: 9.63 | AQ29: 7.69 | AR29: 6.26 | AS29: 7.44 | AT29: 5.91 | AU29: 5.9 | AV29: 6.04 | AW29: 7.91 | AX29: 7.83 | AY29: 7.59 | AZ29: 7.92 | BA29: 6.77
A30: 2005 | B30: 8.56 | C30: 9.51 | D30: 2.59 | E30: 8.53 | F30: 9.44 | G30: 9.84 | H30: 8.68 | I30: 11.68 | J30: 10.86 | L30: 9.48 | M30: 10.29 | N30: 16.41 | O30: 8.39 | P30: 10.01 | Q30: 10.06 | R30: 9.46 | S30: 7.71 | T30: 9.9 | U30: 9.11 | V30: 13.74 | W30: 12.17 | X30: 13.67 | Y30: 8.63 | Z30: 8.49 | AA30: 9.14 | AB30: 10.99 | AC30: 8.22 | AD30: 8.38 | AE30: 9.82 | AF30: 12.25 | AG30: 9.94 | AH30: 8.62 | AI30: 10.76 | AJ30: 11.19 | AK30: 9.34 | AL30: 11.22 | AM30: 9.41 | AN30: 7.7 | AO30: 11.25 | AP30: 11.23 | AQ30: 10.02 | AR30: 8.03 | AS30: 10.06 | AT30: 7.62 | AU30: 7.33 | AV30: 7.65 | AW30: 10.83 | AX30: 10.26 | AY30: 10.5 | AZ30: 9.91 | BA30: 8.26
A31: 2006 | B31: 7.87 | C31: 9.46 | D31: 3.84 | E31: 9.9 | F31: 9.51 | G31: 9.3 | H31: 11.53 | I31: 10.86 | J31: 11.94 | L31: 11.66 | M31: 9.51 | N31: 18.49 | O31: 10.05 | P31: 9.44 | Q31: 9.37 | R31: 8.47 | S31: 6.83 | T31: 9.64 | U31: 7.42 | V31: 14.39 | W31: 12.86 | X31: 14.88 | Y31: 9.9 | Z31: 8.09 | AA31: 9.27 | AB31: 11.83 | AC31: 11.63 | AD31: 8.37 | AE31: 12 | AF31: 12.55 | AG31: 10.28 | AH31: 8.92 | AI31: 10.56 | AJ31: 10.99 | AK31: 6.54 | AL31: 11.6 | AM31: 9.66 | AN31: 9.16 | AO31: 12.3 | AP31: 13.32 | AQ31: 9.21 | AR31: 9.32 | AS31: 10 | AT31: 6.69 | AU31: 8.02 | AV31: 9.25 | AW31: 9.98 | AX31: 9.87 | AY31: 8.98 | AZ31: 9.46 | BA31: 8.9
A32: 2007 | B32: 7.68 | C32: 8.7 | D32: 4.67 | E32: 10.49 | F32: 9.51 | G32: 9.07 | H32: 7.21 | I32: 10.54 | J32: 8.93 | L32: 10.56 | M32: 8.86 | N32: 18.66 | O32: 9.39 | P32: 9 | Q32: 8.45 | R32: 8.56 | S32: 7.17 | T32: 8.37 | U32: 7.08 | V32: 13.4 | W32: 11.59 | X32: 14.83 | Y32: 9.47 | Z32: 7.65 | AA32: 8.28 | AB32: 10.84 | AC32: 9.75 | AD32: 7.97 | AE32: 11.77 | AF32: 13.45 | AG32: 9.63 | AH32: 8.54 | AI32: 11.43 | AJ32: 9.98 | AK32: 6.86 | AL32: 10.63 | AM32: 9.18 | AN32: 9.3 | AO32: 10.64 | AP32: 12.58 | AQ32: 8.84 | AR32: 8.32 | AS32: 9.32 | AT32: 6.76 | AU32: 6.35 | AV32: 9.08 | AW32: 9.33 | AX32: 9.79 | AY32: 8.51 | AZ32: 9.62 | BA32: 6.61
A33: 2008 | B33: 9.65 | C33: 10.57 | D33: 5.49 | E33: 10.47 | F33: 10.56 | G33: 10.8 | H33: 8.76 | I33: 12.63 | J33: 12.54 | L33: 11.72 | M33: 11.02 | N33: 26.74 | O33: 9.18 | P33: 10.58 | Q33: 10.48 | R33: 9.32 | S33: 9.42 | T33: 10.41 | U33: 9.32 | V33: 14.89 | W33: 13.46 | X33: 15.23 | Y33: 10.26 | Z33: 9.05 | AA33: 10.37 | AB33: 11.32 | AC33: 11.04 | AD33: 9.12 | AE33: 11.1 | AF33: 14.37 | AG33: 12.76 | AH33: 10.27 | AI33: 12.3 | AJ33: 12.1 | AK33: 8.3 | AL33: 12.71 | AM33: 13.03 | AN33: 9.07 | AO33: 12.09 | AP33: 13.26 | AQ33: 11.03 | AR33: 9 | AS33: 10.81 | AT33: 8.96 | AU33: 7.21 | AV33: 9.6 | AW33: 11.49 | AX33: 10.55 | AY33: 10.94 | AZ33: 10.57 | BA33: 7.55
A34: 2009 | B34: 5.33 | C34: 6.48 | D34: 4.02 | E34: 8.19 | F34: 8.44 | G34: 6.56 | H34: 6.57 | I34: 8.44 | J34: 13.99 | L34: 9.41 | M34: 6.21 | N34: 19.05 | O34: 8.53 | P34: 7.31 | Q34: 6.91 | R34: 6.23 | S34: 4.59 | T34: 6.04 | U34: 4.31 | V34: 9.12 | W34: 10.7 | X34: 12.07 | Y34: 9.63 | Z34: 5.66 | AA34: 6.65 | AB34: 9.55 | AC34: 9.06 | AD34: 6.02 | AE34: 11.22 | AF34: 12.86 | AG34: 8.96 | AH34: 5.41 | AI34: 9.52 | AJ34: 8.66 | AK34: 5.21 | AL34: 8.71 | AM34: 12.53 | AN34: 9.7 | AO34: 9.19 | AP34: 12.58 | AQ34: 6.06 | AR34: 6.07 | AS34: 7.09 | AT34: 4.05 | AU34: 5.62 | AV34: 7.93 | AW34: 7.14 | AX34: 11.68 | AY34: 5.55 | AZ34: 7.82 | BA34: 5.79
A35: 2010 | B35: 5.49 | C35: 6.64 | D35: 4.23 | E35: 7.54 | F35: 7.28 | G35: 7.02 | H35: 5.84 | I35: 9.6 | J35: 10.18 | L35: 8.33 | M35: 6.25 | N35: 24.1 | O35: 6.39 | P35: 7.13 | Q35: 5.65 | R35: 6.1 | S35: 5.49 | T35: 5.57 | U35: 4.68 | V35: 11.23 | W35: 9.05 | X35: 10.41 | Y35: 9.25 | Z35: 5.58 | AA35: 6.19 | AB35: 8.7 | AC35: 8.07 | AD35: 5.85 | AE35: 10.53 | AF35: 11.59 | AG35: 9.63 | AH35: 6.17 | AI35: 8.55 | AJ35: 8.24 | AK35: 5.22 | AL35: 7.4 | AM35: 8.23 | AN35: 7.05 | AO35: 8.23 | AP35: 12.13 | AQ35: 6.12 | AR35: 5.92 | AS35: 6.64 | AT35: 4.61 | AU35: 5.57 | AV35: 6.57 | AW35: 6.68 | AX35: 9.37 | AY35: 5.4 | AZ35: 7.56 | BA35: 4.91
A36: 2011 | B36: 5.13 | C36: 5.57 | D36: 3.84 | E36: 6.86 | F36: 7.44 | G36: 7.04 | H36: 6.42 | I36: 9.16 | J36: 11.69 | L36: 8.07 | M36: 5.9 | N36: 29.8 | O36: 6.36 | P36: 6.84 | Q36: 6.53 | R36: 5.78 | S36: 5.28 | T36: 5.16 | U36: 4.25 | V36: 10.89 | W36: 8.61 | X36: 10.14 | Y36: 8.27 | Z36: 5.55 | AA36: 5.83 | AB36: 8.54 | AC36: 8.13 | AD36: 5.61 | AE36: 8.99 | AF36: 11.57 | AG36: 9.23 | AH36: 6.22 | AI36: 8.18 | AJ36: 7.7 | AK36: 5.1 | AL36: 6.77 | AM36: 7.37 | AN36: 6.84 | AO36: 9.86 | AP36: 10.98 | AQ36: 5.6 | AR36: 6.25 | AS36: 6.15 | AT36: 4.21 | AU36: 5.5 | AV36: 6.09 | AW36: 6.44 | AX36: 9.47 | AY36: 4.89 | AZ36: 7.05 | BA36: 5.57
A37: 2012 | B37: 3.89 | C37: 4.35 | D37: 5.11 | E37: 5.78 | F37: 6.38 | G37: 5.77 | H37: 5.79 | I37: 8.83 | J37: 11.61 | L37: 6.96 | M37: 4.6 | N37: 30.89 | O37: 5.73 | P37: 5.64 | Q37: 6.19 | R37: 4.7 | S37: 3.95 | T37: 3.96 | U37: 2.96 | V37: 10.35 | W37: 8.01 | X37: 9.82 | Y37: 7.38 | Z37: 4.48 | AA37: 4.86 | AB37: 7.93 | AC37: 7.54 | AD37: 4.34 | AE37: 7.34 | AF37: 10.48 | AG37: 7.87 | AH37: 4.87 | AI37: 6.92 | AJ37: 6.37 | AK37: 4.48 | AL37: 5.48 | AM37: 7.65 | AN37: 5.87 | AO37: 9.58 | AP37: 9.78 | AQ37: 4.3 | AR37: 5.37 | AS37: 4.94 | AT37: 3.02 | AU37: 4.69 | AV37: 4.89 | AW37: 5.29 | AX37: 8.77 | AY37: 3.56 | AZ37: 5.81 | BA37: 4.87
A38: 2013 | B38: 4.66 | C38: 5 | D38: =D37 -> 5.11 | E38: 6.32 | F38: 6.62 | G38: =G37 -> 5.77 | H38: 5.76 | I38: 6.85 | J38: =J37 -> 11.61 | L38: =L37 -> 6.96 | M38: 5.28 | N38: 27.81 | O38: =O37 -> 5.73 | P38: 5.91 | Q38: =Q37 -> 6.19 | R38: =R37 -> 4.7 | S38: 4.87 | T38: 4.99 | U38: 3.91 | V38: =V37 -> 10.35 | W38: =W37 -> 8.01 | X38: =X37 -> 9.82 | Y38: 6.89 | Z38: 5.09 | AA38: =AA37 -> 4.86 | AB38: =AB37 -> 7.93 | AC38: 7.37 | AD38: =AD37 -> 4.34 | AE38: 6.55 | AF38: 10.42 | AG38: =AG37 -> 7.87 | AH38: 5.59 | AI38: =AI37 -> 6.92 | AJ38: =AJ37 -> 6.37 | AK38: 4.14 | AL38: 5.33 | AM38: 6.87 | AN38: 5.69 | AO38: =AO37 -> 9.58 | AP38: =AP37 -> 9.78 | AQ38: 5.35 | AR38: =AR37 -> 5.37 | AS38: 5.7 | AT38: 3.93 | AU38: 5.32 | AV38: 5.02 | AW38: =AW37 -> 5.29 | AX38: =AX37 -> 8.77 | AY38: 3.56 | AZ38: 5.98 | BA38: =BA37 -> 4.87
A40: Note:
A41: 2012 price assumed
D44: =INDEX(B22:J38,MATCH(2013,A22:A38),MATCH("Alaska",B21:BA21)) -> 5.11
D45: =MATCH(2013,A22:A38, 0) -> 17
D46: =MATCH("Alaska",B21:BA21) -> 3

Sheet EIA.Oil
A2: Industrial Oil Use Data excluding Transportation
A4: State | B4: Distillate fuel oil | C4: LPG b | D4: Residual fuel oil | E4: Other d | F4: Total use (Trillion Btu) | G4: Total expenditure (million $) | H4: Weighted average ($/Mmbtu) | I4: All Oil ($/MMBtu)
A7: Alabama | B7: =(F143/F74) -> 30.33457249 | C7: =(G143/G74) -> 3.830532213 | D7: =IFERROR(I143/I74," ") -> 4.855421687 | E7: =(J143/J74) -> 33.9809096 | F7: =SUM(B7:E7) -> 73.00143599 | G7: =IFERROR(F143+G143+I143+J143,F143+G143+J143) -> 1474.9 | H7: =G7/F7 -> 20.20371216 | I7: =K74 -> 20.51
A8: Alaska | B8: 23.39351511 | C8: 0.04655493482 | D8: =IFERROR(I144/I75," ") ->  | E8: 0.6402793946 | F8: =SUM(B8:E8) -> 24.08034944 | G8: =IFERROR(F144+G144+I144+J144,F144+G144+J144) -> 646.9 | H8: =G8/F8 -> 26.8642281 | I8: =K75 -> 27.16
A9: Arizona | B9: 32.99188249 | C9: 1.231441048 | D9: =IFERROR(I145/I76," ") ->  | E9: 17.62633997 | F9: =SUM(B9:E9) -> 51.84966351 | G9: =IFERROR(F145+G145+I145+J145,F145+G145+J145) -> 1111.9 | H9: 21.44469076 | I9: 21.96
A10: Arkansas | B10: 29.69611021 | C10: 2.108516484 | D10: 0.06505026611 | E10: 7.16516023 | F10: 39.03483719 | G10: =IFERROR(F146+G146+I146+J146,F146+G146+J146) -> 939.1 | H10: 24.0579971 | I10: 24.39
A11: California | B11: 74.84825202 | C11: 19.91319444 | D11: =IFERROR(I147/I78," ") ->  | E11: 82.0754717 | F11: 176.8369182 | G11: 3755.6 | H11: 21.23764675 | I11: 22.6
A12: Colorado | B12: 23.17794893 | C12: 7.813780261 | D12: =IFERROR(I148/I79," ") ->  | E12: 12.94713975 | F12: 43.93886894 | G12: 960.4 | H12: 21.85764047 | I12: 22.48
A13: Connecticut | B13: 2.837356549 | C13: 2.539785645 | D13: 0.05165289256 | E13: 6.341689879 | F13: 11.77048497 | G13: 287.5 | H13: 24.42550165 | I13: 25.31
A14: Delaware | B14: 1.333617384 | C14: 0.5182608696 | D14: 1.057534247 | E14: 3.351566385 | F14: 6.260978885 | G14: 132.9 | H14: 21.2267127 | I14: 22.15
A15: Dist. of Col. | B15: 0.1316839585 | C15: 0.009842519685 | D15: =IFERROR(I151/I82," ") ->  | E15: 0.145784082 | F15: 0.2873105601 | G15: 7.3 | H15: 25.40804625 | I15: 27.15
A16: Florida | B16: 34.8706725 | C16: 2.476298824 | D16: 3.053097345 | E16: 28.56160762 | F16: 68.96167629 | G16: 1536.9 | H16: 22.28629121 | I16: 22.96
A17: Georgia | B17: 30.72992701 | C17: 4.588326247 | D17: 1.121758737 | E17: 38.07505212 | F17: 74.51506411 | G17: 1444.3 | H17: 19.38265795 | I17: 19.97
A18: Hawaii | B18: 2.167194929 | C18: 0.004476275739 | D18: 0.1559888579 | E18: 0.9527027027 | F18: 3.280362765 | G18: 71.7 | H18: 21.8573387 | I18: 24.24
A19: Idaho | B19: 13.74264417 | C19: 0.4013015184 | D19: 0.006365372374 | E19: 9.711042312 | F19: 23.86135338 | G19: 455.6 | H19: 19.09363617 | I19: 20.36
A20: Illinois | B20: 35.81723027 | C20: 44.75659229 | D20: 0.07669616519 | E20: 54.83840749 | F20: 135.4889262 | G20: 2944.4 | H20: 21.73166533 | I20: 22.23
A21: Indiana | B21: 30.54216867 | C21: 5.322255791 | D21: 0.4979496192 | E21: 50.84880637 | F21: 87.21118045 | G21: 1641.5 | H21: 18.82212798 | I21: 19.39
A22: Iowa | B22: 36.63654224 | C22: 35.70411795 | D22: 0.053222945 | E22: 12.62077295 | F22: 85.01465608 | G22: 1844.6 | H22: 21.6974353 | I22: 22.19
A23: Kansas | B23: 25.99529781 | C23: 54.50076026 | D23: 1.550707547 | E23: 13.07616222 | F23: 95.12292783 | G23: 2029.4 | H23: 21.33449891 | I23: 21.54
A24: Kentucky | B24: 32.99803536 | C24: 23.18759532 | D24: 0.2424600828 | E24: 49.31775701 | F24: 105.7458478 | G24: 1827.7 | H24: 17.28389377 | I24: 17.67
A25: Louisiana | B25: 51.56133829 | C25: 221.5196078 | D25: 8.595912986 | E25: 389.7260274 | F25: 671.4028865 | G25: 15068.5 | H25: 22.44330536 | I25: 22.48
A26: Maine | B26: 5.30260521 | C26: 0.1348684211 | D26: 3.038702929 | E26: 1.929277171 | F26: 10.40545373 | G26: 231.6 | H26: 22.25755897 | I26: 23.27
A27: Maryland | B27: 6.99150829 | C27: 1.338582677 | D27: 0.5032386647 | E27: 21.83287165 | F27: 30.66620128 | G27: 696.7 | H27: 22.71882303 | I27: 23.4
A28: Massachusetts | B28: 3.928712871 | C28: 1.521456437 | D28: 0.7210816224 | E28: 8.666114333 | F28: 14.83736526 | G28: 369.6 | H28: 24.91008299 | I28: 25.82
A29: Michigan | B29: 16.42829077 | C29: 3.746822572 | D29: 1.17090479 | E29: 42.16180371 | F29: 63.50782184 | G29: 1465.3 | H29: 23.07274848 | I29: 23.48
A30: Minnesota | B30: 39.62652439 | C30: 7.34375 | D30: 0.2580645161 | E30: 32.75162925 | F30: 79.97996816 | G30: 1642.2 | H30: 20.53264133 | I30: 21.17
A31: Mississippi | B31: 18.75953432 | C31: 2.396187883 | D31: 0.2050380785 | E31: 15.78604044 | F31: 37.14680073 | G31: 748 | H31: 20.1363236 | I31: 20.72
A32: Missouri | B32: 21.7226219 | C32: 9.395036194 | D32: 0.03607937462 | E32: 41.98135198 | F32: 73.13508945 | G32: 1266.1 | H32: 17.31179943 | I32: 17.91
A33: Montana | B33: 14.95619524 | C33: 0.5289382905 | D33: =IFERROR(I169/I100," ") ->  | E33: 4.883512545 | F33: 20.36864608 | G33: 426.8 | H33: 20.95377367 | I33: 21.57
A34: Nebraska | B34: 32.07264114 | C34: 3.237997957 | E34: 5.495160089 | F34: 40.80579918 | G34: 949.6 | H34: 23.27120211 | I34: 23.68
A35: Nevada | B35: 8.935595835 | C35: 0.7843137255 | E35: 6.285119667 | F35: 16.00502923 | G35: 310.1 | H35: 19.37515987 | I35: 20.21
A36: New Hampshire | B36: 2.276936027 | C36: 0.4248704663 | D36: 0.4103165299 | E36: 3.04059652 | F36: 6.152719543 | G36: 110.1 | H36: 17.89452603 | I36: 19.25
A37: New Jersey | B37: 11.07227959 | C37: 1.264218395 | D37: 1.659412405 | E37: 44.80812641 | F37: 58.8040368 | G37: 1340.7 | H37: 22.79945516 | I37: 23.25
A38: New Mexico | B38: 11.08704536 | C38: 17.63686764 | E38: 9.023372287 | F38: 37.74728529 | G38: 633.9 | H38: 16.79326063 | I38: 17.36
A39: New York | B39: =(F175/F106) -> 14.57200811 | C39: =(G175/G106) -> 2.274247492 | D39: 3.632897603 | E39: =(J175/J106) -> 51.8697479 | F39: 72.34890111 | G39: 1234.6 | H39: 17.06453009 | I39: 18.68
A40: North Carolina | B40: 16.9726248 | C40: 11.02839601 | D40: 2.857935627 | E40: 30.98848369 | F40: 61.84744012 | G40: 1406.3 | H40: 22.73820868 | I40: 23.46
A41: North Dakota | B41: 55.8786196 | C41: 1.826577732 | D41: 0.04179104478 | E41: 5.183973835 | F41: 62.93096221 | G41: 1508.4 | H41: 23.96912342 | I41: 24.11
A42: Ohio | B42: 35.00986972 | C42: 5.383043922 | D42: 1.224004753 | E42: 86.15667718 | F42: 127.7735956 | G42: 2651.5 | H42: 20.75154877 | I42: 21.15
A43: Oklahoma | B43: 26.09007573 | C43: 1.567818463 | D43: 3.794964029 | E43: 17.05134992 | F43: 48.50420814 | G43: 1070.4 | H43: 22.06818833 | I43: 22.48
A44: Oregon | B44: 14.71363824 | C44: 1.797020484 | D44: 0.686095932 | E44: 16.09699769 | F44: 33.29375234 | G44: 616.1 | H44: 18.50497336 | I44: 19.61
A45: Pennsylvania | B45: 45.86682427 | C45: 24.16010499 | D45: 1.246641591 | E45: 54.44117647 | F45: 125.7147473 | G45: 3219.4 | H45: 25.6087696 | I45: 25.91
A46: Rhode Island | B46: 0.590086546 | C46: 0.3227888961 | D46: 0.1488706366 | E46: 1.586629002 | F46: 2.648375081 | G46: 61.6 | H46: 23.25954524 | I46: 24.31
A47: South Carolina | B47: 9.888579387 | C47: 1.406901782 | D47: 2.063672541 | E47: 30.33281734 | F47: 43.69197105 | G47: 713.8 | H47: 16.33709771 | I47: 16.91
A48: South Dakota | B48: 11.44573488 | C48: 1 | E48: 6.090573013 | F48: 18.53630789 | G48: 371 | H48: 20.01477328 | I48: 20.78
A49: Tennessee | B49: 11.67380304 | C49: 1.495468278 | D49: 0.09373169303 | E49: 42.25285171 | F49: 55.51585472 | G49: 1220.2 | H49: 21.97930674 | I49: 22.4
A50: Texas | B50: 198.2854832 | C50: 1785.243317 | D50: 13.5567867 | E50: 572.6719799 | F50: 2569.757567 | G50: 44847.5 | H50: 17.45203539 | I50: 17.55
A51: Utah | B51: 13.54724409 | C51: 1.359855335 | E51: 7.730553328 | F51: 22.63765276 | G51: 478.1 | H51: 21.11968079 | I51: 21.7
A52: Vermont | B52: 3.541087733 | C52: 0.2052785924 | D52: 0.3553553554 | E52: 0.8858390518 | F52: 4.987560733 | G52: 116.8 | H52: 23.4182612 | I52: 24.31
A53: Virginia | B53: 16.44184168 | C53: 2.105666156 | D53: 5.373467113 | E53: 21.17525773 | F53: 45.09623268 | G53: 969.3 | H53: 21.49403492 | I53: 22.24
A54: Washington | B54: 14.7235023 | C54: 3.513986014 | D54: 0.08690928843 | E54: 41.27770535 | F54: 59.60210295 | G54: 782 | H54: 13.12034243 | I54: 14.54
A55: West Virginia | B55: 27.16275368 | C55: 0.4967766401 | D55: 1.41039823 | E55: 7.325800377 | F55: 36.39572893 | G55: 954.6 | H55: 26.22835229 | I55: 26.31
A56: Wisconsin | B56: 22.98294328 | C56: 4.320164187 | D56: 0.6268656716 | E56: 34.82782369 | F56: 62.75779683 | G56: 1179.8 | H56: 18.79925778 | I56: 19.56
A57: Wyoming | B57: 33.19695146 | C57: 0.3537214444 | E57: 4.365781711 | F57: 37.91645462 | G57: 896.4 | H57: 23.6414509 | I57: 23.75
A58: United States | B58: 1279.48269 | C58: 2330.129032 | D58: 66.57894737 | E58: 2082.630058 | F58: 5758.820727 | G58: 112669.6 | H58: 19.56470002 | I58: 19.94
A61: Industrial Sector Energy Price Estimates, 2012 (Dollars per Million Btu)
A62: Source
A63: http://www.eia.gov/state/seds/data.cfm?incfile=/state/seds/sep_sum/html/sum_pr_ind.html&sid=MA
A64: State | B64: Primary Energy
B68: Coal | F68: Petroleum | L68: Biomass | M68: Total f | N68: Retail | O68: Total
N69: Electricity | O69: Energy f
E70: Natural
D71: Total | E71: Gas a | G71: LPG b | H71: Motor | J71: Other d | K71: Total | L71: Wood and
B72: Coking | C72: Steam | F72: Distillate | H72: Gasoline c | I72: Residual | L72: Waste e
B73: Coal | C73: Coal | F73: Fuel Oil | I73: Fuel Oil
A74: Alabama | B74: 6.17 | C74: 4.2 | D74: 5.25 | E74: 4.28 | F74: 24.21 | G74: 14.28 | H74: 27.57 | I74: 16.6 | J74: 17.81 | K74: 20.51 | L74: 2.7 | M74: 6.85 | N74: 18.24 | O74: 9.04
A75: Alaska | B75: — | C75: 3.95 | D75: 3.95 | E75: 5.05 | F75: 27.14 | G75: 21.48 | H75: 35.56 | I75: — | J75: 17.18 | K75: 27.16 | L75: 1.56 | M75: 27.09 | N75: 49.3 | O75: 30.45
A76: Arizona | B76: — | C76: 3.14 | D76: 3.14 | E76: 5.66 | F76: 25.87 | G76: 22.9 | H76: 28.27 | I76: — | J76: 13.06 | K76: 21.96 | L76: 1.73 | M76: 15.74 | N76: 19.14 | O76: 16.85
A77: Arkansas | B77: — | C77: 3.49 | D77: 3.49 | E77: 6.32 | F77: 24.68 | G77: 14.56 | H77: 27.69 | I77: 16.91 | J77: 24.34 | K77: 24.39 | L77: 2.7 | M77: 9.21 | N77: 16.9 | O77: 10.88
A78: California | B78: — | C78: 3.54 | D78: 3.54 | E78: 5.66 | F78: 26.03 | G78: 23.04 | H78: 31.59 | I78: 16.16 | J78: 16.43 | K78: 22.6 | L78: 2.63 | M78: 9.38 | N78: 30.74 | O78: 12.48
A79: Colorado | B79: — | C79: 2.89 | D79: 2.89 | E79: 5.58 | F79: 24.67 | G79: 26.85 | H79: 28.41 | I79: — | J79: 13.81 | K79: 22.48 | L79: 1.73 | M79: 12.41 | N79: 20.36 | O79: 14.78
A80: Connecticut | B80: — | C80: — | D80: — | E80: 8.56 | F80: 25.27 | G80: 30.79 | H80: 29.95 | I80: 19.36 | J80: 21.54 | K80: 25.31 | L80: 1.68 | M80: 14.02 | N80: 37.01 | O80: 19.17
A81: Delaware | B81: — | C81: — | D81: — | E81: 11.29 | F81: 23.47 | G81: 28.75 | H81: 28.95 | I81: 18.25 | J81: 20.11 | K81: 22.15 | L81: 1.72 | M81: 13.56 | N81: 24.49 | O81: 15.87
A82: Dist. of Col. | B82: — | C82: — | D82: — | E82: — | F82: 25.06 | G82: 30.48 | H82: 30.5 | I82: — | J82: 25.38 | K82: 27.15 | L82: — | M82: 27.15 | N82: 16 | O82: 20.12
A83: Florida | B83: — | C83: 4.53 | D83: 4.53 | E83: 6.83 | F83: 25.13 | G83: 26.37 | H83: 27.71 | I83: 18.08 | J83: 18.91 | K83: 22.96 | L83: 2.51 | M83: 9.37 | N83: 23.55 | O83: 11.59
A84: Georgia | B84: — | C84: 4.28 | D84: 4.28 | E84: 4.53 | F84: 24.66 | G84: 25.87 | H84: 27.09 | I84: 17.74 | J84: 14.39 | K84: 19.97 | L84: 2.7 | M84: 7.14 | N84: 17.52 | O84: 9.4
A85: Hawaii | B85: — | C85: 3.59 | D85: 3.59 | E85: 29.53 | F85: 25.24 | G85: 22.34 | H85: 35.52 | I85: 17.95 | J85: 14.8 | K85: 24.24 | L85: 1.44 | M85: 12.52 | N85: 90.33 | O85: 56.26
A86: Idaho | B86: — | C86: 3.03 | D86: 3.03 | E86: 5.64 | F86: 25.49 | G86: 27.66 | H86: 29.72 | I86: 15.71 | J86: 9.69 | K86: 20.36 | L86: 2.66 | M86: 9.77 | N86: 16.05 | O86: 11.59
A87: Illinois | B87: 6.87 | C87: 2.4 | D87: 4.21 | E87: 5.58 | F87: 24.84 | G87: 19.72 | H87: 28.66 | I87: 16.95 | J87: 21.35 | K87: 22.23 | L87: 1.38 | M87: 9.91 | N87: 16.99 | O87: 11.49
A88: Indiana | B88: 6.88 | C88: 4.03 | D88: 6.21 | E88: 6.12 | F88: 24.9 | G88: 19.86 | H88: 27.68 | I88: 17.07 | J88: 15.08 | K88: 19.39 | L88: 1.43 | M88: 8.06 | N88: 18.58 | O88: 10.15
A89: Iowa | B89: — | C89: 2.61 | D89: 2.61 | E89: 4.64 | F89: 25.45 | G89: 19.67 | H89: 28.09 | I89: 16.91 | J89: 16.56 | K89: 22.19 | L89: 1.36 | M89: 9 | N89: 15.52 | O89: 10.08
A90: Kansas | B90: — | C90: 2.85 | D90: 2.85 | E90: 3.86 | F90: 25.52 | G90: 19.73 | H90: 27.73 | I90: 16.96 | J90: 20.22 | K90: 21.54 | L90: 1.7 | M90: 12.22 | N90: 20.78 | O90: 13.49
A91: Kentucky | B91: — | C91: 3.92 | D91: 3.92 | E91: 3.84 | F91: 25.45 | G91: 19.67 | H91: 28.86 | I91: 16.91 | J91: 10.7 | K91: 17.67 | L91: 2.64 | M91: 9.83 | N91: 15.68 | O91: 11.98
A92: Louisiana | B92: — | C92: 5.32 | D92: 5.32 | E92: 2.92 | F92: 24.21 | G92: 14.28 | H92: 27.56 | I92: 15.17 | J92: 27.01 | K92: 22.48 | L92: 2.63 | M92: 11.33 | N92: 13.95 | O92: 11.47
A93: Maine | B93: — | C93: 6.52 | D93: 6.52 | E93: 10.06 | F93: 24.95 | G93: 30.4 | H93: 29.73 | I93: 19.12 | J93: 19.23 | K93: 23.27 | L93: 2.67 | M93: 8.46 | N93: 23.39 | O93: 10.11
A94: Maryland | B94: — | C94: 2.89 | D94: 2.89 | E94: 7.72 | F94: 24.73 | G94: 30.48 | H94: 29.08 | I94: 20.07 | J94: 21.66 | K94: 23.4 | L94: 2.68 | M94: 12.69 | N94: 23.68 | O94: 14.45
A95: Massachusetts | B95: — | C95: 6.09 | D95: 6.09 | E95: 9.5 | F95: 25.25 | G95: 30.76 | H95: 29.05 | I95: 19.97 | J95: 24.14 | K95: 25.82 | L95: 2.68 | M95: 11.52 | N95: 36.83 | O95: 21.72
A96: Michigan | B96: 6.96 | C96: 4.24 | D96: 5.86 | E96: 7.26 | F96: 25.45 | G96: 19.67 | H96: 27.92 | I96: 16.91 | J96: 22.62 | K96: 23.48 | L96: 2.65 | M96: 10.25 | N96: 22.34 | O96: 13.34
A97: Minnesota | B97: — | C97: 3.29 | D97: 3.29 | E97: 4.4 | F97: 26.24 | G97: 19.84 | H97: 28.97 | I97: 17.05 | J97: 13.81 | K97: 21.17 | L97: 2.59 | M97: 9.36 | N97: 19.16 | O97: 11.48
A98: Mississippi | B98: — | C98: 4.65 | D98: 4.65 | E98: 4.78 | F98: 24.91 | G98: 14.69 | H98: 27.59 | I98: 17.07 | J98: 15.33 | K98: 20.72 | L98: 2.68 | M98: 7.35 | N98: 18.29 | O98: 9.56
A99: Missouri | B99: — | C99: 2.88 | D99: 2.88 | E99: 7.87 | F99: 25.02 | G99: 19.34 | H99: 27.29 | I99: 16.63 | J99: 12.87 | K99: 17.91 | L99: 1.55 | M99: 11.86 | N99: 17.27 | O99: 13.31
A100: Montana | B100: — | C100: 2.16 | D100: 2.16 | E100: 7.36 | F100: 23.97 | G100: 26.09 | H100: 29.43 | I100: — | J100: 11.16 | K100: 21.57 | L100: 1.72 | M100: 13.89 | N100: 14.96 | O100: 14.15
A101: Nebraska | B101: — | C101: 1.87 | D101: 1.87 | E101: 4.26 | F101: 25.33 | G101: 19.58 | H101: 28.67 | I101: — | J101: 13.43 | K101: 23.68 | L101: 1.35 | M101: 9.57 | N101: 20.54 | O101: 11.89
A102: Nevada | B102: — | C102: 3.29 | D102: 3.29 | E102: 7.08 | F102: 25.93 | G102: 22.95 | H102: 29.24 | I102: — | J102: 9.61 | K102: 20.21 | L102: 1.69 | M102: 12.95 | N102: 19 | O102: 16.35
A103: New Hampshire | B103: — | C103: — | D103: — | E103: 10.15 | F103: 23.76 | G103: 28.95 | H103: 29.01 | I103: 17.06 | J103: 12.07 | K103: 19.25 | L103: 1.7 | M103: 14.32 | N103: 34.68 | O103: 20.71
A104: New Jersey | B104: — | C104: — | D104: — | E104: 7.66 | F104: 25.18 | G104: 30.77 | H104: 28.38 | I104: 18.38 | J104: 22.15 | K104: 23.25 | L104: 1.69 | M104: 16.24 | N104: 30.82 | O104: 18.88
A105: New Mexico | B105: — | C105: 2.86 | D105: 2.86 | E105: 4.76 | F105: 24.47 | G105: 14.43 | H105: 27.8 | I105: — | J105: 11.98 | K105: 17.36 | L105: 1.68 | M105: 15.47 | N105: 17.09 | O105: 15.99
A106: New York | B106: 5.87 | C106: 4.44 | D106: 4.7 | E106: 6.7 | F106: 24.65 | G106: 29.9 | H106: 29.22 | I106: 18.36 | J106: 14.28 | K106: 18.68 | L106: 2.55 | M106: 11.51 | N106: 19.62 | O106: 13.11
A107: North Carolina | B107: — | C107: 4.11 | D107: 4.11 | E107: 6.28 | F107: 24.84 | G107: 26.06 | H107: 29.11 | I107: 18.02 | J107: 20.84 | K107: 23.46 | L107: 2.69 | M107: 9.9 | N107: 18.82 | O107: 12.26
A108: North Dakota | B108: — | C108: 4.33 | D108: 4.33 | E108: 4.21 | F108: 25.21 | G108: 19.49 | H108: 29.75 | I108: 16.75 | J108: 12.23 | K108: 24.11 | L108: 1.42 | M108: 11.18 | N108: 19.2 | O108: 11.85
A109: Ohio | B109: 6.66 | C109: 3.7 | D109: 5.93 | E109: 5.3 | F109: 25.33 | G109: 19.58 | H109: 28.45 | I109: 16.83 | J109: 19.02 | K109: 21.15 | L109: 2.47 | M109: 9.38 | N109: 18.27 | O109: 11.57
A110: Oklahoma | B110: — | C110: 3.88 | D110: 3.88 | E110: 7.41 | F110: 25.09 | G110: 19.39 | H110: 27.33 | I110: 16.68 | J110: 18.89 | K110: 22.48 | L110: 2.31 | M110: 10.01 | N110: 14.91 | O110: 10.88
A111: Oregon | B111: — | C111: 3.08 | D111: 3.08 | E111: 5.74 | F111: 24.27 | G111: 21.48 | H111: 29.99 | I111: 16.47 | J111: 12.99 | K111: 19.61 | L111: 2.54 | M111: 9.33 | N111: 16.37 | O111: 11.12
A112: Pennsylvania | B112: 6.32 | C112: 3.69 | D112: 5.77 | E112: 9.18 | F112: 25.38 | G112: 30.48 | H112: 29.77 | I112: 18.61 | J112: 23.8 | K112: 25.91 | L112: 2.54 | M112: 12.08 | N112: 21.18 | O112: 14.21
A113: Rhode Island | B113: — | C113: — | D113: — | E113: 9.49 | F113: 25.42 | G113: 30.98 | H113: 29.57 | I113: 19.48 | J113: 21.24 | K113: 24.31 | L113: 1.92 | M113: 13.64 | N113: 31.29 | O113: 17.5
A114: South Carolina | B114: — | C114: 4.35 | D114: 4.35 | E114: 4.22 | F114: 25.13 | G114: 26.37 | H114: 27.25 | I114: 17.59 | J114: 12.92 | K114: 16.91 | L114: 2.67 | M114: 6.51 | N114: 17.65 | O114: 10
A115: South Dakota | B115: — | C115: 2.76 | D115: 2.76 | E115: 5.28 | F115: 24.97 | G115: 19.3 | H115: 28.93 | I115: — | J115: 10.82 | K115: 20.78 | L115: 1.75 | M115: 9.98 | N115: 19.26 | O115: 11.14
A116: Tennessee | B116: — | C116: 4.09 | D116: 4.09 | E116: 4.87 | F116: 25.69 | G116: 19.86 | H116: 27.62 | I116: 17.07 | J116: 21.04 | K116: 22.4 | L116: 2.63 | M116: 8.3 | N116: 20.74 | O116: 11.56
A117: Texas | B117: — | C117: 3.95 | D117: 3.95 | E117: 2.94 | F117: 24.73 | G117: 14.59 | H117: 27.4 | I117: 18.05 | J117: 23.84 | K117: 17.55 | L117: 2.52 | M117: 12.48 | N117: 16.27 | O117: 12.73
A118: Utah | B118: — | C118: 2.67 | D118: 2.67 | E118: 4.49 | F118: 25.4 | G118: 27.65 | H118: 29.54 | I118: — | J118: 12.47 | K118: 21.7 | L118: 1.73 | M118: 10 | N118: 16.47 | O118: 11.98
A119: Vermont | B119: — | C119: — | D119: — | E119: 4.83 | F119: 25.19 | G119: 30.69 | H119: 30.06 | I119: 19.98 | J119: 16.03 | K119: 24.31 | L119: 1.7 | M119: 17.43 | N119: 29.25 | O119: 21.62
A120: Virginia | B120: 6.11 | C120: 4.16 | D120: 5.04 | E120: 5.11 | F120: 24.76 | G120: 26.12 | H120: 29.65 | I120: 17.94 | J120: 19.4 | K120: 22.24 | L120: 2.68 | M120: 8.27 | N120: 19.68 | O120: 10.57
A121: Washington | B121: — | C121: 5.87 | D121: 5.87 | E121: 8.52 | F121: 26.04 | G121: 22.88 | H121: 30.4 | I121: 18.41 | J121: 7.67 | K121: 14.54 | L121: 2.66 | M121: 8.64 | N121: 12.12 | O121: 9.72
A122: West Virginia | B122: 6.3 | C122: 4.33 | D122: 5.36 | E122: 3.29 | F122: 25.13 | G122: 26.37 | H122: 29.47 | I122: 18.08 | J122: 31.86 | K122: 26.31 | L122: 1.73 | M122: 11.72 | N122: 18.55 | O122: 13.46
A123: Wisconsin | B123: — | C123: 4.02 | D123: 4.02 | E123: 5.7 | F123: 25.21 | G123: 19.49 | H123: 29.14 | I123: 16.75 | J123: 14.52 | K123: 19.56 | L123: 2.57 | M123: 8.88 | N123: 21.53 | O123: 11.89
A124: Wyoming | B124: — | C124: 1.9 | D124: 1.9 | E124: 4.71 | F124: 24.93 | G124: 27.14 | H124: 27.85 | I124: — | J124: 13.56 | K124: 23.75 | L124: 1.73 | M124: 10.41 | N124: 17.67 | O124: 12.01
A125: United States | B125: 6.59 | C125: 3.61 | D125: 4.78 | E125: 4.91 | F125: 25.13 | G125: 15.5 | H125: 28.82 | I125: 17.48 | J125: 20.76 | K125: 19.94 | L125: 2.61 | M125: 10.63 | N125: 19.59
A129: Industrial Sector Energy Expenditure Estimates, 2012 (Million Dollars)
A130: Source:
A131: http://www.eia.gov/state/seds/data.cfm?incfile=/state/seds/sep_sum/html/sum_ex_ind.html&sid=MA
A133: State | B133: Primary Energy
B137: Coal | F137: Petroleum | L137: Biomass | M137: Total f | N137: Retail | O137: Total
N138: Electricity | O138: Energy f
E139: Natural
D140: Total | E140: Gas a | G140: LPG b | H140: Motor | J140: Other d | K140: Total | L140: Wood and
B141: Coking | C141: Steam | F141: Distillate | H141: Gasoline c | I141: Residual | L141: Waste e
B142: Coal | C142: Coal | F142: Fuel Oil | I142: Fuel Oil
A143: Alabama | B143: 236.8 | C143: 141.7 | D143: 378.5 | E143: 632.2 | F143: 734.4 | G143: 54.7 | H143: 85.7 | I143: 80.6 | J143: 605.2 | K143: 1560.6 | L143: 356 | M143: 2927.3 | N143: 1856.6 | O143: 4783.9
A144: Alaska | B144: — | C144: 0.1 | D144: 0.1 | E144: — | F144: 634.9 | G144: 1 | H144: 30.8 | I144: — | J144: 11 | K144: 677.6 | L144: 0.1 | M144: 677.8 | N144: 219.6 | O144: 897.4
A145: Arizona | B145: — | C145: 27.6 | D145: 27.6 | E145: 131 | F145: 853.5 | G145: 28.2 | H145: 119 | I145: — | J145: 230.2 | K145: 1230.9 | L145: 0.6 | M145: 1390 | N145: 813.1 | O145: 2203.1
A146: Arkansas | B146: — | C146: 16.1 | D146: 16.1 | E146: 442.9 | F146: 732.9 | G146: 30.7 | H146: 109 | I146: 1.1 | J146: 174.4 | K146: 1048.2 | L146: 175.7 | M146: 1682.9 | N146: 858.3 | O146: 2541.2
A147: California | B147: — | C147: 108.7 | D147: 108.7 | E147: 3605.3 | F147: 1948.3 | G147: 458.8 | H147: 848.9 | I147: (s) | J147: 1348.5 | K147: 4604.6 | L147: 54.2 | M147: 8372.8 | N147: 4655.6 | O147: 13028.5
A148: Colorado | B148: — | C148: 18.1 | D148: 18.1 | E148: 350 | F148: 571.8 | G148: 209.8 | H148: 131.7 | I148: — | J148: 178.8 | K148: 1092.1 | L148: 0.2 | M148: 1460.4 | N148: 1016.2 | O148: 2476.6
A149: Connecticut | B149: — | C149: — | D149: — | E149: 237.8 | F149: 71.7 | G149: 78.2 | H149: 67.2 | I149: 1 | J149: 136.6 | K149: 354.6 | L149: 0.9 | M149: 593.3 | N149: 452.5 | O149: 1045.9
A150: Delaware | B150: — | C150: — | D150: — | E150: 302.9 | F150: 31.3 | G150: 14.9 | H150: 24.6 | I150: 19.3 | J150: 67.4 | K150: 157.5 | L150: (s) | M150: 460.4 | N150: 222.5 | O150: 682.9
A151: Dist. of Col. | B151: — | C151: — | D151: — | E151: — | F151: 3.3 | G151: 0.3 | H151: 4.6 | I151: — | J151: 3.7 | K151: 11.9 | L151: — | M151: 11.9 | N151: 11.9 | O151: 23.8
A152: Florida | B152: — | C152: 57.9 | D152: 57.9 | E152: 683.1 | F152: 876.3 | G152: 65.3 | H152: 272.3 | I152: 55.2 | J152: 540.1 | K152: 1809.2 | L152: 276.6 | M152: 2826.8 | N152: 1319.9 | O152: 4146.6
A153: Georgia | B153: — | C153: 92.8 | D153: 92.8 | E153: 673.4 | F153: 757.8 | G153: 118.7 | H153: 166.3 | I153: 19.9 | J153: 547.9 | K153: 1610.7 | L153: 355.5 | M153: 2732.4 | N153: 1866.4 | O153: 4598.8
A154: Hawaii | B154: — | C154: 4.1 | D154: 4.1 | E154: 9.4 | F154: 54.7 | G154: 0.1 | H154: 24.6 | I154: 2.8 | J154: 14.1 | K154: 96.2 | L154: 5.4 | M154: 115.2 | N154: 1066.6 | O154: 1181.7
A155: Idaho | B155: — | C155: 15.3 | D155: 15.3 | E155: 170.6 | F155: 350.3 | G155: 11.1 | H155: 95.7 | I155: 0.1 | J155: 94.1 | K155: 551.2 | L155: 47.7 | M155: 785 | N155: 525.5 | O155: 1310.5
A156: Illinois | B156: 314.9 | C156: 162.6 | D156: 477.5 | E156: 1423.6 | F156: 889.7 | G156: 882.6 | H156: 299.9 | I156: 1.3 | J156: 1170.8 | K156: 3244.3 | L156: 7.1 | M156: 5152.6 | N156: 2530.8 | O156: 7683.4
A157: Indiana | B157: 1128.3 | C157: 205.7 | D157: 1333.9 | E157: 1978.6 | F157: 760.5 | G157: 105.7 | H157: 163.5 | I157: 8.5 | J157: 766.8 | K157: 1805 | L157: 6.4 | M157: 5123.9 | N157: 2943.4 | O157: 8067.3
A158: Iowa | B158: — | C158: 165.8 | D158: 165.8 | E158: 793.8 | F158: 932.4 | G158: 702.3 | H158: 198.4 | I158: 0.9 | J158: 209 | K158: 2043 | L158: 10.7 | M158: 3013.3 | N158: 1033.2 | O158: 4046.5
A159: Kansas | B159: — | C159: 5.6 | D159: 5.6 | E159: 414.6 | F159: 663.4 | G159: 1075.3 | H159: 87.2 | I159: 26.3 | J159: 264.4 | K159: 2116.6 | L159: 0.2 | M159: 2537 | N159: 754.6 | O159: 3291.6
A160: Kentucky | B160: — | C160: 114 | D160: 114 | E160: 385.7 | F160: 839.8 | G160: 456.1 | H160: 105.8 | I160: 4.1 | J160: 527.7 | K160: 1933.5 | L160: 30.8 | M160: 2463.9 | N160: 2279.6 | O160: 4743.6
A161: Louisiana | B161: — | C161: 12.3 | D161: 12.3 | E161: 2379.7 | F161: 1248.3 | G161: 3163.3 | H161: 134.1 | I161: 130.4 | J161: 10526.5 | K161: 15202.6 | L161: 203.9 | M161: 17798.5 | N161: 1280.5 | O161: 19079
A162: Maine | B162: — | C162: 3.2 | D162: 3.2 | E162: 313.1 | F162: 132.3 | G162: 4.1 | H162: 48.3 | I162: 58.1 | J162: 37.1 | K162: 279.9 | L162: 105 | M162: 701.1 | N162: 241.6 | O162: 942.8
A163: Maryland | B163: — | C163: 58.9 | D163: 58.9 | E163: 141.2 | F163: 172.9 | G163: 40.8 | H163: 106.8 | I163: 10.1 | J163: 472.9 | K163: 803.5 | L163: 20.5 | M163: 1024.1 | N163: 364.4 | O163: 1388.5
A164: Massachusetts | B164: — | C164: 10 | D164: 10 | E164: 431.4 | F164: 99.2 | G164: 46.8 | H164: 121.6 | I164: 14.4 | J164: 209.2 | K164: 491.2 | L164: 52.1 | M164: 984.7 | N164: 2127.2 | O164: 3111.8
A165: Michigan | B165: 248.1 | C165: 103.3 | D165: 351.4 | E165: 1080.9 | F165: 418.1 | G165: 73.7 | H165: 161.7 | I165: 19.8 | J165: 953.7 | K165: 1627 | L165: 72.5 | M165: 3131.8 | N165: 2340 | O165: 5471.7
A166: Minnesota | B166: — | C166: 70.3 | D166: 70.3 | E166: 652.1 | F166: 1039.8 | G166: 145.7 | H166: 189.6 | I166: 4.4 | J166: 452.3 | K166: 1831.9 | L166: 59.7 | M166: 2614 | N166: 1475.6 | O166: 4089.6
A167: Mississippi | B167: — | C167: 12.1 | D167: 12.1 | E167: 467.3 | F167: 467.3 | G167: 35.2 | H167: 87.7 | I167: 3.5 | J167: 242 | K167: 835.7 | L167: 161.5 | M167: 1476.6 | N167: 926.9 | O167: 2403.5
A168: Missouri | B168: — | C168: 65.7 | D168: 65.7 | E168: 495.8 | F168: 543.5 | G168: 181.7 | H168: 127.9 | I168: 0.6 | J168: 540.3 | K168: 1394.2 | L168: 2.1 | M168: 1957.7 | N168: 1036.8 | O168: 2994.5
A169: Montana | B169: — | C169: 9 | D169: 9 | E169: 126 | F169: 358.5 | G169: 13.8 | H169: 46.5 | I169: — | J169: 54.5 | K169: 473.3 | L169: 1 | M169: 609.4 | N169: 201.9 | O169: 811.3
A170: Nebraska | B170: — | C170: 35.4 | D170: 35.4 | E170: 370.8 | F170: 812.4 | G170: 63.4 | H170: 96.3 | I170: — | J170: 73.8 | K170: 1045.9 | L170: 2.5 | M170: 1454.6 | N170: 834.9 | O170: 2289.5
A171: Nevada | B171: — | C171: 22.8 | D171: 22.8 | E171: 71.3 | F171: 231.7 | G171: 18 | H171: 43.4 | I171: — | J171: 60.4 | K171: 353.5 | L171: 0.2 | M171: 447.8 | N171: 841.6 | O171: 1289.3
A172: New Hampshire | B172: — | C172: — | D172: — | E172: 73.4 | F172: 54.1 | G172: 12.3 | H172: 24.6 | I172: 7 | J172: 36.7 | K172: 134.7 | L172: 0.6 | M172: 208.7 | N172: 231 | O172: 439.7
A173: New Jersey | B173: — | C173: — | D173: — | E173: 391.4 | F173: 278.8 | G173: 38.9 | H173: 145.8 | I173: 30.5 | J173: 992.5 | K173: 1486.6 | L173: 1.1 | M173: 1879.1 | N173: 789 | O173: 2668.1
A174: New Mexico | B174: — | C174: 1.9 | D174: 1.9 | E174: 29.2 | F174: 271.3 | G174: 254.5 | H174: 56.5 | I174: — | J174: 108.1 | K174: 690.4 | L174: 0.1 | M174: 721.6 | N174: 373.5 | O174: 1095.2
A175: New York | B175: 25.3 | C175: 85.5 | D175: 110.8 | E175: 513 | F175: 359.2 | G175: 68 | H175: 323.9 | I175: 66.7 | J175: 740.7 | K175: 1558.5 | L175: 19.8 | M175: 2202 | N175: 917.7 | O175: 3119.7
A176: North Carolina | B176: — | C176: 70.5 | D176: 70.5 | E176: 650.7 | F176: 421.6 | G176: 287.4 | H176: 230.9 | I176: 51.5 | J176: 645.8 | K176: 1637.2 | L176: 175.3 | M176: 2533.8 | N176: 1727.5 | O176: 4261.2
A177: North Dakota | B177: — | C177: 407.5 | D177: 407.5 | E177: 107.5 | F177: 1408.7 | G177: 35.6 | H177: 46.8 | I177: 0.7 | J177: 63.4 | K177: 1555.1 | L177: 1.6 | M177: 2071.6 | N177: 323.6 | O177: 2395.3
A178: Ohio | B178: 673.8 | C178: 122.6 | D178: 796.4 | E178: 1343.5 | F178: 886.8 | G178: 105.4 | H178: 200.4 | I178: 20.6 | J178: 1638.7 | K178: 2851.9 | L178: 32.7 | M178: 5024.4 | N178: 3208.8 | O178: 8233.1
A179: Oklahoma | B179: — | C179: 46.3 | D179: 46.3 | E179: 1265.8 | F179: 654.6 | G179: 30.4 | H179: 113.6 | I179: 63.3 | J179: 322.1 | K179: 1184 | L179: 41.8 | M179: 2537.9 | N179: 812.6 | O179: 3350.5
A180: Oregon | B180: — | C180: 4.9 | D180: 4.9 | E180: 337.6 | F180: 357.1 | G180: 38.6 | H180: 105.8 | I180: 11.3 | J180: 209.1 | K180: 721.9 | L180: 58.8 | M180: 1123.2 | N180: 670.7 | O180: 1794
A181: Pennsylvania | B181: 928.1 | C181: 142 | D181: 1070.1 | E181: 1668.3 | F181: 1164.1 | G181: 736.4 | H181: 295.3 | I181: 23.2 | J181: 1295.7 | K181: 3514.8 | L181: 47.2 | M181: 6300.3 | N181: 3356.1 | O181: 9656.4
A182: Rhode Island | B182: — | C182: — | D182: — | E182: 76.7 | F182: 15 | G182: 10 | H182: 15.6 | I182: 2.9 | J182: 33.7 | K182: 77.3 | L182: 0.1 | M182: 154 | N182: 98.6 | O182: 252.6
A183: South Carolina | B183: — | C183: 56.1 | D183: 56.1 | E183: 349 | F183: 248.5 | G183: 37.1 | H183: 65.3 | I183: 36.3 | J183: 391.9 | K183: 779.2 | L183: 182.2 | M183: 1366.5 | N183: 1695.6 | O183: 3062.2
A184: South Dakota | B184: — | C184: 9.4 | D184: 9.4 | E184: 217.1 | F184: 285.8 | G184: 19.3 | H184: 50.7 | I184: — | J184: 65.9 | K184: 421.7 | L184: 0.3 | M184: 648.5 | N184: 179 | O184: 827.5
A185: Tennessee | B185: — | C185: 261.4 | D185: 261.4 | E185: 481.8 | F185: 299.9 | G185: 29.7 | H185: 122 | I185: 1.6 | J185: 889 | K185: 1342.2 | L185: 109.3 | M185: 2194.7 | N185: 1942.9 | O185: 4137.6
A186: Texas | B186: — | C186: 78.5 | D186: 78.5 | E186: 3843.2 | F186: 4903.6 | G186: 26046.7 | H186: 741.9 | I186: 244.7 | J186: 13652.5 | K186: 45589.3 | L186: 131.8 | M186: 49642.8 | N186: 4654.3 | O186: 54297.1
A187: Utah | B187: — | C187: 36.7 | D187: 36.7 | E187: 148.2 | F187: 344.1 | G187: 37.6 | H187: 49.9 | I187: — | J187: 96.4 | K187: 528.1 | L187: 0.3 | M187: 713.3 | N187: 517.1 | O187: 1230.3
A188: Vermont | B188: — | C188: — | D188: — | E188: 13.3 | F188: 89.2 | G188: 6.3 | H188: 23.4 | I188: 7.1 | J188: 14.2 | K188: 140.2 | L188: 0.6 | M188: 154 | N188: 141.9 | O188: 295.9
A189: Virginia | B189: 184.7 | C189: 155.1 | D189: 339.7 | E189: 378.2 | F189: 407.1 | G189: 55 | H189: 134.2 | I189: 96.4 | J189: 410.8 | K189: 1103.5 | L189: 116 | M189: 1937.4 | N189: 1162.8 | O189: 3100.1
A190: Washington | B190: — | C190: 12.9 | D190: 12.9 | E190: 589.4 | F190: 383.4 | G190: 80.4 | H190: 162.3 | I190: 1.6 | J190: 316.6 | K190: 944.3 | L190: 163.6 | M190: 1710.1 | N190: 1079.7 | O190: 2789.8
A191: West Virginia | B191: 175.1 | C191: 108.1 | D191: 283.2 | E191: 78.9 | F191: 682.6 | G191: 13.1 | H191: 25.5 | I191: 25.5 | J191: 233.4 | K191: 980.1 | L191: 1 | M191: 1343.2 | N191: 725.2 | O191: 2068.4
A192: Wisconsin | B192: — | C192: 125.6 | D192: 125.6 | E192: 670 | F192: 579.4 | G192: 84.2 | H192: 146.5 | I192: 10.5 | J192: 505.7 | K192: 1326.3 | L192: 81.1 | M192: 2203 | N192: 1668.4 | O192: 3871.4
A193: Wyoming | B193: — | C193: 59 | D193: 59 | E193: 210.4 | F193: 827.6 | G193: 9.6 | H193: 28.3 | I193: — | J193: 59.2 | K193: 924.6 | L193: 0.1 | M193: 1194.2 | N193: 572.6 | O193: 1766.7
A194: United States | B194: 3915.1 | C194: 3323 | D194: 7238.1 | E194: 32201.1 | F194: 32153.4 | G194: 36117 | H194: 7108.5 | I194: 1163.8 | J194: 43235.4 | K194: 119778.1 | L194: 3174.3 | M194: 162566.3

Sheet RefTables
C3: EMM Regions
C4: Source: AEO2013 Reference Case. | H4: Custom Inflator
B6: Abbrev. | C6: State | D6: EMM Region | H6: Ref Year | I6: Index
B7: AL | C7: Alabama | D7: SRSE | H7: 2015 | I7: =VLOOKUP(H7,H25:I36,2) -> 110.0279496
B8: AK | C8: Alaska | D8: USA | H8: Year | I8: Inflator
B9: AZ | C9: Arizona | D9: AZNM | H9: 2005 | I9: =I$7/I25 -> 1.196111988
B10: AR | C10: Arkansas | D10: SRDA | H10: =H26 -> 2006 | I10: 1.160461004
B11: CA | C11: California | D11: CAMX | H11: =H27 -> 2007 | I11: 1.130381557
B12: CO | C12: Colorado | D12: RMPA | H12: =H28 -> 2008 | I12: 1.108638631
B13: CT | C13: Connecticut | D13: NEWE | H13: 2009 | I13: 1.100279496
B14: DC | C14: District of Columbia | D14: RFCE | H14: 2010 | I14: 1.087007139
B15: DE | C15: Delaware | D15: RFCE | H15: 2011 | I15: 1.06501679
B16: FL | C16: Florida | D16: FRCC | H16: 2012 | I16: 1.046231192
B17: GA | C17: Georgia | D17: SRSE | H17: 2013 | I17: 1.030870955
B18: HI | C18: Hawaii | D18: USA | H18: 2014 | I18: =I$7/I34 -> 1.016058414
B19: ID | C19: Idaho | D19: NWPP | H19: 2015 | I19: =I$7/I35 -> 1
B20: IL | C20: Illinois | D20: RFCW | H20: 2016 | I20: =I$7/I36 -> 0.9841953831
B21: IN | C21: Indiana | D21: RFCW
B22: IA | C22: Iowa | D22: MROW | H22: Chain-type price indexes for gross domestic product
B23: KS | C23: Kansas | D23: SPNO
B24: KY | C24: Kentucky | D24: SRCE | H24: Year | I24: Gross domestic product | J24: Inflation Rate
B25: LA | C25: Louisiana | D25: SRDA | H25: 2005 | I25: 91.988
B26: ME | C26: Maine | D26: NEWE | H26: 2006 | I26: 94.814 | J26: =(I26/I25)-1 -> 0.03072139844
B27: MD | C27: Maryland | D27: RFCE | H27: 2007 | I27: 97.337 | J27: 0.0266099943
B28: MA | C28: Massachusetts | D28: NEWE | H28: 2008 | I28: 99.246 | J28: 0.01961227488
B29: MI | C29: Michigan | D29: RFCM | H29: 2009 | I29: 100 | J29: 0.007597283518
B30: MN | C30: Minnesota | D30: MROW | H30: 2010 | I30: 101.221 | J30: 0.01221
B31: MS | C31: Mississippi | D31: SRDA | H31: 2011 | I31: 103.311 | J31: 0.02064788927
B32: MO | C32: Missouri | D32: SRGW | H32: 2012 | I32: 105.166 | J32: =(I32/I31)-1 -> 0.01795549361
B33: MT | C33: Montana | D33: NWPP | H33: 2013 | I33: 106.733 | J33: =(I33/I32)-1 -> 0.01490025293
B34: NE | C34: Nebraska | D34: MROW | H34: 2014 | I34: 108.289 | J34: =(I34/I33)-1 -> 0.01457843404
B35: NV | C35: Nevada | D35: NWPP | H35: 2015 | I35: =I34*(1+J35) -> 110.0279496 | J35: =AVERAGE(J30:J34) -> 0.01605841397
B36: NH | C36: New Hampshire | D36: NEWE | H36: 2016 | I36: =I35*(1+J36) -> 111.794824 | J36: =AVERAGE(J30:J34) -> 0.01605841397
B37: NJ | C37: New Jersey | D37: RFCE
B38: NM | C38: New Mexico | D38: AZNM
B39: NY | C39: New York | D39: NYCW | H39: Source | I39: Table 1.1.9. Implicit Price Deflators for Gross Domestic Product
B40: NC | C40: North Carolina | D40: SRVC | I40: http://www.bea.gov/iTable/iTable.cfm?ReqID=9&step=1#reqid=9&step=3&isuri=1&903=13
B41: ND | C41: North Dakota | D41: MROW | H41: Note | I41: Assumes a 1.6% inflation rate based on the average inflation rate over the last 5 years.
B42: OH | C42: Ohio | D42: RFCW
B43: OK | C43: Oklahoma | D43: SPSO
B44: OR | C44: Oregon | D44: NWPP
B45: PA | C45: Pennsylvania | D45: RFCE
B46: RI | C46: Rhode Island | D46: NEWE
B47: SC | C47: South Carolina | D47: SRVC
B48: SD | C48: South Dakota | D48: MROW
B49: TN | C49: Tennessee | D49: SRCE
B50: TX | C50: Texas | D50: ERCT
B51: UT | C51: Utah | D51: NWPP
B52: VT | C52: Vermont | D52: NEWE
B53: VA | C53: Virginia | D53: SRVC
B54: WA | C54: Washington | D54: NWPP
B55: WV | C55: West Virginia | D55: RFCW
B56: WI | C56: Wisconsin | D56: MROE
B57: WY | C57: Wyoming | D57: NWPP

Sheet SC.AC
B2: South Carolina avoided cost data
B3: Source
B4: ACEEE (2009). South Carolina's Energy Future: Minding its Efficiency Resources
B8: South Carolina Avoided Electricity Cost (in constant 2013 dollars)
B9: Case | C9: SC Reference Case Draft - 9/16/09
D11: 2009 | E11: 2010 | F11: 2011 | G11: 2012 | H11: 2013 | I11: 2014 | J11: 2015 | K11: 2016 | L11: 2017 | M11: 2018 | N11: 2019 | O11: 2020 | P11: 2021 | Q11: 2022 | R11: 2023 | S11: 2024 | T11: 2025
B12: Avoided Resource Cost | C12: ¢/kWh | D12: =D23*RefTables!$I$11/100 -> 0.04171107944 | E12: =E23*RefTables!$I$11/100 -> 0.05007590296 | F12: =F23*RefTables!$I$11/100 -> 0.05798857386 | G12: =G23*RefTables!$I$11/100 -> 0.0716661907 | H12: =H23*RefTables!$I$11/100 -> 0.09438685999 | I12: =I23*RefTables!$I$11/100 -> 0.1051254848 | J12: =J23*RefTables!$I$11/100 -> 0.1068210571 | K12: =K23*RefTables!$I$11/100 -> 0.1115686597 | L12: =L23*RefTables!$I$11/100 -> 0.1126990412 | M12: =M23*RefTables!$I$11/100 -> 0.1142815754 | N12: =N23*RefTables!$I$11/100 -> 0.114733728 | O12: =O23*RefTables!$I$11/100 -> 0.1152989188 | P12: =P23*RefTables!$I$11/100 -> 0.1157510714 | Q12: =Q23*RefTables!$I$11/100 -> 0.1173336056 | R12: =R23*RefTables!$I$11/100 -> 0.1189161398 | S12: =S23*RefTables!$I$11/100 -> 0.1217420937 | T12: =T23*RefTables!$I$11/100 -> 0.1245680476
B13: Avoided Capacity Cost | C13: $/kW-yr | D13: =D24*RefTables!$I$11 -> 86.1915937 | E13: =E24*RefTables!$I$11 -> 86.1915937 | F13: =F24*RefTables!$I$11 -> 86.1915937 | G13: =G24*RefTables!$I$11 -> 86.1915937 | H13: =H24*RefTables!$I$11 -> 86.1915937 | I13: =I24*RefTables!$I$11 -> 86.1915937 | J13: =J24*RefTables!$I$11 -> 86.1915937 | K13: =K24*RefTables!$I$11 -> 86.1915937 | L13: =L24*RefTables!$I$11 -> 86.1915937 | M13: =M24*RefTables!$I$11 -> 86.1915937 | N13: =N24*RefTables!$I$11 -> 86.1915937 | O13: =O24*RefTables!$I$11 -> 86.1915937 | P13: =P24*RefTables!$I$11 -> 86.1915937 | Q13: =Q24*RefTables!$I$11 -> 86.1915937 | R13: =R24*RefTables!$I$11 -> 86.1915937 | S13: =S24*RefTables!$I$11 -> 86.1915937 | T13: =T24*RefTables!$I$11 -> 86.1915937
C14: ¢/kWh | D14: =D25*RefTables!$I$11/100 -> 0.01571230364 | E14: =E25*RefTables!$I$11/100 -> 0.01571230364 | F14: =F25*RefTables!$I$11/100 -> 0.01571230364 | G14: =G25*RefTables!$I$11/100 -> 0.01571230364 | H14: =H25*RefTables!$I$11/100 -> 0.01571230364 | I14: =I25*RefTables!$I$11/100 -> 0.01571230364 | J14: =J25*RefTables!$I$11/100 -> 0.01571230364 | K14: =K25*RefTables!$I$11/100 -> 0.01571230364 | L14: =L25*RefTables!$I$11/100 -> 0.01571230364 | M14: =M25*RefTables!$I$11/100 -> 0.01571230364 | N14: =N25*RefTables!$I$11/100 -> 0.01571230364 | O14: =O25*RefTables!$I$11/100 -> 0.01571230364 | P14: =P25*RefTables!$I$11/100 -> 0.01571230364 | Q14: =Q25*RefTables!$I$11/100 -> 0.01571230364 | R14: =R25*RefTables!$I$11/100 -> 0.01571230364 | S14: =S25*RefTables!$I$11/100 -> 0.01571230364 | T14: =T25*RefTables!$I$11/100 -> 0.01571230364
B15: Avoided Energy Only Cost | C15: ¢/kWh | D15: =D26*RefTables!$I$11/100 -> 0.02599877581 | E15: =E26*RefTables!$I$11/100 -> 0.03436359933 | F15: =F26*RefTables!$I$11/100 -> 0.04227627022 | G15: =G26*RefTables!$I$11/100 -> 0.05595388706 | H15: =H26*RefTables!$I$11/100 -> 0.07878759451 | I15: =I26*RefTables!$I$11/100 -> 0.0895262193 | J15: =J26*RefTables!$I$11/100 -> 0.09110875347 | K15: =K26*RefTables!$I$11/100 -> 0.09596939417 | L15: =L26*RefTables!$I$11/100 -> 0.09709977573 | M15: =M26*RefTables!$I$11/100 -> 0.09856927175 | N15: =N26*RefTables!$I$11/100 -> 0.09913446253 | O15: =O26*RefTables!$I$11/100 -> 0.09958661515 | P15: =P26*RefTables!$I$11/100 -> 0.1000387678 | Q15: =Q26*RefTables!$I$11/100 -> 0.101621302 | R15: =R26*RefTables!$I$11/100 -> 0.1032038361 | S15: =S26*RefTables!$I$11/100 -> 0.10602979 | T15: =T26*RefTables!$I$11/100 -> 0.1088557439
B18: Table A.4. Reference Case Avoided Costs
B19: All costs in constant 2007 dollars.
B20: Case | C20: SC Reference Case Draft - 9/16/09
D22: 2009 | E22: 2010 | F22: 2011 | G22: 2012 | H22: 2013 | I22: 2014 | J22: 2015 | K22: 2016 | L22: 2017 | M22: 2018 | N22: 2019 | O22: 2020 | P22: 2021 | Q22: 2022 | R22: 2023 | S22: 2024 | T22: 2025
B23: Avoided Resource Cost | C23: ¢/kWh | D23: 3.69 | E23: 4.43 | F23: 5.13 | G23: 6.34 | H23: 8.35 | I23: 9.3 | J23: 9.45 | K23: 9.87 | L23: 9.97 | M23: 10.11 | N23: 10.15 | O23: 10.2 | P23: 10.24 | Q23: 10.38 | R23: 10.52 | S23: 10.77 | T23: 11.02
B24: Avoided Capacity Cost | C24: $/kW-yr | D24: 76.25 | E24: 76.25 | F24: 76.25 | G24: 76.25 | H24: 76.25 | I24: 76.25 | J24: 76.25 | K24: 76.25 | L24: 76.25 | M24: 76.25 | N24: 76.25 | O24: 76.25 | P24: 76.25 | Q24: 76.25 | R24: 76.25 | S24: 76.25 | T24: 76.25
C25: ¢/kWh | D25: 1.39 | E25: 1.39 | F25: 1.39 | G25: 1.39 | H25: 1.39 | I25: 1.39 | J25: 1.39 | K25: 1.39 | L25: 1.39 | M25: 1.39 | N25: 1.39 | O25: 1.39 | P25: 1.39 | Q25: 1.39 | R25: 1.39 | S25: 1.39 | T25: 1.39
B26: Avoided Energy Only Cost | C26: ¢/kWh | D26: 2.3 | E26: 3.04 | F26: 3.74 | G26: 4.95 | H26: 6.97 | I26: 7.92 | J26: 8.06 | K26: 8.49 | L26: 8.59 | M26: 8.72 | N26: 8.77 | O26: 8.81 | P26: 8.85 | Q26: 8.99 | R26: 9.13 | S26: 9.38 | T26: 9.63
B28: Notes: | C28: Avoided Resource Costs represent avoided production costs (fuel, O&M, CO2) for all resources, plus levelized capital costs for new resources.
C29: Avoided Capacity Cost in $/kw-yr is converted into an energy cost equivalent (c/kWh) using the system load factor.
C30: Avoided Energy Cost represents Total Avoided Resource Cost less Avoided Capacity Cost expressed as energy cost equivalent.

Sheet MA.AC
B2: MA avoided cost data
B3: Source
B4: Synapse 2013. AESC, appendix B workbook, "MA" sheet
B6: Summary table
B8: MA Avoided Cost Summary - Statewide (15 year levelized) | P8: Seasonal Time Allocation
C10: Electricity | D10: Capacity | E10: Energy DRIPE | F10: Capacity DRIPE | G10: Fuel | H10: Fuel DRIPE | Q10: Winter peak | R10: Winter off-peak | S10: Summer peak | T10: Summer off-peak | U10: Total
B11: Unit | C11: $/kWh | D11: $/kW-yr | E11: $/kWh | F11: $/kW-yr | G11: $/MMBtu | H11: $/MMBtu | P11: Value | Q11: 0.317 | R11: 0.349 | S11: 0.159 | T11: 0.175 | U11: =SUM(Q11:T11) -> 1
B12: Value | C12: =E66*15.9%+F66*17.5%+C66*31.7%+D66*34.9% -> 0.07058847149 | D12: =I66 -> 91.41549884 | E12: =SUMPRODUCT(O66:R66,Q11:T11) -> 0.0160964126 | F12: =S66 -> 34.06908198 | G12: =M120 -> 7.436188598 | H12: =AS120+AJ120 -> 2.094769339
P13: Note
P14: All‐hours avoided electricity cost = (15.9 percent *summer on‐peak) + (17.5 percent *summer off‐peak) + (31.7 * winter on‐peak) + (34.9 percent * winter off‐peak)
B16: Original tables
B17: Table One: Avoided Cost of Electricity (2013 $) Results : | N17: MA | U17: Page One of Two | Z17: Table Two: Inputs to Avoided Cost Calculations | AL17: Page Two of Two
C18: State | D18: MA | N18: Massachusetts (Statewide) | Z18: Zone: | AA18: =N17 -> MA
C20: User-defined Inputs
C21: Wholesale Risk Premium (WRP) | F21: 0.09
C22: Distribution Losses | F22: 0.08
C23: Real Discount Rate | F23: 0.0136
C24: Pcnt of Capacity Bid into FCM (%Bid) | F24: 0.5
C26: Avoided Unit Cost of Electric Energy1 | G26: Avoided Unit Cost of Electric Capacity2 | J26: DRIPE: 2014 vintage measures | O26: DRIPE: 2015 vintage measures | T26: Avoided Non-Embedded Costs | Z26: Wholesale Avoided Costs of Electricity | AH26: Avoided REC Costs to Load | AI26: DRIPE: 2014 vintage measures | AM26: DRIPE: 2015 vintage measures
J27: Intrastate | O27: =J27 -> Intrastate | Z27: Energy | AD27: Electric Cross-DRIPE | AF27: Capacity | AI27: Rest-of-Pool | AM27: Rest-of-Pool
G28: kW sold into FCA (PA to determine quantity)3 | H28: kW purchased from FCA (PA to determine quantity) | I28: Weighted Average Avoided Cost Based on Percent Capacity Bid | J28: Energy | N28: Capacity (See note 2) | O28: Energy | S28: Capacity (See note 2) | AI28: Energy | AM28: Energy
C29: Winter Peak | D29: Winter Off-Peak | E29: Summer Peak | F29: Summer Off-Peak | J29: Winter Peak | K29: Winter Off-Peak | L29: Summer Peak | M29: Summer Off-Peak | N29: Annual Value | O29: Winter Peak | P29: Winter Off-Peak | Q29: Summer Peak | R29: Summer Off-Peak | S29: Annual Value | T29: Winter Peak | U29: Winter Off-Peak | V29: Summer Peak | W29: Summer Off-Peak | Z29: Winter Peak | AA29: Winter Off-Peak | AB29: Summer Peak | AC29: Summer Off-Peak | AD29: 2014 Installation Year | AE29: 2015 Installation Year | AF29: FCA Price | AG29: Reserve Margin | AH29: REC Costs | AI29: Winter Peak | AJ29: Winter Off-Peak | AK29: Summer Peak | AL29: Summer Off-Peak | AM29: Winter Peak | AN29: Winter Off-Peak | AO29: Summer Peak | AP29: Summer Off-Peak
A30: Units: | C30: $/kWh | D30: $/kWh | E30: $/kWh | F30: $/kWh | G30: $/kW-yr | H30: $/kW-yr | I30: $/kW-yr | J30: $/kWh | K30: $/kWh | L30: $/kWh | M30: $/kWh | N30: $/kw-yr | O30: $/kWh | P30: $/kWh | Q30: $/kWh | R30: $/kWh | S30: $/kW-yr | T30: $/kWh | U30: $/kWh | V30: $/kWh | W30: $/kWh | X30: Units: | Z30: $/kWh | AA30: $/kWh | AB30: $/kWh | AC30: $/kWh | AD30: $/kWh | AE30: $/kWh | AF30: $/kW-yr | AG30: % | AH30: $/kWh | AI30: $/kWh | AJ30: $/kWh | AK30: $/kWh | AL30: $/kWh | AM30: $/kWh | AN30: $/kWh | AO30: $/kWh | AP30: $/kWh
A31: Period: | C31: a | D31: b | E31: c | F31: d | G31: e=y*1.08 | H31: f=y*(1+ac)*(1+PTF Loss)*(1+WRP)*(1+Dist Loss) | I31: g=(e*%Bid)+(f*(1+%Bid)) | J31: h | K31: i | L31: j | M31: k | N31: l | O31: m | P31: n | Q31: o | R31: p | S31: q | T31: r | U31: s | V31: t | W31: u | X31: Period: | Z31: v | AA31: w | AB31: x | AC31: y | AD31: z | AE31: aa | AF31: ab | AG31: ac | AH31: ad | AI31: ae | AJ31: af | AK31: ag | AL31: ah | AM31: ai | AN31: aj | AO31: ak | AP31: al
A32: 2013 | C32: =(Z32+AH32)*(1+$F$21) -> 0.0688968528 | D32: =(AA32+AH32)*(1+$F$21) -> 0.05968328093 | E32: =(AB32+AH32)*(1+$F$21) -> 0.05674477159 | F32: =(AC32+AH32)*(1+$F$21) -> 0.05027928769 | T32: 0.04698308646 | U32: 0.04953993362 | V32: 0.05245761056 | W32: 0.05013555182 | X32: 2013 | Z32: 0.05591542183 | AA32: 0.0474626036 | AB32: 0.04476672348 | AC32: 0.03883508687 | AF32: 35.4 | AG32: 0.172 | AH32: 0.0072927
A33: =A32+1 -> 2014 | C33: =(Z33+AH33)*(1+$F$21) -> 0.06773342677 | D33: 0.0604207607 | E33: 0.05575846648 | F33: 0.0492805855 | G33: =AF33*1.08 -> 40.824 | H33: 0 | I33: =(G33*$F$24)+(H33*(1-$F$24)) -> 20.412 | J33: 0.01526496072 | K33: 0.005936109435 | L33: 0.01228134509 | M33: 0.00474150311 | N33: 0 | T33: 0.04629646242 | U33: 0.0488159431 | V33: 0.05169098028 | W33: 0.04940285676 | X33: 2014 | Z33: 0.05461580901 | AA33: 0.04790694105 | AB33: 0.04362960691 | AC33: 0.03768659684 | AF33: 37.8 | AG33: 0.172 | AH33: 0.007524949494 | AI33: 0.01655797994 | AJ33: 0.004629288008 | AK33: 0.013321637 | AL33: 0.003697671636
A34: =A33+1 -> 2015 | C34: =(Z34+AH34)*(1+$F$21) -> 0.06602882504 | D34: 0.05945901628 | E34: 0.0563474598 | F34: 0.04837347261 | G34: =AF34*1.08 -> 42.768 | H34: 0 | I34: =(G34*$F$24)+(H34*(1-$F$24)) -> 21.384 | J34: 0.05786463014 | K34: 0.02278664822 | L34: 0.04860078632 | M34: 0.01827828042 | N34: 0 | O34: 0.01507200195 | P34: 0.005935238943 | Q34: 0.01265904827 | R34: 0.004760944247 | S34: 0 | T34: 0.04578645085 | U34: 0.0482781764 | V34: 0.05112154157 | W34: 0.0488586245 | X34: 2015 | Z34: 0.05383710227 | AA34: 0.04780975479 | AB34: 0.04495511581 | AC34: 0.03763953123 | AD34: 0.001676131424 | AE34: 0.0004335306882 | AF34: 39.6 | AG34: 0.172 | AH34: 0.006739801436 | AI34: 0.06328513114 | AJ34: 0.01800004534 | AK34: 0.05315349166 | AL34: 0.01443871311 | AM34: 0.01648388 | AN34: 0.004688472349 | AO34: 0.01384489156 | AP34: 0.003760852035
A35: 2016 | C35: 0.0620060795 | D35: 0.05610882192 | E35: 0.0557248587 | F35: 0.04678893683 | G35: 38.4912 | H35: 0 | I35: 19.2456 | J35: 0.06000124975 | K35: 0.02373987943 | L35: 0.05299611704 | M35: 0.01946535699 | N35: 0 | O35: 0.05502519093 | P35: 0.02177106984 | Q35: 0.04860101199 | R35: 0.01785104459 | S35: 0 | T35: 0.04527643928 | U35: 0.0477404097 | V35: 0.05055210285 | W35: 0.04831439223 | X35: 2016 | Z35: 0.05091020977 | AA35: 0.04549988171 | AB35: 0.04514762188 | AC35: 0.03694952842 | AD35: 0.001866711066 | AE35: 0.001699516354 | AF35: 35.64 | AG35: 0.172 | AH35: 0.005976101697 | AI35: 0.06602994671 | AJ35: 0.01889642552 | AK35: 0.05832096496 | AL35: 0.01549399902 | AM35: 0.06055391246 | AN35: 0.01732929608 | AO35: 0.0534842565 | AP35: 0.01420904161
A36: 2017 | C36: 0.0587059024 | D36: 0.05223020336 | E36: 0.06046446411 | F36: 0.04832594328 | G36: 42.768 | H36: 0 | I36: 21.384 | J36: 0.05898627443 | K36: 0.02302611809 | L36: 0.06075800795 | M36: 0.02124153053 | N36: 122.9998027 | O36: 0.05451653319 | P36: 0.02128129201 | Q36: 0.05615401191 | R36: 0.01963193329 | S36: 0 | T36: 0.04476642771 | U36: 0.047202643 | V36: 0.04998266414 | W36: 0.04777015997 | X36: 2017 | Z36: 0.04883363595 | AA36: 0.04289262767 | AB36: 0.05044699533 | AC36: 0.03931073768 | AD36: 0.001921436686 | AE36: 0.001762533837 | AF36: 39.6 | AG36: 0.172 | AH36: 0.005024990098 | AI36: 0.06471222098 | AJ36: 0.01828522563 | AK36: 0.06665594114 | AL36: 0.0168680703 | AM36: 0.05980859068 | AN36: 0.01689964521 | AO36: 0.06160502359 | AP36: 0.01558987617
A37: 2018 | C37: 0.06065936863 | D37: 0.05401252768 | E37: 0.06395796509 | F37: 0.04997699641 | G37: 48.2112 | H37: =AF37*(1+$AG37)*(1+0.015)*(1+$F$21)*(1+$F$22) -> 62.51267643 | I37: 55.36193822 | J37: 0.05721942979 | K37: 0.02237689041 | L37: 0.06021651369 | M37: 0.0207678866 | N37: 104.7976122 | O37: 0.05863824921 | P37: 0.0229317503 | Q37: 0.06170964914 | R37: 0.02128284945 | S37: 125.7571347 | T37: 0.04425641613 | U37: 0.0466648763 | V37: 0.04941322542 | W37: 0.0472259277 | X37: 2018 | Z37: 0.05175240612 | AA37: 0.0456543869 | AB37: 0.0547786414 | AC37: 0.04195206463 | AD37: 0.001762154878 | AE37: 0.001791828899 | AF37: 44.64 | AG37: 0.172 | AH37: 0.003898390787 | AI37: 0.06277601778 | AJ37: 0.01778659322 | AK37: 0.06606414897 | AL37: 0.0165076534 | AM37: 0.06433261898 | AN37: 0.01822763159 | AO37: 0.06770228304 | AP37: 0.01691697903
A38: 2019 | C38: 0.06528778442 | D38: 0.05778315564 | E38: 0.06888060316 | F38: 0.0533328334 | G38: 53.2656 | H38: =AF38*(1+$AG38)*(1+0.015)*(1+$F$21)*(1+$F$22) -> 69.06642477 | I38: 61.16601238 | J38: 0.04969794827 | K38: 0.01920974337 | L38: 0.05224542697 | M38: 0.01772132519 | N38: 85.07731905 | O38: 0.05089109304 | P38: 0.01967092951 | Q38: 0.05349973143 | R38: 0.0181467775 | S38: 106.3466488 | T38: 0.04374640456 | U38: 0.0461271096 | V38: 0.04884378671 | W38: 0.04668169544 | X38: 2019 | Z38: 0.05559474749 | AA38: 0.04870976696 | AB38: 0.05889091147 | AC38: 0.04462690251 | AD38: 0.001291131197 | AE38: 0.001311483425 | AF38: 49.32 | AG38: 0.172 | AH38: 0.004302302438 | AI38: 0.05453564447 | AJ38: 0.01527327733 | AK38: 0.05733109977 | AL38: 0.01408986622 | AM38: 0.05584493231 | AN38: 0.01563995707 | AO38: 0.0587075007 | AP38: 0.01442813472
A39: 2020 | C39: 0.07425949851 | D39: 0.06582797601 | E39: 0.0737212484 | F39: 0.061046707 | G39: 98.3664 | H39: 127.5460253 | I39: 112.9562127 | J39: 0.04380941121 | K39: 0.01704256378 | L39: 0.04338146265 | M39: 0.01580032989 | N39: 65.00801737 | O39: 0.04485615951 | P39: 0.01744976566 | Q39: 0.04441798588 | R39: 0.01617785079 | S39: 86.67735649 | T39: 0.03852419744 | U39: 0.04062070689 | V39: 0.04301308191 | W39: 0.0411090893 | X39: 2020 | Z39: 0.06337158789 | AA39: 0.05563624614 | AB39: 0.06287778045 | AC39: 0.05124976081 | AD39: 0.0008259750829 | AE39: 0.0008386438651 | AF39: 91.08 | AG39: 0.172 | AH39: 0.004756392401 | AI39: 0.04824681732 | AJ39: 0.01361133953 | AK39: 0.04777552233 | AL39: 0.01261920787 | AM39: 0.04939958958 | AN39: 0.01393655839 | AO39: 0.04891703383 | AP39: 0.01292072149
A40: 2021 | C40: 0.07454319128 | D40: 0.06737846484 | E40: 0.0768279091 | F40: 0.06237240755 | G40: 119.7504 | H40: 155.2734221 | I40: 137.5119111 | J40: 0.03198382031 | K40: 0.01273016522 | L40: 0.03311214365 | M40: 0.01179138226 | N40: 44.08747044 | O40: 0.03275548881 | P40: 0.01303730387 | Q40: 0.03391103503 | R40: 0.01207587105 | S40: 66.13120566 | T40: 0.03742031242 | U40: 0.0394567478 | V40: 0.04178057092 | W40: 0.03993113594 | X40: 2021 | Z40: 0.06338610125 | AA40: 0.05681295774 | AB40: 0.06548217265 | AC40: 0.05222024463 | AD40: 0.0006212577911 | AE40: 0.0006307257196 | AF40: 110.88 | AG40: 0.172 | AH40: 0.005002147625 | AI40: 0.03517293921 | AJ40: 0.01017023515 | AK40: 0.0364137681 | AL40: 0.009420233613 | AM40: 0.03602155107 | AN40: 0.01041561078 | AO40: 0.03729231724 | AP40: 0.009647514078
A41: 2022 | C41: 0.07807875639 | D41: 0.0703139012 | E41: 0.07671468875 | F41: 0.06519007059 | G41: 119.7504 | H41: 155.2734221 | I41: 137.5119111 | J41: 0.02175722141 | K41: 0.008613248766 | L41: 0.02133887591 | M41: 0.007965675551 | N41: 33.63163034 | O41: 0.02229132258 | P41: 0.008824688738 | Q41: 0.02186270745 | R41: 0.00816121875 | S41: 44.84217379 | T41: 0.0363164274 | U41: 0.03829278871 | V41: 0.04054805993 | W41: 0.03875318258 | X41: 2022 | Z41: 0.06645175511 | AA41: 0.05932803475 | AB41: 0.0652003169 | AC41: 0.05462727271 | AD41: 0.0004135519569 | AE41: 0.00041988264 | AF41: 110.88 | AG41: 0.172 | AH41: 0.005180131494 | AI41: 0.02393129029 | AJ41: 0.006887482066 | AK41: 0.02347114204 | AL41: 0.006369657837 | AM41: 0.024518761 | AN41: 0.007056557528 | AO41: 0.02404731692 | AP41: 0.006526021633
A42: 2023 | C42: 0.08091842529 | D42: 0.07259104454 | E42: 0.08195549821 | F42: 0.06775062522 | G42: 119.7504 | H42: 155.2734221 | I42: 137.5119111 | J42: 0.01099914112 | K42: 0.004346048653 | L42: 0.01115818018 | M42: 0.004049602536 | N42: 22.77159138 | O42: 0.01127498484 | P42: 0 | Q42: 0.01143801238 | R42: 0 | S42: 34.15738707 | T42: 0.03521254238 | U42: 0.03712882963 | V42: 0.03931554894 | W42: 0.03757522922 | X42: 2023 | Z42: 0.068966466 | AA42: 0.06132666714 | AB42: 0.06991790904 | AC42: 0.05688591548 | AF42: 110.88 | AG42: 0.172 | AH42: 0.005270621425 | AI42: 0.01206732023 | AJ42: 0.003472925083 | AK42: 0.01224180433 | AL42: 0.003236035155 | AM42: 0.01236995245 | AN42: 0 | AO42: 0.01254881237 | AP42: 0
A43: 2024 | C43: 0.08429103701 | D43: 0.07603474527 | E43: 0.08563146715 | F43: 0.07063675862 | G43: 119.7504 | H43: 155.2734221 | I43: 137.5119111 | J43: 0 | K43: 0 | L43: 0 | M43: 0 | N43: 11.56807547 | O43: 0 | P43: 0 | Q43: 0 | R43: 0 | S43: 23.13615094 | T43: 0.03410865737 | U43: 0.03596487054 | V43: 0.03808303795 | W43: 0.03639727586 | X43: 2024 | Z43: 0.07104185996 | AA43: 0.06346728037 | AB43: 0.07227161237 | AC43: 0.05851499904 | AF43: 110.88 | AG43: 0.172 | AH43: 0.006289366663 | AI43: 0 | AJ43: 0 | AK43: 0 | AL43: 0 | AM43: 0 | AN43: 0 | AO43: 0 | AP43: 0
A44: 2025 | C44: 0.08956267997 | D44: 0.08043923264 | E44: 0.09182287732 | F44: 0.07505350481 | G44: 119.7504 | H44: 155.2734221 | I44: 137.5119111 | O44: 0 | P44: 0 | Q44: 0 | R44: 0 | S44: 11.74722559 | T44: 0.03300477235 | U44: 0.03480091145 | V44: 0.03685052696 | W44: 0.03521932251 | X44: 2025 | Z44: 0.074042977 | AA44: 0.06567284183 | AB44: 0.07611655255 | AC44: 0.06073180713 | AF44: 110.88 | AG44: 0.172 | AH44: 0.0081246193 | AI44: 0 | AJ44: 0 | AK44: 0 | AL44: 0 | AM44: 0 | AN44: 0 | AO44: 0 | AP44: 0
A45: 2026 | C45: 0.09187455992 | D45: 0.08293639522 | E45: 0.09531641031 | F45: 0.07753267868 | G45: 119.7504 | H45: 155.2734221 | I45: 137.5119111 | T45: 0.03190088733 | U45: 0.03363695236 | V45: 0.03561801597 | W45: 0.03404136915 | X45: 2026 | Z45: 0.07581028074 | AA45: 0.06761012964 | AB45: 0.07896794165 | AC45: 0.06265259154 | AF45: 110.88 | AG45: 0.172 | AH45: 0.00847830634 | AI45: 0 | AJ45: 0 | AK45: 0 | AL45: 0 | AM45: 0 | AN45: 0 | AO45: 0 | AP45: 0
A46: 2027 | C46: 0.09570963368 | D46: 0.0856076843 | E46: 0.09917318727 | F46: 0.07989669112 | G46: 119.7504 | H46: 155.2734221 | I46: 137.5119111 | T46: 0.03079700231 | U46: 0.03247299327 | V46: 0.03438550499 | W46: 0.03286341579 | X46: 2027 | Z46: 0.07897493552 | AA46: 0.06970709204 | AB46: 0.08215250761 | AC46: 0.06446764876 | AF46: 110.88 | AG46: 0.172 | AH46: 0.008832067864 | AI46: 0 | AJ46: 0 | AK46: 0 | AL46: 0 | AM46: 0 | AN46: 0 | AO46: 0 | AP46: 0
A47: 2028 | C47: 0.09953030645 | D47: 0.08785807629 | E47: 0.1011871877 | F47: 0.08226626727 | G47: 119.7504 | H47: 155.2734221 | I47: 137.5119111 | T47: 0.0296931173 | U47: 0.03130903418 | V47: 0.033152994 | W47: 0.03168546243 | X47: 2028 | Z47: 0.08212630534 | AA47: 0.0714178373 | AB47: 0.08364637993 | AC47: 0.06628773729 | AF47: 110.88 | AG47: 0.172 | AH47: 0.00918590241 | AI47: 0 | AJ47: 0 | AK47: 0 | AL47: 0 | AM47: 0 | AN47: 0 | AO47: 0 | AP47: 0
A48: 2029 | C48: 0.1032203597 | D48: 0.09057494674 | E48: 0.1049662379 | F48: 0.08494041705 | G48: 119.7504 | H48: 155.2734221 | I48: 137.5119111 | T48: 0.02858923228 | U48: 0.03014507509 | V48: 0.03192048301 | W48: 0.03050750907 | X48: 2029 | Z48: 0.08515776918 | AA48: 0.07355647287 | AB48: 0.08675949226 | AC48: 0.06838717957 | AF48: 110.88 | AG48: 0.172 | AH48: 0.009539808549 | AI48: 0 | AJ48: 0 | AK48: 0 | AL48: 0 | AM48: 0 | AN48: 0 | AO48: 0 | AP48: 0
A49: 2030 | C49: 0.1069442914 | D49: 0.0932735328 | E49: 0.1087834875 | F49: 0.08759895349 | G49: 119.7504 | H49: 155.2734221 | I49: 137.5119111 | T49: 0.02748534726 | U49: 0.028981116 | V49: 0.03068797202 | W49: 0.02932955571 | X49: 2030 | Z49: 0.08830113106 | AA49: 0.07575915073 | AB49: 0.08998846698 | AC49: 0.07055311466 | AF49: 110.88 | AG49: 0.172 | AH49: 0.009812897715 | AI49: 0 | AJ49: 0 | AK49: 0 | AL49: 0 | AM49: 0 | AN49: 0 | AO49: 0 | AP49: 0
A50: 2031 | C50: 0.1104717751 | D50: 0.09572109638 | E50: 0.1124088084 | F50: 0.09000934362 | G50: 119.7504 | H50: 155.2734221 | I50: 137.5119111 | T50: 0.02748534726 | U50: 0.028981116 | V50: 0.03068797202 | W50: 0.02932955571 | X50: 2031 | Z50: 0.09156052139 | AA50: 0.07802778865 | AB50: 0.09333761618 | AC50: 0.0727876485 | AF50: 110.88 | AG50: 0.172 | AH50: 0.009789730962 | AI50: 0 | AJ50: 0 | AK50: 0 | AL50: 0 | AM50: 0 | AN50: 0 | AO50: 0 | AP50: 0
A51: 2032 | C51: 0.1141306835 | D51: 0.09824299477 | E51: 0.11617028 | F51: 0.09249715992 | G51: 119.7504 | H51: 155.2734221 | I51: 137.5119111 | T51: 0.02748534726 | U51: 0.028981116 | V51: 0.03068797202 | W51: 0.02932955571 | X51: 2032 | Z51: 0.09494022304 | AA51: 0.08036436184 | AB51: 0.09681141247 | AC51: 0.07509295372 | AF51: 110.88 | AG51: 0.172 | AH51: 0.009766826022 | AI51: 0 | AJ51: 0 | AK51: 0 | AL51: 0 | AM51: 0 | AN51: 0 | AO51: 0 | AP51: 0
A52: 2033 | C52: 0.1179258537 | D52: 0.1008414419 | E52: 0.1200729553 | F52: 0.09506484206 | G52: 119.7504 | H52: 155.2734221 | I52: 137.5119111 | T52: 0.02748534726 | U52: 0.028981116 | V52: 0.03068797202 | W52: 0.02932955571 | X52: 2033 | Z52: 0.09844467696 | AA52: 0.08277090464 | AB52: 0.1004144949 | AC52: 0.07747127177 | AF52: 110.88 | AG52: 0.172 | AH52: 0.009744179659 | AI52: 0 | AJ52: 0 | AK52: 0 | AL52: 0 | AM52: 0 | AN52: 0 | AO52: 0 | AP52: 0
A53: 2034 | C53: 0.1218623016 | D53: 0.1035187181 | E53: 0.1241220756 | F53: 0.09771490711 | G53: 119.7504 | H53: 155.2734221 | I53: 137.5119111 | T53: 0.02748534726 | U53: 0.028981116 | V53: 0.03068797202 | W53: 0.02932955571 | X53: 2034 | Z53: 0.102078488 | AA53: 0.08524951233 | AB53: 0.1041516752 | AC53: 0.07992491509 | AF53: 110.88 | AG53: 0.172 | AH53: 0.009721788678 | AI53: 0 | AJ53: 0 | AK53: 0 | AL53: 0 | AM53: 0 | AN53: 0 | AO53: 0 | AP53: 0
A54: 2035 | C54: 0.1259452284 | D54: 0.1062771722 | E54: 0.1283230775 | F54: 0.100449952 | G54: 119.7504 | H54: 155.2734221 | I54: 137.5119111 | T54: 0.02748534726 | U54: 0.028981116 | V54: 0.03068797202 | W54: 0.02932955571 | X54: 2035 | Z54: 0.1058464311 | AA54: 0.08780234291 | AB54: 0.1080279441 | AC54: 0.08245626935 | AF54: 110.88 | AG54: 0.172 | AH54: 0.009699649932 | AI54: 0 | AJ54: 0 | AK54: 0 | AL54: 0 | AM54: 0 | AN54: 0 | AO54: 0 | AP54: 0
A55: 2036 | C55: 0.1301800272 | D55: 0.1091192235 | E55: 0.1326816001 | F55: 0.1032726561 | G55: 119.7504 | H55: =AF55*(1+$AG55)*(1+0.015)*(1+$F$21)*(1+$F$22) -> 155.2734221 | I55: 137.5119111 | T55: 0.02748534726 | U55: 0.028981116 | V55: 0.03068797202 | W55: 0.02932955571 | X55: 2036 | Z55: 0.1097534573 | AA55: 0.09043161902 | AB55: 0.1120484783 | AC55: 0.08506779578 | AF55: 110.88 | AG55: 0.172 | AH55: 0.009677760316 | AI55: 0 | AJ55: 0 | AK55: 0 | AL55: 0 | AM55: 0 | AN55: 0 | AO55: 0 | AP55: 0
A56: 2037 | C56: 0.1345722909 | D56: 0.1120473638 | E56: 0.1372034923 | F56: 0.1061857839 | G56: 119.7504 | H56: 155.2734221 | I56: 137.5119111 | T56: 0.02748534726 | U56: 0.028981116 | V56: 0.03068797202 | W56: 0.02932955571 | X56: 2037 | Z56: 0.1138047006 | AA56: 0.09313962985 | AB56: 0.1162186468 | AC56: 0.08776203358 | AF56: 110.88 | AG56: 0.172 | AH56: 0.009656116765 | AI56: 0 | AJ56: 0 | AK56: 0 | AL56: 0 | AM56: 0 | AN56: 0 | AO56: 0 | AP56: 0
A57: 2038 | C57: 0.1391278184 | D57: 0.1150641598 | E57: 0.1418948211 | F57: 0.1091921873 | G57: 119.7504 | H57: 155.2734221 | I57: 137.5119111 | T57: 0.02748534726 | U57: 0.028981116 | V57: 0.03068797202 | W57: 0.02932955571 | X57: 2038 | Z57: 0.1180054841 | AA57: 0.09592873314 | AB57: 0.1205440187 | AC57: 0.09054160234 | AF57: 110.88 | AG57: 0.172 | AH57: 0.009634716262 | AI57: 0 | AJ57: 0 | AK57: 0 | AL57: 0 | AM57: 0 | AN57: 0 | AO57: 0 | AP57: 0
A58: 2039 | C58: 0.1438526233 | D58: 0.1181722552 | E58: 0.1467618795 | F58: 0.1122948089 | G58: 119.7504 | H58: 155.2734221 | I58: 137.5119111 | T58: 0.02748534726 | U58: 0.028981116 | V58: 0.03068797202 | W58: 0.02932955571 | X58: 2039 | Z58: 0.1223613279 | AA58: 0.09880135724 | AB58: 0.1250303703 | AC58: 0.09340920465 | AF58: 110.88 | AG58: 0.172 | AH58: 0.009613555825 | AI58: 0 | AJ58: 0 | AK58: 0 | AL58: 0 | AM58: 0 | AN58: 0 | AO58: 0 | AP58: 0
A59: 2040 | C59: 0.148752941 | D59: 0.1213743729 | E59: 0.1518111947 | F59: 0.1154966847 | G59: 119.7504 | H59: 155.2734221 | I59: 137.5119111 | T59: 0.02748534726 | U59: 0.028981116 | V59: 0.03068797202 | W59: 0.02932955571 | X59: 2040 | Z59: 0.1268779556 | AA59: 0.1017600032 | AB59: 0.1296836929 | AC59: 0.09636762866 | AF59: 110.88 | AG59: 0.172 | AH59: 0.009592632517 | AI59: 0 | AJ59: 0 | AK59: 0 | AL59: 0 | AM59: 0 | AN59: 0 | AO59: 0 | AP59: 0
A60: 2041 | C60: 0.1538352374 | D60: 0.1246733176 | E60: 0.1570495371 | F60: 0.1188009468 | G60: 119.7504 | H60: 155.2734221 | I60: 137.5119111 | T60: 0.02748534726 | U60: 0.028981116 | V60: 0.03068797202 | W60: 0.02932955571 | X60: 2041 | Z60: 0.1315613019 | AA60: 0.104807247 | AB60: 0.1345102007 | AC60: 0.09941975086 | AF60: 110.88 | AG60: 0.172 | AH60: 0.009571943441 | AI60: 0 | AJ60: 0 | AK60: 0 | AL60: 0 | AM60: 0 | AN60: 0 | AO60: 0 | AP60: 0
A61: 2042 | C61: 0.1591062173 | D61: 0.1280719779 | E61: 0.1624839292 | F61: 0.1222108268 | G61: 119.7504 | H61: 155.2734221 | I61: 137.5119111 | T61: 0.02748534726 | U61: 0.028981116 | V61: 0.03068797202 | W61: 0.02932955571 | X61: 2042 | Z61: 0.136417521 | AA61: 0.1079457417 | AB61: 0.1395163392 | AC61: 0.1025685388 | AF61: 110.88 | AG61: 0.172 | AH61: 0.009551485737 | AI61: 0 | AJ61: 0 | AK61: 0 | AL61: 0 | AM61: 0 | AN61: 0 | AO61: 0 | AP61: 0
A62: 2043 | C62: 0.164572833 | D62: 0.1315733294 | E62: 0.168121655 | F62: 0.1257296586 | G62: 119.7504 | H62: 155.2734221 | I62: 137.5119111 | T62: 0.02748534726 | U62: 0.028981116 | V62: 0.03068797202 | W62: 0.02932955571 | X62: 2043 | Z62: 0.1414529938 | AA62: 0.1111782199 | AB62: 0.1447087939 | AC62: 0.1058170541 | AF62: 110.88 | AG62: 0.172 | AH62: 0.009531256586 | AI62: 0 | AJ62: 0 | AK62: 0 | AL62: 0 | AM62: 0 | AN62: 0 | AO62: 0 | AP62: 0
A64: Levelized Costs | X64: Levelized Costs
A65: ="10 years ("&$A$33&"-"&$A$42&")" -> 10 years (2014-2023) | B65: 10 | C65: =-PMT($F$23,$B65,NPV($F$23,C$33:C42)) -> 0.06861067578 | D65: =-PMT($F$23,$B65,NPV($F$23,D$33:D42)) -> 0.06142162152 | E65: =-PMT($F$23,$B65,NPV($F$23,E$33:E42)) -> 0.06667891536 | F65: =-PMT($F$23,$B65,NPV($F$23,F$33:F42)) -> 0.05497293822 | G65: =-PMT($F$23,$B65,NPV($F$23,G$33:G42)) -> 71.1662554 | H65: =-PMT($F$23,$B65,NPV($F$23,H$33:H42)) -> 70.03343895 | I65: =-PMT($F$23,$B65,NPV($F$23,I$33:I42)) -> 70.59984717 | J65: =-PMT($F$23,$B65,NPV($F$23,J$33:J42)) -> 0.04107603131 | K65: =-PMT($F$23,$B65,NPV($F$23,K$33:K42)) -> 0.01610518322 | L65: =-PMT($F$23,$B65,NPV($F$23,L$33:L42)) -> 0.03984187529 | M65: =-PMT($F$23,$B65,NPV($F$23,M$33:M42)) -> 0.01427072058 | N65: =-PMT($F$23,$B65,NPV($F$23,N$33:N42)) -> 47.50069994 | O65: =-PMT($F$23,$B65,NPV($F$23,O$33:O42)) -> 0.03498640669 | P65: =-PMT($F$23,$B65,NPV($F$23,P$33:P42)) -> 0.0132889662 | Q65: =-PMT($F$23,$B65,NPV($F$23,Q$33:Q42)) -> 0.03484583094 | R65: =-PMT($F$23,$B65,NPV($F$23,R$33:R42)) -> 0.01197717516 | S65: =-PMT($F$23,$B65,NPV($F$23,S$33:S42)) -> 46.18826387 | T65: =-PMT($F$23,$B65,NPV($F$23,T$33:T42)) -> 0.0419112604 | U65: =-PMT($F$23,$B65,NPV($F$23,U$33:U42)) -> 0.04419209581 | V65: =-PMT($F$23,$B65,NPV($F$23,V$33:V42)) -> 0.0467948094 | W65: =-PMT($F$23,$B65,NPV($F$23,W$33:W42)) -> 0.04472341699 | X65: ="10 years ("&$A$33&"-"&$A$42&")" -> 10 years (2014-2023) | Z65: =-PMT($F$23,$B65,NPV($F$23,Z$33:Z42)) -> 0.05755285849 | AA65: =-PMT($F$23,$B65,NPV($F$23,AA$33:AA42)) -> 0.05095739586 | AB65: =-PMT($F$23,$B65,NPV($F$23,AB$33:AB42)) -> 0.05578060122 | AC65: =-PMT($F$23,$B65,NPV($F$23,AC$33:AC42)) -> 0.04504117265 | AD65: =-PMT($F$23,$B65,NPV($F$23,AD$33:AD42)) -> 0.001064482281 | AE65: =-PMT($F$23,$B65,NPV($F$23,AE$33:AE42)) -> 0.0009064637447 | AF65: =-PMT($F$23,$B65,NPV($F$23,AF$33:AF42)) -> 65.89468092 | AH65: =-PMT($F$23,$B65,NPV($F$23,AH$33:AH42)) -> 0.005392715628 | AI65: =-PMT($F$23,$B65,NPV($F$23,AI$33:AI42)) -> 0.04507759426 | AJ65: =-PMT($F$23,$B65,NPV($F$23,AJ$33:AJ42)) -> 0.01279855116 | AK65: =-PMT($F$23,$B65,NPV($F$23,AK$33:AK42)) -> 0.04372846358 | AL65: =-PMT($F$23,$B65,NPV($F$23,AL$33:AL42)) -> 0.01134300484 | AM65: =-PMT($F$23,$B65,NPV($F$23,AM$33:AM42)) -> 0.03843183233 | AN65: =-PMT($F$23,$B65,NPV($F$23,AN$33:AN42)) -> 0.01057694286 | AO65: =-PMT($F$23,$B65,NPV($F$23,AO$33:AO42)) -> 0.0382762704 | AP65: =-PMT($F$23,$B65,NPV($F$23,AP$33:AP42)) -> 0.009533332885
A66: ="15 years ("&$A$33&"-"&$A$47&")" -> 15 years (2014-2028) | B66: 15 | C66: =-PMT($F$23,$B66,NPV($F$23,C$33:C47)) -> 0.07591630552 | D66: =-PMT($F$23,$B66,NPV($F$23,D$33:D47)) -> 0.06797804993 | E66: =-PMT($F$23,$B66,NPV($F$23,E$33:E47)) -> 0.07534066645 | F66: =-PMT($F$23,$B66,NPV($F$23,F$33:F47)) -> 0.06182569855 | G66: =-PMT($F$23,$B66,NPV($F$23,G$33:G47)) -> 86.28028076 | H66: =-PMT($F$23,$B66,NPV($F$23,H$33:H47)) -> 96.55071691 | I66: =-PMT($F$23,$B66,NPV($F$23,I$33:I47)) -> 91.41549884 | J66: =-PMT($F$23,$B66,NPV($F$23,J$33:J47)) -> 0.02829770241 | K66: =-PMT($F$23,$B66,NPV($F$23,K$33:K47)) -> 0.01109502714 | L66: =-PMT($F$23,$B66,NPV($F$23,L$33:L47)) -> 0.02744747958 | M66: =-PMT($F$23,$B66,NPV($F$23,M$33:M47)) -> 0.009831246868 | N66: =-PMT($F$23,$B66,NPV($F$23,N$33:N47)) -> 33.46303996 | O66: =-PMT($F$23,$B66,NPV($F$23,O$33:O47)) -> 0.02410249709 | P66: =-PMT($F$23,$B66,NPV($F$23,P$33:P47)) -> 0.009154906132 | Q66: =-PMT($F$23,$B66,NPV($F$23,Q$33:Q47)) -> 0.024005653 | R66: =-PMT($F$23,$B66,NPV($F$23,R$33:R47)) -> 0.00825119973 | S66: =-PMT($F$23,$B66,NPV($F$23,S$33:S47)) -> 34.06908198 | T66: =-PMT($F$23,$B66,NPV($F$23,T$33:T47)) -> 0.03880641377 | U66: =-PMT($F$23,$B66,NPV($F$23,U$33:U47)) -> 0.04091828161 | V66: =-PMT($F$23,$B66,NPV($F$23,V$33:V47)) -> 0.04332818242 | W66: =-PMT($F$23,$B66,NPV($F$23,W$33:W47)) -> 0.04141024175 | X66: ="15 years ("&$A$33&"-"&$A$47&")" -> 15 years (2014-2028) | Z66: =-PMT($F$23,$B66,NPV($F$23,Z$33:Z47)) -> 0.06339301707 | AA66: =-PMT($F$23,$B66,NPV($F$23,AA$33:AA47)) -> 0.05611021378 | AB66: =-PMT($F$23,$B66,NPV($F$23,AB$33:AB47)) -> 0.06286490783 | AC66: =-PMT($F$23,$B66,NPV($F$23,AC$33:AC47)) -> 0.05046585472 | AD66: =-PMT($F$23,$B66,NPV($F$23,AD$33:AD47)) -> 0.0007333328431 | AE66: =-PMT($F$23,$B66,NPV($F$23,AE$33:AE47)) -> 0.0006244722403 | AF66: =-PMT($F$23,$B66,NPV($F$23,AF$33:AF47)) -> 79.88914885 | AH66: =-PMT($F$23,$B66,NPV($F$23,AH$33:AH47)) -> 0.006254969644 | AI66: =-PMT($F$23,$B66,NPV($F$23,AI$33:AI47)) -> 0.03105442048 | AJ66: =-PMT($F$23,$B66,NPV($F$23,AJ$33:AJ47)) -> 0.008817054146 | AK66: =-PMT($F$23,$B66,NPV($F$23,AK$33:AK47)) -> 0.03012499041 | AL66: =-PMT($F$23,$B66,NPV($F$23,AL$33:AL47)) -> 0.00781431324 | AM66: =-PMT($F$23,$B66,NPV($F$23,AM$33:AM47)) -> 0.02647608641 | AN66: =-PMT($F$23,$B66,NPV($F$23,AN$33:AN47)) -> 0.007286565227 | AO66: =-PMT($F$23,$B66,NPV($F$23,AO$33:AO47)) -> 0.02636891819 | AP66: =-PMT($F$23,$B66,NPV($F$23,AP$33:AP47)) -> 0.006567611534
A67: ="30 years ("&$A$33&"-"&$A$62&")" -> 30 years (2014-2043) | B67: =2039-2010+1 -> 30 | C67: =-PMT($F$23,$B67,NPV($F$23,C33:C$62)) -> 0.1004698931 | D67: =-PMT($F$23,$B67,NPV($F$23,D33:D$62)) -> 0.08649522388 | E67: =-PMT($F$23,$B67,NPV($F$23,E33:E$62)) -> 0.1012879369 | F67: =-PMT($F$23,$B67,NPV($F$23,F33:F$62)) -> 0.08050045918 | G67: =-PMT($F$23,$B67,NPV($F$23,G33:G$62)) -> 101.3256448 | H67: =-PMT($F$23,$B67,NPV($F$23,H33:H$62)) -> 122.9475298 | I67: =-PMT($F$23,$B67,NPV($F$23,I33:I$62)) -> 112.1365873 | J67: =-PMT($F$23,$B67,NPV($F$23,J33:J$62)) -> 0.01557742407 | K67: =-PMT($F$23,$B67,NPV($F$23,K33:K$62)) -> 0.006107631644 | L67: =-PMT($F$23,$B67,NPV($F$23,L33:L$62)) -> 0.01510939025 | M67: =-PMT($F$23,$B67,NPV($F$23,M33:M$62)) -> 0.0054119412 | N67: =-PMT($F$23,$B67,NPV($F$23,N33:N$62)) -> 18.42085821 | O67: =-PMT($F$23,$B67,NPV($F$23,O33:O$62)) -> 0.0132680319 | P67: =-PMT($F$23,$B67,NPV($F$23,P33:P$62)) -> 0.005039626646 | Q67: =-PMT($F$23,$B67,NPV($F$23,Q33:Q$62)) -> 0.0132147208 | R67: =-PMT($F$23,$B67,NPV($F$23,R33:R$62)) -> 0.004542150997 | S67: =-PMT($F$23,$B67,NPV($F$23,S33:S$62)) -> 18.75447447 | T67: =-PMT($F$23,$B67,NPV($F$23,T33:T$62)) -> 0.03375370975 | U67: =-PMT($F$23,$B67,NPV($F$23,U33:U$62)) -> 0.03559060646 | V67: =-PMT($F$23,$B67,NPV($F$23,V33:V$62)) -> 0.03768673142 | W67: =-PMT($F$23,$B67,NPV($F$23,W33:W$62)) -> 0.03601851201 | X67: ="30 years ("&$A$33&"-"&$A$62&")" -> 30 years (2014-2043) | Z67: =-PMT($F$23,$B67,NPV($F$23,Z33:Z$62)) -> 0.08438689318 | AA67: =-PMT($F$23,$B67,NPV($F$23,AA33:AA$62)) -> 0.07156609569 | AB67: =-PMT($F$23,$B67,NPV($F$23,AB33:AB$62)) -> 0.085137392 | AC67: =-PMT($F$23,$B67,NPV($F$23,AC33:AC$62)) -> 0.06606631156 | AD67: =-PMT($F$23,$B67,NPV($F$23,AD33:AD$62)) -> 0.0004036877804 | AE67: =-PMT($F$23,$B67,NPV($F$23,AE33:AE$62)) -> 0.0003437617925 | AF67: =-PMT($F$23,$B67,NPV($F$23,AF33:AF$62)) -> 93.82004144 | AH67: =-PMT($F$23,$B67,NPV($F$23,AH33:AH$62)) -> 0.007787320713 | AI67: =-PMT($F$23,$B67,NPV($F$23,AI33:AI$62)) -> 0.01709495244 | AJ67: =-PMT($F$23,$B67,NPV($F$23,AJ33:AJ$62)) -> 0.004853644633 | AK67: =-PMT($F$23,$B67,NPV($F$23,AK33:AK$62)) -> 0.01658331633 | AL67: =-PMT($F$23,$B67,NPV($F$23,AL33:AL$62)) -> 0.004301652104 | AM67: =-PMT($F$23,$B67,NPV($F$23,AM33:AM$62)) -> 0.01457465414 | AN67: =-PMT($F$23,$B67,NPV($F$23,AN33:AN$62)) -> 0.004011135422 | AO67: =-PMT($F$23,$B67,NPV($F$23,AO33:AO$62)) -> 0.01451565978 | AP67: =-PMT($F$23,$B67,NPV($F$23,AP33:AP$62)) -> 0.00361536313
A69: NOTES: | C69: General | D69: All Avoided Costs are in Year 2013 Dollars | X69: NOTES: | Z69: General | AA69: All Avoided Costs are in Year 2013 Dollars
D70: ISO NE periods: Summer is June through September, Winter is all other months. Peak hours are: Monday through Friday 7 AM - 11 PM; Off-Peak Hours are all other hours | AA70: ISO NE periods: Summer is June through September, Winter is all other months. Peak hours are: Monday through Friday 7am - 11pm; Off-Peak Hours are all other hours
C71: 1 | D71: Avoided cost of electric energy = (wholesale energy avoided cost + REC cost to load) * risk premium, e.g. A = (V + AD) * (1+Wholesale Risk Premium)
C72: 2 | D72: Absolute value of avoided capacity costs and capacity DRIPE each year is function of quantity of kW reduction in year, PA strategy re bidding that reduction into applicable FCAs, and unit values in columns e, f, l and q.
C73: 3 | D73: Proceeds from selling into the FCM also include the ISO-NE loss factor of 8%
C78: AESC 2013 Appendix C Workbooks for Gas DRIPE Amended August 27, 2013 | R78: AESC 2013 Appendix C Workbooks for Gas DRIPE Amended August 27, 2013 | AG78: AESC 2013 Appendix C Workbooks for Gas DRIPE Amended August 27, 2013
S79: Exhibit C-9. Massachusetts - 2014 Gas efficiency Installations | AH79: Exhibit C-10. Massachusetts - 2015 Gas efficiency Installations
D80: 1 | E80: 2 | F80: 3 | G80: 4 | H80: 5 | I80: 6 | J80: 7 | K80: 8 | L80: 9 | M80: 10 | N80: 11 | O80: 12 | S80: Gas Supply DRIPE and Gas to Electric DRIPE (2013$/MMBtu) | AH80: Gas Supply DRIPE and Gas to Electric DRIPE (2013$/MMBtu)
D81: Avoided Cost of Natural Gas Delivered to Retail Customers by End Use for Southern New England (SNE) Assuming Some Avoidable Retail Margin (2013$/MMBtu) | S81: 1 | T81: 2 | U81: 3 | V81: 4 | W81: 5 | X81: 6 | Y81: 7 | Z81: 8 | AA81: 9 | AB81: 10 | AC81: 11 | AD81: 12 | AE81: 13 | AF81: 14 | AG81: 15 | AH81: 16 | AI81: 17 | AJ81: 18 | AK81: 19 | AL81: 20 | AM81: 21 | AN81: 22 | AO81: 23 | AP81: 24 | AQ81: 25 | AR81: 26 | AS81: 27 | AT81: 28 | AU81: 29
U83: Gas Supply DRIPE applicable to every MMBtu Reduction | W83: Gas to Electric DRIPE | AJ83: Gas Supply DRIPE applicable to every MMBtu Reduction | AL83: Gas to Electric DRIPE
F84: RESIDENTIAL | K84: COMMERCIAL & INDUSTRIAL | O84: ALL RETAIL END USES | W84: RESIDENTIAL | AB84: COMMERCIAL & INDUSTRIAL | AF84: ALL RETAIL END USES | AL84: RESIDENTIAL | AQ84: COMMERCIAL & INDUSTRIAL | AU84: ALL RETAIL END USES
D85: Year | F85: Non Heating | G85: Hot Water | H85: Heating | I85: All | K85: Non Heating | L85: Heating | M85: All | S85: Year | W85: Non Heating | X85: Hot Water | Y85: Heating | Z85: All | AB85: Non Heating | AC85: Heating | AD85: All | AH85: Year | AL85: Non Heating | AM85: Hot Water | AN85: Heating | AO85: All | AQ85: Non Heating | AR85: Heating | AS85: All
U86: 1 | W86: 2 | X86: 3 | Y86: 4 | Z86: 5 | AB86: 6 | AC86: 7 | AD86: 8 | AF86: 9 | AJ86: 1 | AL86: 2 | AM86: 3 | AN86: 4 | AO86: 5 | AQ86: 6 | AR86: 7 | AS86: 8 | AU86: 9
D87: 2013 | F87: 5.317261543 | G87: 5.777261543 | H87: 6.89781155 | I87: 6.733016934 | K87: 5.514637812 | L87: 6.345990582 | M87: 6.049420499 | O87: 6.410428722 | S87: 2013 | AH87: 2013
D88: 2014 | F88: 5.527261543 | G88: 5.977261543 | H88: 7.09781155 | I88: 6.933016934 | K88: 5.724637812 | L88: 6.555990582 | M88: 6.259420499 | O88: 6.610428722 | S88: 2014 | U88: 0.08532094326 | W88: 2.858275242 | X88: 4.708403128 | Y88: 5.307478162 | Z88: 4.820282717 | AB88: 3.545276661 | AC88: 4.724567867 | AD88: 4.20921761 | AF88: 4.535526377 | AH88: 2014
D89: 2015 | F89: 5.537261543 | G89: 5.977261543 | H89: 7.08781155 | I89: 6.933016934 | K89: 5.724637812 | L89: 6.555990582 | M89: 6.259420499 | O89: 6.610428722 | S89: 2015 | U89: 0.1194493206 | W89: 8.477843927 | X89: 13.84225976 | Y89: 15.57926812 | Z89: 14.16665282 | AB89: 10.46979341 | AC89: 13.88912916 | AD89: 12.39487944 | AF89: 13.34100642 | AH89: 2015 | AJ89: 0.08532094326 | AL89: 2.192790768 | AM89: 3.580294668 | AN89: 4.029571149 | AO89: 3.664198796 | AQ89: 2.708007665 | AR89: 3.592417418 | AS89: 3.205930356 | AU89: 3.450645703
D90: 2016 | F90: 5.607261543 | G90: 6.077261543 | H90: 7.20781155 | I90: 7.033016934 | K90: 5.814637812 | L90: 6.655990582 | M90: 6.359420499 | O90: 6.710428722 | S90: 2016 | U90: 0.1706418865 | W90: 8.525598737 | X90: 13.86771846 | Y90: 15.59750729 | Z90: 14.19076324 | AB90: 10.50926909 | AC90: 13.91439306 | AD90: 12.42635388 | AF90: 13.36854848 | AH90: 2016 | AJ90: 0.1194493206 | AL90: 7.761990995 | AM90: 12.62563594 | AN90: 14.2004937 | AO90: 12.91974674 | AQ90: 9.567991004 | AR90: 12.66813006 | AS90: 11.31336929 | AU90: 12.17117485
D91: 2017 | F91: 5.707261543 | G91: 6.337261543 | H91: 7.50781155 | I91: 7.303016934 | K91: 5.964637812 | L91: 6.905990582 | M91: 6.569420499 | O91: 6.950428722 | S91: 2017 | U91: 0.1706418865 | W91: 3.588746451 | X91: 5.508207897 | Y91: 6.129733273 | Z91: 5.624280175 | AB91: 4.301493255 | AC91: 5.52497841 | AD91: 4.990315397 | AF91: 5.328852588 | AH91: 2017 | AJ91: 0.1706418865 | AL91: 3.291957054 | AM91: 5.052679003 | AN91: 5.62280422 | AO91: 5.159152102 | AQ91: 3.945759684 | AR91: 5.068062595 | AS91: 4.577616223 | AU91: 4.888156382
D92: 2018 | F92: 6.017261543 | G92: 6.617261543 | H92: 7.78781155 | I92: 7.583016934 | K92: 6.264637812 | L92: 7.195990582 | M92: 6.859420499 | O92: 7.240428722 | S92: 2018 | U92: 0.1706418865 | W92: 2.570518511 | X92: 3.833504414 | Y92: 4.242461724 | Z92: 3.90987878 | AB92: 3.039498583 | AC92: 3.844539239 | AD92: 3.492736472 | AF92: 3.715490465 | AH92: 2018 | AJ92: 0.1706418865 | AL92: 2.613805069 | AM92: 3.898059176 | AN92: 4.313903171 | AO92: 3.975719657 | AQ92: 3.090682587 | AR92: 3.909279823 | AS92: 3.551552831 | AU92: 3.778057916
D93: 2019 | F93: 6.457261543 | G93: 6.947261543 | H93: 8.07781155 | I93: 7.903016934 | K93: 6.664637812 | L93: 7.525990582 | M93: 7.219420499 | O93: 7.580428722 | S93: 2019 | U93: 0.1706418865 | W93: 1.355339829 | X93: 1.916315915 | Y93: 2.09796107 | Z93: 1.950238853 | AB93: 1.563645087 | AC93: 1.921217215 | AD93: 1.764958195 | AF93: 1.863898066 | AH93: 2019 | AJ93: 0.1706418865 | AL93: 1.376704184 | AM93: 1.94652299 | AN93: 2.131031436 | AO93: 1.980980659 | AQ93: 1.588292978 | AR93: 1.95150155 | AS93: 1.792779404 | AU93: 1.893278874
D94: 2020 | F94: 6.727261543 | G94: 7.197261543 | H94: 8.32781155 | I94: 8.153016934 | K94: 6.934637812 | L94: 7.775990582 | M94: 7.479420499 | O94: 7.830428722 | S94: 2020 | U94: 0.1706418865 | W94: 0.867051257 | X94: 1.225924367 | Y94: 1.342128184 | Z94: 1.247625881 | AB94: 1.000310335 | AC94: 1.229059875 | AD94: 1.129096326 | AF94: 1.192391109 | AH94: 2020 | AJ94: 0.1706418865 | AL94: 0.8803500645 | AM94: 1.24472756 | AN94: 1.362713707 | AO94: 1.266761932 | AQ94: 1.015653066 | AR94: 1.24791116 | AS94: 1.146414373 | AU94: 1.210679969
D95: 2021 | F95: 6.867261543 | G95: 7.357261543 | H95: 8.47781155 | I95: 8.303016934 | K95: 7.074637812 | L95: 7.925990582 | M95: 7.619420499 | O95: 7.980428722 | S95: 2021 | U95: 0.1706418865 | W95: 0.6521532669 | X95: 0.9220799517 | Y95: 1.009482741 | Z95: 0.9384027621 | AB95: 0.7523841844 | AC95: 0.9244383262 | AD95: 0.8492506663 | AF95: 0.8968578854 | AH95: 2021 | AJ95: 0.1706418865 | AL95: 0.6620920405 | AM95: 0.9361323905 | AN95: 1.024867193 | AO95: 0.9527039595 | AQ95: 0.7638504707 | AR95: 0.9385267065 | AS95: 0.8621931915 | AU95: 0.9105259416
D96: 2022 | F96: 7.067261543 | G96: 7.547261543 | H96: 8.66781155 | I96: 8.503016934 | K96: 7.274637812 | L96: 8.115990582 | M96: 7.819420499 | O96: 8.180428722 | S96: 2022 | U96: 0.1706418865 | W96: 0.4341181127 | X96: 0.6137998974 | Y96: 0.6719812114 | Z96: 0.6246654838 | AB96: 0.5008387118 | AC96: 0.6153697939 | AD96: 0.565319711 | AF96: 0.5970103537 | AH96: 2022 | AJ96: 0.1706418865 | AL96: 0.4407636239 | AM96: 0.6231959904 | AN96: 0.682267948 | AO96: 0.6342279079 | AQ96: 0.5085055868 | AR96: 0.6247899189 | AS96: 0.5739736658 | AU96: 0.6061494311
D97: 2023 | F97: 7.197261543 | G97: 7.667261543 | H97: 8.79781155 | I97: 8.623016934 | K97: 7.404637812 | L97: 8.245990582 | M97: 7.949420499 | O97: 8.300428722 | S97: 2023 | U97: 0.1706418865 | W97: 0.2180107463 | X97: 0.3082455438 | Y97: 0.3374637481 | Z97: 0.3137021569 | AB97: 0.2515173133 | AC97: 0.3090339336 | AD97: 0.2838991705 | AF97: 0.2998139653 | AH97: 2023 | AJ97: 0.1706418865 | AL97: 0.2213817455 | AM97: 0.3130118019 | AN97: 0.3426817937 | AO97: 0.3185527881 | AQ97: 0.255406409 | AR97: 0.3138123822 | AS97: 0.2882889719 | AU97: 0.3044498498
D98: 2024 | F98: 7.327261543 | G98: 7.817261543 | H98: 8.94781155 | I98: 8.773016934 | K98: 7.534637812 | L98: 8.385990582 | M98: 8.079420499 | O98: 8.440428722 | S98: 2024 | U98: 0.1706418865 | AH98: 2024 | AJ98: 0.1706418865
D99: 2025 | F99: 7.517261543 | G99: 7.987261543 | H99: 9.11781155 | I99: 8.943016934 | K99: 7.724637812 | L99: 8.565990582 | M99: 8.269420499 | O99: 8.620428722 | S99: 2025 | U99: 0.1706418865 | AH99: 2025 | AJ99: 0.1706418865
D100: 2026 | F100: 7.637261543 | G100: 8.127261543 | H100: 9.24781155 | I100: 9.073016934 | K100: 7.844637812 | L100: 8.695990582 | M100: 8.389420499 | O100: 8.750428722 | S100: 2026 | U100: 0.1706418865 | AH100: 2026 | AJ100: 0.1706418865
D101: 2027 | F101: 7.757261543 | G101: 8.247261543 | H101: 9.36781155 | I101: 9.193016934 | K101: 7.964637812 | L101: 8.815990582 | M101: 8.509420499 | O101: 8.870428722 | S101: 2027 | U101: 0.1706418865 | AH101: 2027 | AJ101: 0.1706418865
D102: 2028 | F102: 7.857261543 | G102: 8.337261543 | H102: 9.45781155 | I102: 9.293016934 | K102: 8.064637812 | L102: 8.905990582 | M102: 8.609420499 | O102: 8.970428722 | S102: 2028 | U102: 0.1706418865 | AH102: 2028 | AJ102: 0.1706418865
D103: 2029 | F103: 8.012969559 | G103: 8.490717733 | H103: 9.608162736 | I103: 9.444807487 | K103: 8.219884198 | L103: 9.057202706 | M103: 8.762359719 | O103: 9.122736749 | S103: 2029 | U103: 0.1706418865 | AH103: 2029 | AJ103: 0.1706418865
D104: 2030 | F104: 8.171763254 | G104: 8.646998448 | H104: 9.760904061 | I104: 9.599077361 | K104: 8.378119117 | L104: 9.210982215 | M104: 8.918015778 | O104: 9.2776308 | S104: 2030 | U104: 0.1706418865 | AH104: 2030 | AJ104: 0.1706418865
D105: 2031 | F105: 8.333703778 | G105: 8.806155676 | H105: 9.91607352 | I105: 9.755867052 | K105: 8.5394001 | L105: 9.3673727 | M105: 9.076436938 | O105: 9.435154781 | S105: 2031 | U105: 0.1706418865 | AH105: 2031 | AJ105: 0.1706418865
D106: 2032 | F106: 8.49885349 | G106: 8.968242363 | H106: 10.07370971 | I106: 9.91521772 | K106: 8.703785784 | L106: 9.526418491 | M106: 9.237672318 | O106: 9.595353347 | S106: 2032 | U106: 0.1706418865 | AH106: 2032 | AJ106: 0.1706418865
D107: 2033 | F107: 8.667275988 | G107: 9.133312427 | H107: 10.23385186 | I107: 10.07717119 | K107: 8.871335935 | L107: 9.688164673 | M107: 9.401771911 | O107: 9.758271908 | S107: 2033 | U107: 0.1706418865 | AH107: 2033 | AJ107: 0.1706418865
D108: 2034 | F108: 8.839036129 | G108: 9.301420783 | H108: 10.39653978 | I108: 10.24176999 | K108: 9.042111471 | L108: 9.852657095 | M108: 9.568786598 | O108: 9.923956648 | S108: 2034 | U108: 0.1706418865 | AH108: 2034 | AJ108: 0.1706418865
D109: 2035 | F109: 9.014200055 | G109: 9.472623352 | H109: 10.56181397 | I109: 10.40905731 | K109: 9.21617448 | L109: 10.01994238 | M109: 9.738768162 | O109: 10.09245453 | S109: 2035 | U109: 0.1706418865 | AH109: 2035 | AJ109: 0.1706418865
D110: 2036 | F110: 9.19283522 | G110: 9.646977087 | H110: 10.72971552 | I110: 10.57907708 | K110: 9.393588248 | L110: 10.19006796 | M110: 9.911769307 | O110: 10.26381333 | S110: 2036 | U110: 0.1706418865 | AH110: 2036 | AJ110: 0.1706418865
D111: 2037 | F111: 9.375010413 | G111: 9.824539988 | H111: 10.90028621 | I111: 10.75187392 | K111: 9.574417277 | L111: 10.36308204 | M111: 10.08784367 | O111: 10.4380816 | S111: 2037 | U111: 0.1706418865 | AH111: 2037 | AJ111: 0.1706418865
D112: 2038 | F112: 9.560795787 | G112: 10.00537112 | H112: 11.07356847 | I112: 10.92749319 | K112: 9.758727312 | L112: 10.53903368 | M112: 10.26704586 | O112: 10.61530876 | S112: 2038 | U112: 0.1706418865 | AH112: 2038 | AJ112: 0.1706418865
D113: 2039 | F113: 9.750262885 | G113: 10.18953065 | H113: 11.24960541 | I113: 11.105981 | K113: 9.946585363 | L113: 10.71797275 | M113: 10.44943142 | O113: 10.79554505 | S113: 2039 | U113: 0.1706418865 | AH113: 2039 | AJ113: 0.1706418865
D114: 2040 | F114: 9.943484669 | G114: 10.37707983 | H114: 11.42844081 | I114: 11.2873842 | K114: 10.13805973 | L114: 10.89994998 | M114: 10.63505691 | O114: 10.97884155 | S114: 2040 | U114: 0.1706418865 | AH114: 2040 | AJ114: 0.1706418865
D115: 2041 | F115: 10.14053555 | G115: 10.56808105 | H115: 11.61011916 | I115: 11.47175041 | K115: 10.33322003 | L115: 11.08501693 | M115: 10.82397988 | O115: 11.16525022 | S115: 2041 | U115: 0.1706418865 | AH115: 2041 | AJ115: 0.1706418865
D116: 2042 | F116: 10.3414914 | G116: 10.76259785 | H116: 11.79468566 | I116: 11.65912802 | K116: 10.53213722 | L116: 11.27322609 | M116: 11.01625891 | O116: 11.3548239 | S116: 2042 | U116: 0.1706418865 | AH116: 2042 | AJ116: 0.1706418865
D117: 2043 | F117: 10.54642961 | G117: 10.96069494 | H117: 11.98218623 | I117: 11.84956623 | K117: 10.73488361 | L117: 11.46463079 | M117: 11.21195362 | O117: 11.54761634 | S117: 2043 | U117: 0.1706418865 | AH117: 2043 | AJ117: 0.1706418865
C119: Levelized (2014-2023) | E119: (a) | F119: 6.247299661 | G119: 6.746296792 | H119: 7.879873389 | I119: 7.703111839 | K119: 6.46064139 | L119: 7.322086961 | M119: 7.015455406 | O119: 7.375452483 | R119: Levelized (2014-2023) | U119: 0.1562188139 | W119: 3.041698227 | X119: 4.817586588 | Y119: 5.392622718 | Z119: 4.924976818 | AB119: 3.701132547 | AC119: 4.833102689 | AD119: 4.338431737 | AF119: 4.65164681 | AG119: Levelized (2014-2023) | AJ119: 0.1401730984 | AL119: 2.007178456 | AM119: 3.12366208 | AN119: 3.485181665 | AO119: 3.191177266 | AQ119: 2.421758356 | AR119: 3.133416901 | AS119: 2.822422117 | AU119: 3.019337367
C120: Levelized (2014-2028) | F120: 6.673009289 | G120: 7.167340969 | H120: 8.298134756 | I120: 8.122590583 | K120: 6.884495225 | L120: 7.741565019 | M120: 7.436188598 | O120: 7.795869706 | R120: Levelized (2014-2028) | U120: 0.1607056827 | W120: 2.095457339 | X120: 3.318885181 | Y120: 3.715033513 | Z120: 3.392867421 | AB120: 2.549748456 | AC120: 3.329574384 | AD120: 2.988790453 | AF120: 3.204567554 | AG120: Levelized (2014-2028) | AJ120: 0.1503735785 | AL120: 1.382765979 | AM120: 2.151923084 | AN120: 2.400977662 | AO120: 2.198434994 | AQ120: 1.668374356 | AR120: 2.158643281 | AS120: 1.944395761 | AU120: 2.080052711
C121: Levelized (2014-2043) | E121: (b) | F121: 7.80012258 | G121: 8.275505333 | H121: 9.383195636 | I121: 9.21905337 | K121: 8.006406436 | L121: 8.834887723 | M121: 8.542121182 | O121: 8.8978784 | R121: Levelized (2014-2043) | U121: 0.1651721682 | W121: 1.153515119 | X121: 1.826992211 | Y121: 2.045065412 | Z121: 1.867718228 | AB121: 1.403594977 | AC121: 1.832876442 | AD121: 1.645280442 | AF121: 1.76406222 | AG121: Levelized (2014-2043) | AJ121: 0.1605277191 | AL121: 0.7611901391 | AM121: 1.184598592 | AN121: 1.321699079 | AO121: 1.21020264 | AQ121: 0.9184128966 | AR121: 1.188297951 | AS121: 1.070358182 | AU121: 1.145035123
E123: (a) | F123: Real (constant $) riskless annual rate of return: | L123: 0.0136 | U123: Real (constant $) riskless annual rate of return: | Z123: 0.0136 | AJ123: Real (constant $) riskless annual rate of return: | AO123: 0.0136
E124: (b) | F124: Values from 2029-2043 extrapolated from Compound Annual Growth Rate (2019-2028) | T124: 1 | U124: Values from Exhibit 7-20 apply to both 2014 and 2015 Installations | AI124: 1 | AJ124: Values from Exhibit 7-20 apply to both 2014 and 2015 Installations
T125: 2 to 4 | U125: Exhibit 7-28. weighted average values per percentage annual baseload and winter | AI125: 2 to 4 | AJ125: Exhibit 7-29. weighted average values per percentage annual baseload and winter
D126: CAGR 2019-2028 | T126: 5 | U126: Weighted average per Percentage of residential load columns 2 to 4 | AI126: 5 | AJ126: Weighted average per Percentage of residential load columns 2 to 4
F127: 0.01981708454 | G127: 0.01840606646 | H127: 0.01589703763 | I127: 0.01633382935 | K127: 0.01925026138 | L127: 0.01697869793 | M127: 0.01776417127 | O127: 0.01697890171 | T127: 6 to 7 | U127: Exhibit 7-28. weighted average values per percentage annual baseload and winter | AI127: 6 to 7 | AJ127: Exhibit 7-29. weighted average values per percentage annual baseload and winter
T128: 8 | U128: Weighted average per Percentage of commercial load columns 6 and 7 | AI128: 8 | AJ128: Weighted average per Percentage of commercial load columns 6 and 7
T129: 9 | U129: Weighted average per Percentage of residential and commercial load columns 5 and 8 | AI129: 9 | AJ129: Weighted average per Percentage of residential and commercial load columns 5 and 8

Sheet PA.AC
B2: PA avoided cost data
B3: Source
B4: GDS Associates et al. (2015). Energy Efficiency Potential Study for Pennsylvania, Appendix B, February 2015
B8: First Energy - PECO | K8: First Energy - PECO
B9: (nominal $) | K9: (2015 $)
C10: Winter Peak | D10: Winter Off-Peak | E10: Summer Peak | F10: Summer Off Peak | G10: Avoided Capacity | H10: Avoided T&D | I10: Avoided Transmission Only | L10: Winter Peak | M10: Winter Off-Peak | N10: Summer Peak | O10: Summer Off Peak | P10: Annual Average | Q10: Avoided Capacity | R10: Avoided T&D | S10: Avoided Transmission Only
C11: $/MWh | D11: $/MWh | E11: $/MWh | F11: $/MWh | G11: $/kW-Yr | H11: $/kW-Yr | I11: $/kw-Yr | L11: $/kWh | M11: $/kWh | N11: $/kWh | O11: $/kWh | P11: $/kWh | Q11: $/kW-Yr | R11: $/kW-Yr | S11: $/kw-Yr
B12: 2016 | C12: 47.2 | D12: 37.7 | E12: 56.3 | F12: 33.6 | G12: 43.48 | H12: 49.27 | I12: 3.88 | K12: 2016 | L12: =(C12/(1+$E$44)^(K12-2015))/1000 -> 0.04633356238 | M12: =(D12/(1+$E$44)^($K12-2015))/1000 -> 0.03700795131 | N12: =(E12/(1+$E$44)^($K12-2015))/1000 -> 0.05526651615 | O12: =(F12/(1+$E$44)^($K12-2015))/1000 -> 0.0329832139 | P12: =SUMPRODUCT(L12:O12,$V$38:$Y$38) -> 0.04216295278 | Q12: =G12/(1+$E$44)^($K12-2015) -> 42.68184942 | R12: =H12/(1+$E$44)^($K12-2015) -> 48.36556395 | S12: =I12/(1+$E$44)^($K12-2015) -> 3.808775891
B13: 2017 | C13: 49.5 | D13: 39.7 | E13: 58.4 | F13: 35.5 | G13: 43.8 | H13: 50.19 | I13: 3.95 | K13: 2017 | L13: 0.0476993638 | M13: 0.03825585339 | N13: 0.05627561305 | O13: 0.03420863465 | P13: =SUMPRODUCT(L13:O13,$V$38:$Y$38) -> 0.0434063247 | Q13: 42.20670979 | R13: 48.36426403 | S13: 3.806312869
B14: 2018 | C14: 52.4 | D14: 41.8 | E14: 61.6 | F14: 37.2 | G14: 44.62 | H14: 51.13 | I14: 4.02 | K14: 2018 | L14: 0.04956696965 | M14: 0.03954006358 | N14: 0.05826956738 | O14: 0.03518876472 | P14: 0.04493510661 | Q14: 42.20759897 | R14: 48.36563279 | S14: 3.802656832
B15: 2019 | C15: 55.8 | D15: 44.2 | E15: 65.5 | F15: 39.4 | G15: 45.45 | H15: 52.09 | I15: 4.09 | K15: 2019 | L15: 0.05181422114 | M15: 0.04104280599 | N15: 0.06082135277 | O15: 0.03658566869 | P15: 0.0468221345 | Q15: 42.20351883 | R15: 48.36922543 | S15: 3.79785241
B16: 2020 | C16: 59.4 | D16: 46.8 | E16: 69.7 | F16: 41.6 | G16: 46.3 | H16: 53.06 | I16: 4.16 | K16: 2020 | L16: 0.05414457064 | M16: 0.04265935869 | N16: 0.06353327565 | O16: 0.03791942995 | P16: 0.04878963615 | Q16: 42.20359631 | R16: 48.36550368 | S16: 3.791942995
B17: 2021 | C17: 63 | D17: 49.4 | E17: 74.1 | F17: 44.1 | G17: 47.17 | H17: 54.05 | I17: 4.23 | K17: 2021 | L17: 0.05637190515 | M17: 0.04420273197 | N17: 0.06630409796 | O17: 0.0394603336 | P17: 0.05074455735 | Q17: 42.20734549 | R17: 48.36351545 | S17: 3.784970774
B18: 2022 | C18: 66.7 | D18: 52 | E18: 78.6 | F18: 46.5 | G18: 48.05 | H18: 55.06 | I18: 4.3 | K18: 2022 | L18: 0.0585870581 | M18: 0.04567506778 | N18: 0.06903962169 | O18: 0.040844051 | P18: 0.05263770485 | Q18: 42.20551936 | R18: 48.36286985 | S18: 3.776976759
B19: 2023 | C19: 70.3 | D19: 54.6 | E19: 83 | F19: 48.9 | G19: 48.95 | H19: 56.09 | I19: 4.38 | K19: 2023 | L19: 0.06061566524 | M19: 0.04707845408 | N19: 0.07156614814 | O19: 0.04216367041 | P19: 0.05440320623 | Q19: 42.20678255 | R19: 48.36319578 | S19: 3.776623239
B20: 2024 | C20: 70.2 | D20: 54.5 | E20: 87.5 | F20: 51.3 | G20: 49.87 | H20: 57.14 | I20: 4.45 | K20: 2024 | L20: 0.05941831841 | M20: 0.04612960617 | N20: 0.07406129431 | O20: 0.04342107884 | P20: 0.05430927408 | Q20: 42.21070568 | R20: 48.36414122 | S20: 3.766545825
B21: 2025 | C21: 71.3 | D21: 55.3 | E21: 84.7 | F21: 49.8 | G21: 50.8 | H21: 58.21 | I21: 4.53 | K21: 2025 | L21: 0.05924155755 | M21: 0.04594751939 | N21: 0.07037531451 | O21: 0.04137769377 | P21: 0.05324602943 | Q21: 42.20857116 | R21: 48.36537258 | S21: 3.763874554
B22: 2026 | C22: 74.4 | D22: 57.6 | E22: 88.5 | F22: 51.8 | G22: 51.75 | H22: 59.3 | I22: 4.61 | K22: 2026 | L22: 0.06068251443 | M22: 0.04698001117 | N22: 0.07218282966 | O22: 0.04224938504 | P22: 0.05450309327 | Q22: 42.20860378 | R22: 48.366574 | S22: 3.760032144
B23: 2027 | C23: 77.4 | D23: 59.7 | E23: 92.3 | F23: 53.9 | G23: 52.72 | H23: 60.41 | I23: 4.69 | K23: 2027 | L23: 0.06197054089 | M23: 0.04779898309 | N23: 0.07390027034 | O23: 0.04315519579 | P23: 0.05562880881 | Q23: 42.21042527 | R23: 48.36744671 | S23: 3.755062491
B24: 2028 | C24: 78.9 | D24: 60.9 | E24: 94.1 | F24: 55 | G24: 53.7 | H24: 61.54 | I24: 4.77 | K24: 2028 | L24: 0.06201189788 | M24: 0.04786469684 | N24: 0.0739584232 | O24: 0.04322755872 | P24: 0.05568676289 | Q24: 42.20581643 | R24: 48.36770843 | S24: 3.749008275 | U24: Summer Peak Hours
B25: 2029 | C25: 80.5 | D25: 62.1 | E25: 96 | F25: 56.1 | G25: 54.71 | H25: 62.69 | I25: 4.86 | K25: 2029 | L25: 0.06210800712 | M25: 0.04791189121 | N25: 0.07406669173 | O25: 0.04328272298 | P25: 0.0557605688 | Q25: 42.210299 | R25: 48.36709275 | S25: 3.749626269 | V25: Peak hour per day | W25: Days | X25: Total peak hours | Y25: Summer
B26: 2030 | C26: 82.1 | D26: 63.3 | E26: 97.9 | F26: 57.2 | G26: 55.73 | H26: 63.86 | I26: 4.94 | K26: 2030 | L26: 0.06217969175 | M26: 0.04794122397 | N26: 0.07414606361 | O26: 0.04332129559 | P26: 0.05581290029 | Q26: 42.20796859 | R26: 48.36534854 | S26: 3.741384619 | V26: 4 | W26: =Z26-Y26 -> 91 | X26: =V26*W26 -> 364 | Y26: 2015-06-01 | Z26: 2015-08-31
B27: 2031 | C27: 83.7 | D27: 64.6 | E27: 99.9 | F27: 58.3 | G27: 56.77 | H27: 65.05 | I27: 5.03 | K27: 2031 | L27: 0.06222781608 | M27: 0.04802768123 | N27: 0.07427190952 | O27: 0.04334386712 | P27: 0.05588228881 | Q27: 42.2063694 | R27: 48.36223938 | S27: 3.739616665
B28: 2032 | C28: 85.4 | D28: 65.9 | E28: 101.9 | F28: 59.5 | G28: 57.83 | H28: 66.27 | I28: 5.11 | K28: 2032 | L28: 0.06232620244 | M28: 0.04809480961 | N28: 0.07436815022 | O28: 0.04342399351 | P28: 0.05596622948 | Q28: 42.20520243 | R28: 48.36484117 | S28: 3.729354736 | U28: Winter Peak Hours
B29: 2033 | C29: 87.1 | D29: 67.2 | E29: 103.9 | F29: 60.7 | G29: 58.91 | H29: 67.51 | I29: 5.2 | K29: 2033 | L29: 0.06240000783 | M29: 0.04814328962 | N29: 0.07443583023 | O29: 0.04348657262 | P29: 0.05602825777 | Q29: 42.2041844 | R29: 48.3653792 | S29: 3.725373602 | V29: Peak hour per day | W29: Days | X29: Total peak hours | Y29: Winter
B30: 2034 | C30: 88.9 | D30: 68.5 | E30: 106 | F30: 61.9 | G30: 60.02 | H30: 68.77 | I30: 5.29 | K30: 2034 | L30: 0.06252042822 | M30: 0.04817378327 | N30: 0.07454629237 | O30: 0.04353222167 | P30: 0.05610262539 | Q30: 42.21007988 | R30: 48.36366534 | S30: 3.720281949 | V30: 4 | W30: =Z30-Y30 -> 89 | X30: =V30*W30 -> 356 | Y30: 2014-12-01 | Z30: 2015-02-28
B31: 2035 | C31: 90.6 | D31: 69.9 | E31: 108.1 | F31: 63.1 | G31: 61.14 | H31: 70.06 | I31: 5.38 | K31: 2035 | L31: 0.06254636494 | M31: 0.0482559703 | N31: 0.07462761645 | O31: 0.04356154115 | P31: 0.05615759204 | Q31: 42.20844098 | R31: 48.36642746 | S31: 3.714121892
B32: 2036 | C32: 92.5 | D32: 71.3 | E32: 110.3 | F32: 64.4 | G32: 62.28 | H32: 71.37 | I32: 5.48 | K32: 2036 | L32: 0.06268581886 | M32: 0.04831890686 | N32: 0.07474860347 | O32: 0.04364288362 | P32: 0.05625723566 | Q32: 42.20619242 | R32: 48.36634478 | S32: 3.713711215 | U32: Note: since no information avaialble on the hours for winter peak, we assume 4 hours for each day during the winter peak months.
B33: 2037 | C33: 94.3 | D33: 72.7 | E33: 112.5 | F33: 65.7 | G33: 63.45 | H33: 72.7 | I33: 5.57 | K33: 2037 | L33: 0.06273255229 | M33: 0.04836327202 | N33: 0.0748400014 | O33: 0.04370656082 | P33: 0.05631320937 | Q33: 42.20976079 | R33: 48.36327202 | S33: 3.705411625
B34: 2038 | C34: 96.2 | D34: 74.2 | E34: 114.7 | F34: 67 | G34: 64.63 | H34: 74.06 | I34: 5.67 | K34: 2038 | L34: 0.06282175003 | M34: 0.04845502965 | N34: 0.0749028558 | O34: 0.04375319389 | P34: 0.05639166311 | Q34: 42.20550628 | R34: 48.36360506 | S34: 3.702695662
B35: 2039 | C35: 98.1 | D35: 75.7 | E35: 117 | F35: 68.3 | G35: 65.84 | H35: 75.45 | I35: 5.77 | K35: 2039 | L35: 0.06288653406 | M35: 0.04852712159 | N35: 0.07500228832 | O35: 0.04378338712 | P35: 0.05645845332 | Q35: 42.20641593 | R35: 48.36686029 | S35: 3.6988308 | U35: Seasonal Time Allocation
B36: 2040 | C36: 99.93 | D36: 77.12 | E36: 119.19 | F36: 69.58 | G36: 67.07 | H36: 76.86 | I36: 5.87 | K36: 2040 | L36: 0.06288372119 | M36: 0.04852989671 | N36: 0.07500360981 | O36: 0.0437851428 | P36: 0.05645904752 | Q36: 42.20565576 | R36: 48.3662845 | S36: 3.693860136
B37: 2041 | C37: 101.8 | D37: 78.56 | E37: 121.42 | F37: 70.88 | G37: 68.33 | H37: 78.3 | I37: 5.97 | K37: 2041 | L37: 0.06288452979 | M37: 0.0485285723 | N37: 0.07500431834 | O37: 0.04378443489 | P37: 0.0564588304 | Q37: 42.20923301 | R37: 48.36796348 | S37: 3.687825568 | V37: Winter peak | W37: Winter off-peak | X37: Summer peak | Y37: Summer off-peak | Z37: Total
B38: 2042 | C38: 103.71 | D38: 80.03 | E38: 123.69 | F38: 72.2 | G38: 69.6 | H38: 79.76 | I38: 6.08 | K38: 2042 | L38: 0.06288837428 | M38: 0.04852913503 | N38: 0.0750039824 | O38: 0.04378112644 | P38: 0.0564596131 | Q38: 42.20452078 | R38: 48.36541059 | S38: 3.6868317 | U38: Value | V38: 0.317 | W38: 0.349 | X38: 0.159 | Y38: 0.175 | Z38: =SUM(V38:Y38) -> 1
B39: 2043 | C39: 105.65 | D39: 81.52 | E39: 126 | F39: 73.55 | G39: 70.91 | H39: 81.25 | I39: 6.18 | K39: 2043 | L39: 0.06288874513 | M39: 0.04852522956 | N39: 0.07500219485 | O39: 0.0437810431 | P39: 0.05645806884 | Q39: 42.20956855 | R39: 48.36451057 | S39: 3.678679081
B40: 2044 | C40: 107.62 | D40: 83.05 | E40: 128.36 | F40: 74.93 | G40: 72.23 | H40: 82.77 | I40: 6.29 | K40: 2044 | L40: 0.06288544075 | M40: 0.04852848777 | N40: 0.0750044153 | O40: 0.04378373978 | P40: 0.05645898344 | Q40: 42.20605264 | R40: 48.36487577 | S40: 3.675426708 | U40: Source: ISO-NE
B41: 2045 | C41: 109.63 | D41: 84.6 | E41: 130.76 | F41: 76.33 | G41: 73.58 | H41: 84.32 | I41: 6.4 | K41: 2045 | L41: 0.06288401018 | M41: 0.04852674689 | N41: 0.07500422486 | O41: 0.04378305662 | P41: 0.05645777255 | Q41: 42.20565055 | R41: 48.36613827 | S41: 3.671054138
B43: Other General Modeling Assumptions
B44: Avoided Cost Inflation Rate (BLS Statistic) | E44: 0.0187
B46: Residential Line Loss Multiplier | E46: 1.0799
B47: Commercial Line Loss Multiplier | E47: 1.0799
B48: Industrial Line Loss Multiplier | E48: 1.0799
